{"text_format":"1","workbook":"xlsx","n_sheets":11,"sheets":["Registro de cambios","configuracion","DIGITADOR","DATOS","referentes","Otras referencias","AGD_MUESTREOS","AGD_PARAMETRO","AGD_MUESTRAS","AGD_MUESTRAS_VARIABLES","AGD_AUTORIAS"],"not_rendered":{"charts":0,"images":0,"macros":1,"external_links":2,"defined_names":21,"comments":3,"pivot_tables":0},"unopened":[],"bounds":{"document_bytes":16777216,"sheet_cells":100000,"rows_first":2000,"rows_last":500,"rows_between":2000,"halvings":0,"cell_chars":16384,"cell_head_chars":4096},"cells_cut":0,"cells_raw":0,"read":"whole","date_system":"1900"}

{"sheet":"Registro de cambios","index":0,"n_rows":6,"n_cols":7,"rows_kept":6,"cut":false,"hidden":true,"merged":[[2,3,2,6]]}
[]
[]
[null,null,null,"REGISTRO DE CAMBIOS"]
[null,null,null,"VERSIÓN No.","CAMBIO REALIZADO","AUTOR","VIGENTE DESDE\n(DD/MM/AAAA)"]
[null,null,null,"20241018i","Actualización del código de la macro.\n\nSe eliminó la URL de la antigua API de portete:\n       http://portete.invemar.org.co:7003/ArgosWebServices-RESTWebService-context-root/rest/1.0\n\nFue reemplazada por la URL de la API de ARGOS:\n       https://argos.invemar.org.co/api/\n\nLa API contiene End Points que permiten tener mayor control, facilitan la descarga de referentes (listas de usuarios, estaciones, especies, etc.) que corresponden a criterios específicos como el proyecto usado en la plantilla para evitar descargar data innecesaria.\n\nDel mismo modo, también permite la carga de información a la BDD del INVEMAR.\n\nLa macro toma los Endpoints desde la hoja configuracion de una tabla llamada \"Configuración referentes\", a la que se le puede modificar las rutas de la API o agregar nuevas. cabe resaltar que se puede \"quemar\" directamente en la macro los Endpoints que lo requieran.","Juan Muñoz","18/10/2024"]
[null,null,null,"20230727i","Se creó la plantilla de cero (0), los elementos que componen la plantilla funcionan de manera dinámica para que sirvan para la temática de MACROFAUNA y MEGAFAUNA.\n\nSe modificó la hoja de DIGITADOR añadiendo listas de valores como roles involucrados, ecosistema, época climática que sirven como parámetros del muestreo.\n\nSe crearon todas las columnas que componente la hoja de DATOS, se obtienen valores como la fecha, estación, información taxonómica, etc .\n\nSe remapeó toda la hoja de CONFIGURACIÓN para tomar los valores de los muestreos y muestras y generar las tablas que sirven para subir la información al sistema.\n","Kevin Moreno","27/07/2023"]

{"sheet":"configuracion","index":1,"n_rows":71,"n_cols":14,"rows_kept":71,"cut":false,"hidden":true,"merged":[[61,0,61,2],[23,0,26,0],[0,0,2,0],[3,0,5,0],[7,0,8,0],[9,0,15,0],[17,0,21,0],[45,5,45,6],[45,8,45,9],[60,0,60,1],[28,0,35,0],[37,0,42,0],[45,0,45,1]]}
["general","urlServicio","https://argos.invemar.org.co/api/"]
[null,"fila de inicio",3]
[null,"fila de fin",303]
["metodologias","Metodologias",{"$f":"DIGITADOR!B4","v":870}]
[null,"Referentes",300]
[null,"Cantidad maxima de referentes ",300]
["estaciones/investigadores","proyectos",3572]
["Lista especies","metodologias",{"$f":"DIGITADOR!B4","v":870}]
[null,"proyectos",3572]
["MUESTREOS","ID_MUESTREO","DATOS,B"]
[null,"ID_ESTACION","DATOS,F"]
[null,"ID_PROYECTO",3572]
[null,"ID_METODOLOGIA",{"$f":"DIGITADOR!B4","v":870}]
[null,"ID_TEMATICAS",{"$f":"IF(C4=\"\",\"\",VLOOKUP(C4,'Otras referencias'!N7:P8,2,FALSE))","v":268}]
[null,"FECHA","DATOS,E"]
[null,"NOTAS","DIGITADOR,B,28"]
[null,"cantidad",303]
["parametro muestreo","ID_MUESTREO","DATOS,B","DATOS,B","DATOS,B","DATOS,B","DATOS,B","DATOS,B","DATOS,B","DATOS,B","DATOS,B"]
[null,"ID_PARAMETRO",1069,376,1250,1059,1060,1169,1055,1170,127]
[null,"ID_METODOLOGIA",{"$f":"DIGITADOR!$B$4","v":870},{"$f":"DIGITADOR!$B$4","v":870},{"$f":"DIGITADOR!$B$4","v":870},{"$f":"DIGITADOR!$B$4","v":870},{"$f":"DIGITADOR!$B$4","v":870},{"$f":"DIGITADOR!$B$4","v":870},{"$f":"DIGITADOR!$B$4","v":870},{"$f":"DIGITADOR!$B$4","v":870},{"$f":"DIGITADOR!$B$4","v":870}]
[null,"ID_UNIDAD_MEDIDA",100,100,100,100,100,100,100,100,100]
[null,"VALOR","DIGITADOR,B,31","DIGITADOR,B,33","DIGITADOR,B,35","DIGITADOR,B,37","DIGITADOR,B,39","DIGITADOR,B,14","DIGITADOR,B,7","DIGITADOR,B,13","DIGITADOR,B,12"]
[null,"cantidad",303,303,303,303,303,303,303,303,303]
["muestra","ID_MUESTRA","DATOS,D"]
[null,"ID_MUESTREO","DATOS,C"]
[null,"NOTAS","DATOS,V"]
[null,"ES_REPLICA",1]
[null,"cantidad",303]
["muestra variable","ID_PARAMETRO",860,145,1050,1051,1028,1052,1053,1181,564,990,622,166]
[null,"ID_METODOLOGIA",{"$f":"DIGITADOR!$B$4","v":870},{"$f":"DIGITADOR!$B$4","v":870},{"$f":"DIGITADOR!$B$4","v":870},{"$f":"DIGITADOR!$B$4","v":870},{"$f":"DIGITADOR!$B$4","v":870},{"$f":"DIGITADOR!$B$4","v":870},{"$f":"DIGITADOR!$B$4","v":870},{"$f":"DIGITADOR!$B$4","v":870},{"$f":"DIGITADOR!$B$4","v":870},870,{"$f":"DIGITADOR!$B$4","v":870},871]
[null,"ID_UNIDAD_MEDIDA",109,100,100,100,100,100,100,100,142,69,100,10]
[null,"ID_MUESTRA","DATOS,D","DATOS,D","DATOS,D","DATOS,D","DATOS,D","DATOS,D","DATOS,D","DATOS,D","DATOS,D","DATOS,D","DATOS,D","DATOS,D"]
[null,"ID_METODO"]
[null,"VALOR","DATOS,H","DATOS,I","DATOS,J","DATOS,K","DATOS,L","DATOS,M","DATOS,N","DATOS,O","DATOS,P","DATOS,R","DATOS,V","DATOS,T"]
[null,"QUALITY_FLAG"]
[null,"PRECISION"]
[null,"cantidad",303,303,303,303,303,303,303,303,303,303,303,303]
["autoria","ID_FUNCIONARIO","DIGITADOR,B,2","DIGITADOR,B,18","DIGITADOR,B,20","DIGITADOR,B,22","DIGITADOR,B,24"]
[null,"ID_TAREA",5,"DIGITADOR,A,18","DIGITADOR,A,20","DIGITADOR,A,22","DIGITADOR,A,24"]
[null,"ORDEN",1,2,3,4,5]
[null,"FECHA","DIGITADOR,B,9","DATOS,E","DATOS,E","DATOS,E","DATOS,E"]
[null,"ID_MUESTREO","DATOS,B","DATOS,B","DATOS,B","DATOS,B","DATOS,B"]
[null,"ENTIDAD","DIGITADOR,B,6","DIGITADOR,B,6","DIGITADOR,B,6","DIGITADOR,B,6","DIGITADOR,B,6"]
[null,"cantidad",303,303,303,303,303]
[]
["REGISTROS GENERADOS",null,"REGISTROS CARGADOS",null,null,"MACROFAUNA - METODOLOGIA 870",null,null,"MEGAFAUNA - METODOLOGIA 871"]
["MUESTREOS",null,null,null,null,"ID_PARAMETRO","NOMBRE_COLUMNA",null,"ID_PARAMETRO","NOMBRE_COLUMNA"]
["parametro muestreo",null,null,null,null,127,"PROYECTO_FINANCIO",null,127,"PROYECTO_FINANCIO"]
["muestra",null,null,null,null,145,"FECHA_ANALISIS",null,145,"FECHA_ANALISIS"]
["muestra variable",null,null,null,null,376,"ECOSISTEMA",null,166,"TAMANO"]
["autoria",null,null,null,null,564,"ABUNDANCIA",null,376,"ECOSISTEMA"]
["registros correctos",null,null,null,null,622,"OBSERVACIONES",null,564,"ABUNDANCIA"]
["Fecha de carga",null,null,null,null,860,"AREA_MUESTREADA",null,622,"OBSERVACIONES"]
["json error",null,null,null,null,990,"BIOMASA_HUMEDA",null,860,"AREA_MUESTREADA"]
["error",null,null,null,null,1028,"ORDEN",null,1028,"ORDEN"]
[null,null,null,null,null,1050,"PHYLUM",null,1050,"PHYLUM"]
[null,null,null,null,null,1051,"CLASE",null,1051,"CLASE"]
["Atributo","Descripción","Código",null,null,1052,"FAMILIA",null,1052,"FAMILIA"]
["Tipo Nodo","Punto",{"$f":"VLOOKUP($B$59,'[2]Otras referencias'!$N$14:$O$24,2,FALSE)","v":30},null,null,1053,"GENERO",null,1053,"GENERO"]
[null,null,null,null,null,1055,"VERSION_PLANTILLA",null,1055,"VERSION_PLANTILLA"]
[null,null,null,null,null,1059,"EQUIPO_MUESTREO",null,1059,"EQUIPO_MUESTREO"]
["CONFIGURACION REFERENTES",null,null,null,null,1060,"ESFUERZO_MUESTREO",null,1060,"ESFUERZO_MUESTREO"]
["Ruta de la API","Endpoint","Descripción",null,null,1069,"EPOCA_CLIMATICA",null,1069,"EPOCA_CLIMATICA"]
["URL - AGM Campo",{"$f":"CONCATENATE(\"parametros/agmcampo/\",$C$4,\"\")","v":"parametros/agmcampo/870"},"Listado de referentes AGM_CAMPO",null,null,1169,"URL_METADATO",null,1169,"URL_METADATO"]
["URL - Especies",{"$f":"IF($C$8=\"\",\"\",CONCATENATE(\"especies/filt/\",$C$9,\",\",$C$8,\"/\"))","v":"especies/filt/3572,870/"},"Especies por proyecto\n(No todos los proyectos tienen asociados una lista de especies)",null,null,1170,"ARCHIVO_FUENTE",null,1170,"ARCHIVO_FUENTE"]
["URL - Estaciones",{"$f":"CONCATENATE(\"estaciones/\", $C$59, \"/\",$C$9,\"\")","v":"estaciones/30/3572"},"Estaciones/parcelas por proyecto, cambia dependiendo del Tipo de Nodo, cuyo estado sea VIGENTE.",null,null,1181,"ESPECIE",null,1181,"ESPECIE"]
["URL - Usuarios",{"$f":"CONCATENATE(\"parametros/usersByProject/\",$C$7,\"\")","v":"parametros/usersByProject/3572"},"Usuarios por proyecto.",null,null,1250,"COMUNIDAD",null,1250,"COMUNIDAD"]
["URL - Entidades","estaciones/get-entidades","Listado de entidades."]
["Atributos de la API","codigo_in","nombre_in"]
["Rango de atributos de la API","B70:C71","nombre_in"]
["URL - Plantillas","plantillas/","Endpoint para la carga de datos al sistema."]

{"sheet":"DIGITADOR","index":2,"n_rows":50,"n_cols":4,"rows_kept":50,"cut":false,"hidden":false,"merged":[[0,0,0,1],[15,3,15,9],[16,3,16,9],[1,3,9,9],[10,3,14,9],[7,0,8,0],[29,0,29,1],[41,0,41,1],[30,0,31,0],[32,0,33,0],[34,0,35,0],[36,0,37,0],[38,0,39,0],[26,0,26,1]]}
["Recolección de Datos Monitoreo Macro/Mega Fauna Bentónica KFW"]
["Código Digitador",{"$f":"IF(B3=\"\",\"\",INDEX(referentes!Y:Z,MATCH(B3,referentes!Z:Z,0),1))","v":""},null,"Recomendaciones generales: \n¡Precaución! No inserte Filas o Columnas.\nEn los casos en que falte un valor a ingresar que provenga de la hoja de referencias, informe para que el administrador del sistema haga las adiciones necesarias.\nEsta es una plantilla programada. Las columnas de color oscuro se llenan automaticamente, principalmente a partir de los contenidos de la hoja de referencias. \nNO UTILICE PUNTO Y COMA (;) en ningun campo, por ser el separador de variables (columnas). Las unidades de medida son las especificadas en la cabecera de la hoja.\nPara el correcto funcionamiento de la hoja debe estar activa la opcion de Excel de ejecutar macros (al abrir la hoja acepte la opcion habilitar macros, mensaje de Excel que aparece en la parte superior de la hoja en un recuadro amarillo). La extensión del archivo debe ser .xlsm.. \nAl finalizar, renombre el archivo de modo que su contenido sea claro, ejemplo:\ncorporacion_estacion_anocuatrodigitosmesmuestreo.xlsm. El nombre no debe tener espacios en blanco vocales tildadas o ñ."]
["Nombre del responsable"]
["Código Monitoreo",{"$f":"IF(B5=\"\",\"\",INDEX('Otras referencias'!$K$7:$L$8,MATCH(DIGITADOR!B5,'Otras referencias'!$L$7:$L$8,0),1))","v":870}]
["Monitoreo","Playas - MACROFAUNA"]
["Entidad","Instituto de Investigaciones Marinas y Costeras"]
["Versión de la plantilla",{"$f":"'Registro de cambios'!$D$5","v":"20241018i"}]
["Fecha en la que ingresa los datos en esta hoja","DD/MM/AAAA"]
[null,"3000-12-12"]
[]
["Código del proyecto",{"$f":"IF(B12=\"\",\"\",INDEX('Otras referencias'!$D$7:$E$7,MATCH(DIGITADOR!B12,'Otras referencias'!$E$7:$E$7,0),1))","v":3572},null,"Previamente a iniciar el llenado de la plantilla, debe presionar el botón \"Descargar referentes\" para que los referentes de ésta plantilla sean actualizados. \nLuego de llenar completamente la plantilla verifique que:\na. No haya celdas con valores como \"#N/A\" o \"#¡REF!\".\nb. No se estén aplicando filtros en la hoja de datos.\nEnvíe la plantilla diligenciada al correo kevin.moreno@invemar.org.co"]
["Proyecto que financia","KFW"]
["Nombre del Archivo",{"$f":"MID(CELL(\"FILENAME\",N67),FIND(\"[\",CELL(\"FILENAME\",N67))+1,   FIND(\"]\",CELL(\"FILENAME\",N67))-FIND(\"[\",CELL(\"FILENAME\",N67))-1)","v":"KFW_PLAYAS_BENTOS_20230727i.xlsm"}]
["DOI Metadato"]
["Fuente Plantilla ","http://cinto.invemar.org.co/download/Plantillas_ARGOS_Plus/"]
[null,null,null,"Si requiere ayuda contacte a:\nKevin S. Moreno (kevin.moreno@invemar.org.co)"]
["ROLES INVOLUCRADOS","NOMBRE DE LA PERSONA",null,"El custodio de los datos es el único autorizado para distribuir este conjunto de datos. El observador y el digitador se comprometen a tomar las medidas necesarias para salvaguardar este conjunto de datos de modo que copia de los mismos no sean obtenidas y/o usadas por terceros no relacionados con el propósito para la cual se recolectó."]
[{"$f":"IF(A19=\"\",\"\",INDEX('Otras referencias'!$H$6:$I$9,MATCH(DIGITADOR!A19,'Otras referencias'!$I$6:$I$9,0),1))","v":""},{"$f":"IF(B19=\"\",\"\",INDEX(referentes!$Y$2:$Z$64,MATCH(DIGITADOR!B19,referentes!$Z$2:$Z$64,0),1))","v":""}]
[]
[{"$f":"IF(A21=\"\",\"\",INDEX('Otras referencias'!$H$6:$I$9,MATCH(DIGITADOR!A21,'Otras referencias'!$I$6:$I$9,0),1))","v":""},{"$f":"IF(B21=\"\",\"\",INDEX(referentes!$Y$2:$Z$64,MATCH(DIGITADOR!B21,referentes!$Z$2:$Z$64,0),1))","v":""}]
[]
[{"$f":"IF(A23=\"\",\"\",INDEX('Otras referencias'!$H$6:$I$9,MATCH(DIGITADOR!A23,'Otras referencias'!$I$6:$I$9,0),1))","v":""},{"$f":"IF(B23=\"\",\"\",INDEX(referentes!$Y$2:$Z$64,MATCH(DIGITADOR!B23,referentes!$Z$2:$Z$64,0),1))","v":""}]
[]
[{"$f":"IF(A25=\"\",\"\",INDEX('Otras referencias'!$H$6:$I$9,MATCH(DIGITADOR!A25,'Otras referencias'!$I$6:$I$9,0),1))","v":""},{"$f":"IF(B25=\"\",\"\",INDEX(referentes!$Y$2:$Z$64,MATCH(DIGITADOR!B25,referentes!$Z$2:$Z$64,0),1))","v":""}]
[]
[]
["ATRIBUTOS ADICIONALES"]
["Observaciones generales"]
[]
["ATRIBUTOS ADICIONALES"]
["Época Climática",{"$f":"IF(B32=\"\",\"\",INDEX(referentes!$A$2:$B$4,MATCH(DIGITADOR!B32,referentes!$B$2:$B$4,0),1))","v":""}]
[]
["Ecosistema",{"$f":"IF(B34=\"\",\"\",INDEX(referentes!$D$2:$E$16,MATCH(DIGITADOR!B34,referentes!$E$2:$E$16,0),1))","v":""}]
[]
["Comunidad",{"$f":"IF(B36=\"\",\"\",INDEX(referentes!$G$2:$H$16,MATCH(DIGITADOR!B36,referentes!$H$2:$H$16,0),1))","v":""}]
[]
["Equipo de muestreo",{"$f":"IF(B38=\"\",\"\",IF(B4=871,\"\",INDEX(referentes!$J$2:$K$6,MATCH(DIGITADOR!B38,referentes!$K$2:$K$6,0),1)))","v":""}]
[]
["Esfuerzo de muestreo",{"$f":"IF(B40=\"\",\"\",INDEX(referentes!$M$2:$N$7,MATCH(DIGITADOR!B40,referentes!$N$2:$N$7,0),1))","v":""}]
[]
[]
["REGISTROS GENERADOS",null,"CARGADOS"]
["Muestreos",{"$f":"IF(configuracion!B47=\"\",\"\",configuracion!B47)","v":""},{"$f":"IF(configuracion!C47=\"\",\"\",configuracion!C47)","v":""}]
["Parámetros del muestreo",{"$f":"IF(configuracion!B48=\"\",\"\",configuracion!B48)","v":""},{"$f":"IF(configuracion!C48=\"\",\"\",configuracion!C48)","v":""}]
["Registros",{"$f":"IF(configuracion!B49=\"\",\"\",configuracion!B49)","v":""},{"$f":"IF(configuracion!C49=\"\",\"\",configuracion!C49)","v":""}]
["Variables",{"$f":"IF(configuracion!B50=\"\",\"\",configuracion!B50)","v":""},{"$f":"IF(configuracion!C50=\"\",\"\",configuracion!C50)","v":""}]
["Autorías",{"$f":"IF(configuracion!B51=\"\",\"\",configuracion!B51)","v":""},{"$f":"IF(configuracion!C51=\"\",\"\",configuracion!C51)","v":""}]
["Registros correctos",{"$f":"IF(configuracion!B52=\"\",\"\",configuracion!B52)","v":""},{"$f":"IF(configuracion!C52=\"\",\"\",configuracion!C52)","v":""}]
["json error",{"$f":"IF(configuracion!B53=\"\",\"\",configuracion!B53)","v":""},{"$f":"IF(configuracion!C53=\"\",\"\",configuracion!C53)","v":""}]
["error",{"$f":"IF(configuracion!B54=\"\",\"\",configuracion!B54)","v":""},{"$f":"IF(configuracion!C54=\"\",\"\",configuracion!C54)","v":""}]

{"sheet":"DATOS","index":3,"n_rows":303,"n_cols":22,"rows_kept":303,"cut":false,"hidden":false,"merged":[[0,7,0,8],[0,4,0,6],[0,9,0,14],[0,15,0,21]]}
[null,null,null,null,"MUESTREO",null,null,"MUESTRA",null,"INFORMACIÓN TAXONÓMICA",null,null,null,null,null,"VARIABLE"]
[{"$f":"TEXT(DIGITADOR!$B$9,\"yyyymmdd\")","v":"30001212"},"AGD MUESTREO","ID MUESTREO","ID MUESTRA","Fecha\n(DD/MM/AAAA)","ID ESTACION","Estación","Área total muestreada (m2)","Fecha de análisis","Phylum","Clase","Orden","Familia","Género","Especie","Abundancia","Unidad de abundancia","Biomasa húmeda","Unidad de biomasa húmeda","Tamaño promedio","Unidad de tamaño","Observaciones"]
[null,{"$f":"IF(C3=\"\",\"\",IF(COUNTIF($C$3:C3, C3)>1, \"\", C3))","v":""},{"$f":"IF(E3=\"\",\"\",CONCATENATE(DIGITADOR!$M$1,E3,F3))","v":""},{"$f":"IF(C3=\"\",\"\",CONCATENATE(C3,ROW()-2))","v":""},null,{"$f":"IF(G3=\"\",\"\",VLOOKUP(G3,referentes!S2:W49,4,FALSE))","v":""},null,null,null,null,null,null,null,null,null,null,{"$f":"IF(P3=\"\",\"\",'Otras referencias'!B$10)","v":""},null,{"$f":"IF(R3=\"\",\"\",'Otras referencias'!B$9)","v":""},null,{"$f":"IF(T3=\"\",\"\",CONCATENATE('Otras referencias'!B$7,\"/Estación\"))","v":""}]
[null,{"$f":"IF(C4=\"\",\"\",IF(COUNTIF($C$3:C4, C4)>1, \"\", C4))","v":""},{"$f":"IF(E4=\"\",\"\",CONCATENATE(DIGITADOR!$M$1,E4,F4))","v":""},{"$f":"IF(C4=\"\",\"\",CONCATENATE(C4,ROW()-2))","v":""},null,{"$f":"IF(G4=\"\",\"\",VLOOKUP(G4,referentes!S3:W50,4,FALSE))","v":""},null,null,null,null,null,null,null,null,null,null,{"$f":"IF(P4=\"\",\"\",'Otras referencias'!B$10)","v":""},null,{"$f":"IF(R4=\"\",\"\",'Otras referencias'!B$9)","v":""},null,{"$f":"IF(T4=\"\",\"\",CONCATENATE('Otras referencias'!B$7,\"/Estación\"))","v":""}]
[null,{"$f":"IF(C5=\"\",\"\",IF(COUNTIF($C$3:C5, C5)>1, \"\", C5))","v":""},{"$f":"IF(E5=\"\",\"\",CONCATENATE(DIGITADOR!$M$1,E5,F5))","v":""},"",null,{"$f":"IF(G5=\"\",\"\",VLOOKUP(G5,referentes!S4:W51,4,FALSE))","v":""},null,null,null,null,null,null,null,null,null,null,{"$f":"IF(P5=\"\",\"\",'Otras referencias'!B$10)","v":""},null,{"$f":"IF(R5=\"\",\"\",'Otras referencias'!B$9)","v":""},null,{"$f":"IF(T5=\"\",\"\",CONCATENATE('Otras referencias'!B$7,\"/Estación\"))","v":""}]
[null,{"$f":"IF(C6=\"\",\"\",IF(COUNTIF($C$3:C6, C6)>1, \"\", C6))","v":""},{"$f":"IF(E6=\"\",\"\",CONCATENATE(DIGITADOR!$M$1,E6,F6))","v":""},"",null,{"$f":"IF(G6=\"\",\"\",VLOOKUP(G6,referentes!S5:W52,4,FALSE))","v":""},null,null,null,null,null,null,null,null,null,null,{"$f":"IF(P6=\"\",\"\",'Otras referencias'!B$10)","v":""},null,{"$f":"IF(R6=\"\",\"\",'Otras referencias'!B$9)","v":""},null,{"$f":"IF(T6=\"\",\"\",CONCATENATE('Otras referencias'!B$7,\"/Estación\"))","v":""}]
[null,{"$f":"IF(C7=\"\",\"\",IF(COUNTIF($C$3:C7, C7)>1, \"\", C7))","v":""},{"$f":"IF(E7=\"\",\"\",CONCATENATE(DIGITADOR!$M$1,E7,F7))","v":""},"",null,{"$f":"IF(G7=\"\",\"\",VLOOKUP(G7,referentes!S6:W53,4,FALSE))","v":""},null,null,null,null,null,null,null,null,null,null,{"$f":"IF(P7=\"\",\"\",'Otras referencias'!B$10)","v":""},null,{"$f":"IF(R7=\"\",\"\",'Otras referencias'!B$9)","v":""},null,{"$f":"IF(T7=\"\",\"\",CONCATENATE('Otras referencias'!B$7,\"/Estación\"))","v":""}]
[null,{"$f":"IF(C8=\"\",\"\",IF(COUNTIF($C$3:C8, C8)>1, \"\", C8))","v":""},{"$f":"IF(E8=\"\",\"\",CONCATENATE(DIGITADOR!$M$1,E8,F8))","v":""},"",null,{"$f":"IF(G8=\"\",\"\",VLOOKUP(G8,referentes!S7:W54,4,FALSE))","v":""},null,null,null,null,null,null,null,null,null,null,{"$f":"IF(P8=\"\",\"\",'Otras referencias'!B$10)","v":""},null,{"$f":"IF(R8=\"\",\"\",'Otras referencias'!B$9)","v":""},null,{"$f":"IF(T8=\"\",\"\",CONCATENATE('Otras referencias'!B$7,\"/Estación\"))","v":""}]
[null,{"$f":"IF(C9=\"\",\"\",IF(COUNTIF($C$3:C9, C9)>1, \"\", C9))","v":""},{"$f":"IF(E9=\"\",\"\",CONCATENATE(DIGITADOR!$M$1,E9,F9))","v":""},"",null,{"$f":"IF(G9=\"\",\"\",VLOOKUP(G9,referentes!S8:W55,4,FALSE))","v":""},null,null,null,null,null,null,null,null,null,null,{"$f":"IF(P9=\"\",\"\",'Otras referencias'!B$10)","v":""},null,{"$f":"IF(R9=\"\",\"\",'Otras referencias'!B$9)","v":""},null,{"$f":"IF(T9=\"\",\"\",CONCATENATE('Otras referencias'!B$7,\"/Estación\"))","v":""}]
[null,{"$f":"IF(C10=\"\",\"\",IF(COUNTIF($C$3:C10, C10)>1, \"\", C10))","v":""},{"$f":"IF(E10=\"\",\"\",CONCATENATE(DIGITADOR!$M$1,E10,F10))","v":""},"",null,{"$f":"IF(G10=\"\",\"\",VLOOKUP(G10,referentes!S9:W56,4,FALSE))","v":""},null,null,null,null,null,null,null,null,null,null,{"$f":"IF(P10=\"\",\"\",'Otras referencias'!B$10)","v":""},null,{"$f":"IF(R10=\"\",\"\",'Otras referencias'!B$9)","v":""},null,{"$f":"IF(T10=\"\",\"\",CONCATENATE('Otras referencias'!B$7,\"/Estación\"))","v":""}]
[null,{"$f":"IF(C11=\"\",\"\",IF(COUNTIF($C$3:C11, C11)>1, \"\", C11))","v":""},{"$f":"IF(E11=\"\",\"\",CONCATENATE(DIGITADOR!$M$1,E11,F11))","v":""},"",null,{"$f":"IF(G11=\"\",\"\",VLOOKUP(G11,referentes!S10:W57,4,FALSE))","v":""},null,null,null,null,null,null,null,null,null,null,{"$f":"IF(P11=\"\",\"\",'Otras referencias'!B$10)","v":""},null,{"$f":"IF(R11=\"\",\"\",'Otras referencias'!B$9)","v":""},null,{"$f":"IF(T11=\"\",\"\",CONCATENATE('Otras referencias'!B$7,\"/Estación\"))","v":""}]
[null,{"$f":"IF(C12=\"\",\"\",IF(COUNTIF($C$3:C12, C12)>1, \"\", C12))","v":""},{"$f":"IF(E12=\"\",\"\",CONCATENATE(DIGITADOR!$M$1,E12,F12))","v":""},"",null,{"$f":"IF(G12=\"\",\"\",VLOOKUP(G12,referentes!S11:W58,4,FALSE))","v":""},null,null,null,null,null,null,null,null,null,null,{"$f":"IF(P12=\"\",\"\",'Otras referencias'!B$10)","v":""},null,{"$f":"IF(R12=\"\",\"\",'Otras referencias'!B$9)","v":""},null,{"$f":"IF(T12=\"\",\"\",CONCATENATE('Otras referencias'!B$7,\"/Estación\"))","v":""}]
[null,{"$f":"IF(C13=\"\",\"\",IF(COUNTIF($C$3:C13, C13)>1, \"\", C13))","v":""},{"$f":"IF(E13=\"\",\"\",CONCATENATE(DIGITADOR!$M$1,E13,F13))","v":""},"",null,{"$f":"IF(G13=\"\",\"\",VLOOKUP(G13,referentes!S12:W59,4,FALSE))","v":""},null,null,null,null,null,null,null,null,null,null,{"$f":"IF(P13=\"\",\"\",'Otras referencias'!B$10)","v":""},null,{"$f":"IF(R13=\"\",\"\",'Otras referencias'!B$9)","v":""},null,{"$f":"IF(T13=\"\",\"\",CONCATENATE('Otras referencias'!B$7,\"/Estación\"))","v":""}]
[null,{"$f":"IF(C14=\"\",\"\",IF(COUNTIF($C$3:C14, C14)>1, \"\", C14))","v":""},{"$f":"IF(E14=\"\",\"\",CONCATENATE(DIGITADOR!$M$1,E14,F14))","v":""},"",null,{"$f":"IF(G14=\"\",\"\",VLOOKUP(G14,referentes!S13:W60,4,FALSE))","v":""},null,null,null,null,null,null,null,null,null,null,{"$f":"IF(P14=\"\",\"\",'Otras referencias'!B$10)","v":""},null,{"$f":"IF(R14=\"\",\"\",'Otras referencias'!B$9)","v":""},null,{"$f":"IF(T14=\"\",\"\",CONCATENATE('Otras referencias'!B$7,\"/Estación\"))","v":""}]
[null,{"$f":"IF(C15=\"\",\"\",IF(COUNTIF($C$3:C15, C15)>1, \"\", C15))","v":""},{"$f":"IF(E15=\"\",\"\",CONCATENATE(DIGITADOR!$M$1,E15,F15))","v":""},"",null,{"$f":"IF(G15=\"\",\"\",VLOOKUP(G15,referentes!S14:W61,4,FALSE))","v":""},null,null,null,null,null,null,null,null,null,null,{"$f":"IF(P15=\"\",\"\",'Otras referencias'!B$10)","v":""},null,{"$f":"IF(R15=\"\",\"\",'Otras referencias'!B$9)","v":""},null,{"$f":"IF(T15=\"\",\"\",CONCATENATE('Otras referencias'!B$7,\"/Estación\"))","v":""}]
[null,{"$f":"IF(C16=\"\",\"\",IF(COUNTIF($C$3:C16, C16)>1, \"\", C16))","v":""},{"$f":"IF(E16=\"\",\"\",CONCATENATE(DIGITADOR!$M$1,E16,F16))","v":""},"",null,{"$f":"IF(G16=\"\",\"\",VLOOKUP(G16,referentes!S15:W62,4,FALSE))","v":""},null,null,null,null,null,null,null,null,null,null,{"$f":"IF(P16=\"\",\"\",'Otras referencias'!B$10)","v":""},null,{"$f":"IF(R16=\"\",\"\",'Otras referencias'!B$9)","v":""},null,{"$f":"IF(T16=\"\",\"\",CONCATENATE('Otras referencias'!B$7,\"/Estación\"))","v":""}]
[null,{"$f":"IF(C17=\"\",\"\",IF(COUNTIF($C$3:C17, C17)>1, \"\", C17))","v":""},{"$f":"IF(E17=\"\",\"\",CONCATENATE(DIGITADOR!$M$1,E17,F17))","v":""},"",null,{"$f":"IF(G17=\"\",\"\",VLOOKUP(G17,referentes!S16:W63,4,FALSE))","v":""},null,null,null,null,null,null,null,null,null,null,{"$f":"IF(P17=\"\",\"\",'Otras referencias'!B$10)","v":""},null,{"$f":"IF(R17=\"\",\"\",'Otras referencias'!B$9)","v":""},null,{"$f":"IF(T17=\"\",\"\",CONCATENATE('Otras referencias'!B$7,\"/Estación\"))","v":""}]
[null,{"$f":"IF(C18=\"\",\"\",IF(COUNTIF($C$3:C18, C18)>1, \"\", C18))","v":""},{"$f":"IF(E18=\"\",\"\",CONCATENATE(DIGITADOR!$M$1,E18,F18))","v":""},"",null,{"$f":"IF(G18=\"\",\"\",VLOOKUP(G18,referentes!S17:W64,4,FALSE))","v":""},null,null,null,null,null,null,null,null,null,null,{"$f":"IF(P18=\"\",\"\",'Otras referencias'!B$10)","v":""},null,{"$f":"IF(R18=\"\",\"\",'Otras referencias'!B$9)","v":""},null,{"$f":"IF(T18=\"\",\"\",CONCATENATE('Otras referencias'!B$7,\"/Estación\"))","v":""}]
[null,{"$f":"IF(C19=\"\",\"\",IF(COUNTIF($C$3:C19, C19)>1, \"\", C19))","v":""},{"$f":"IF(E19=\"\",\"\",CONCATENATE(DIGITADOR!$M$1,E19,F19))","v":""},"",null,{"$f":"IF(G19=\"\",\"\",VLOOKUP(G19,referentes!S18:W65,4,FALSE))","v":""},null,null,null,null,null,null,null,null,null,null,{"$f":"IF(P19=\"\",\"\",'Otras referencias'!B$10)","v":""},null,{"$f":"IF(R19=\"\",\"\",'Otras referencias'!B$9)","v":""},null,{"$f":"IF(T19=\"\",\"\",CONCATENATE('Otras referencias'!B$7,\"/Estación\"))","v":""}]
[null,{"$f":"IF(C20=\"\",\"\",IF(COUNTIF($C$3:C20, C20)>1, \"\", C20))","v":""},{"$f":"IF(E20=\"\",\"\",CONCATENATE(DIGITADOR!$M$1,E20,F20))","v":""},"",null,{"$f":"IF(G20=\"\",\"\",VLOOKUP(G20,referentes!S19:W66,4,FALSE))","v":""},null,null,null,null,null,null,null,null,null,null,{"$f":"IF(P20=\"\",\"\",'Otras referencias'!B$10)","v":""},null,{"$f":"IF(R20=\"\",\"\",'Otras referencias'!B$9)","v":""},null,{"$f":"IF(T20=\"\",\"\",CONCATENATE('Otras referencias'!B$7,\"/Estación\"))","v":""}]
[null,{"$f":"IF(C21=\"\",\"\",IF(COUNTIF($C$3:C21, C21)>1, \"\", C21))","v":""},{"$f":"IF(E21=\"\",\"\",CONCATENATE(DIGITADOR!$M$1,E21,F21))","v":""},"",null,{"$f":"IF(G21=\"\",\"\",VLOOKUP(G21,referentes!S20:W67,4,FALSE))","v":""},null,null,null,null,null,null,null,null,null,null,{"$f":"IF(P21=\"\",\"\",'Otras referencias'!B$10)","v":""},null,{"$f":"IF(R21=\"\",\"\",'Otras referencias'!B$9)","v":""},null,{"$f":"IF(T21=\"\",\"\",CONCATENATE('Otras referencias'!B$7,\"/Estación\"))","v":""}]
[null,{"$f":"IF(C22=\"\",\"\",IF(COUNTIF($C$3:C22, C22)>1, \"\", C22))","v":""},{"$f":"IF(E22=\"\",\"\",CONCATENATE(DIGITADOR!$M$1,E22,F22))","v":""},"",null,{"$f":"IF(G22=\"\",\"\",VLOOKUP(G22,referentes!S21:W68,4,FALSE))","v":""},null,null,null,null,null,null,null,null,null,null,{"$f":"IF(P22=\"\",\"\",'Otras referencias'!B$10)","v":""},null,{"$f":"IF(R22=\"\",\"\",'Otras referencias'!B$9)","v":""},null,{"$f":"IF(T22=\"\",\"\",CONCATENATE('Otras referencias'!B$7,\"/Estación\"))","v":""}]
[null,{"$f":"IF(C23=\"\",\"\",IF(COUNTIF($C$3:C23, C23)>1, \"\", C23))","v":""},{"$f":"IF(E23=\"\",\"\",CONCATENATE(DIGITADOR!$M$1,E23,F23))","v":""},"",null,{"$f":"IF(G23=\"\",\"\",VLOOKUP(G23,referentes!S22:W69,4,FALSE))","v":""},null,null,null,null,null,null,null,null,null,null,{"$f":"IF(P23=\"\",\"\",'Otras referencias'!B$10)","v":""},null,{"$f":"IF(R23=\"\",\"\",'Otras referencias'!B$9)","v":""},null,{"$f":"IF(T23=\"\",\"\",CONCATENATE('Otras referencias'!B$7,\"/Estación\"))","v":""}]
[null,{"$f":"IF(C24=\"\",\"\",IF(COUNTIF($C$3:C24, C24)>1, \"\", C24))","v":""},{"$f":"IF(E24=\"\",\"\",CONCATENATE(DIGITADOR!$M$1,E24,F24))","v":""},"",null,{"$f":"IF(G24=\"\",\"\",VLOOKUP(G24,referentes!S23:W70,4,FALSE))","v":""},null,null,null,null,null,null,null,null,null,null,{"$f":"IF(P24=\"\",\"\",'Otras referencias'!B$10)","v":""},null,{"$f":"IF(R24=\"\",\"\",'Otras referencias'!B$9)","v":""},null,{"$f":"IF(T24=\"\",\"\",CONCATENATE('Otras referencias'!B$7,\"/Estación\"))","v":""}]
[null,{"$f":"IF(C25=\"\",\"\",IF(COUNTIF($C$3:C25, C25)>1, \"\", C25))","v":""},{"$f":"IF(E25=\"\",\"\",CONCATENATE(DIGITADOR!$M$1,E25,F25))","v":""},"",null,{"$f":"IF(G25=\"\",\"\",VLOOKUP(G25,referentes!S24:W71,4,FALSE))","v":""},null,null,null,null,null,null,null,null,null,null,{"$f":"IF(P25=\"\",\"\",'Otras referencias'!B$10)","v":""},null,{"$f":"IF(R25=\"\",\"\",'Otras referencias'!B$9)","v":""},null,{"$f":"IF(T25=\"\",\"\",CONCATENATE('Otras referencias'!B$7,\"/Estación\"))","v":""}]
[null,{"$f":"IF(C26=\"\",\"\",IF(COUNTIF($C$3:C26, C26)>1, \"\", C26))","v":""},{"$f":"IF(E26=\"\",\"\",CONCATENATE(DIGITADOR!$M$1,E26,F26))","v":""},"",null,{"$f":"IF(G26=\"\",\"\",VLOOKUP(G26,referentes!S25:W72,4,FALSE))","v":""},null,null,null,null,null,null,null,null,null,null,{"$f":"IF(P26=\"\",\"\",'Otras referencias'!B$10)","v":""},null,{"$f":"IF(R26=\"\",\"\",'Otras referencias'!B$9)","v":""},null,{"$f":"IF(T26=\"\",\"\",CONCATENATE('Otras referencias'!B$7,\"/Estación\"))","v":""}]
[null,{"$f":"IF(C27=\"\",\"\",IF(COUNTIF($C$3:C27, C27)>1, \"\", C27))","v":""},{"$f":"IF(E27=\"\",\"\",CONCATENATE(DIGITADOR!$M$1,E27,F27))","v":""},"",null,{"$f":"IF(G27=\"\",\"\",VLOOKUP(G27,referentes!S26:W73,4,FALSE))","v":""},null,null,null,null,null,null,null,null,null,null,{"$f":"IF(P27=\"\",\"\",'Otras referencias'!B$10)","v":""},null,{"$f":"IF(R27=\"\",\"\",'Otras referencias'!B$9)","v":""},null,{"$f":"IF(T27=\"\",\"\",CONCATENATE('Otras referencias'!B$7,\"/Estación\"))","v":""}]
[null,{"$f":"IF(C28=\"\",\"\",IF(COUNTIF($C$3:C28, C28)>1, \"\", C28))","v":""},{"$f":"IF(E28=\"\",\"\",CONCATENATE(DIGITADOR!$M$1,E28,F28))","v":""},"",null,{"$f":"IF(G28=\"\",\"\",VLOOKUP(G28,referentes!S27:W74,4,FALSE))","v":""},null,null,null,null,null,null,null,null,null,null,{"$f":"IF(P28=\"\",\"\",'Otras referencias'!B$10)","v":""},null,{"$f":"IF(R28=\"\",\"\",'Otras referencias'!B$9)","v":""},null,{"$f":"IF(T28=\"\",\"\",CONCATENATE('Otras referencias'!B$7,\"/Estación\"))","v":""}]
[null,{"$f":"IF(C29=\"\",\"\",IF(COUNTIF($C$3:C29, C29)>1, \"\", C29))","v":""},{"$f":"IF(E29=\"\",\"\",CONCATENATE(DIGITADOR!$M$1,E29,F29))","v":""},"",null,{"$f":"IF(G29=\"\",\"\",VLOOKUP(G29,referentes!S28:W75,4,FALSE))","v":""},null,null,null,null,null,null,null,null,null,null,{"$f":"IF(P29=\"\",\"\",'Otras referencias'!B$10)","v":""},null,{"$f":"IF(R29=\"\",\"\",'Otras referencias'!B$9)","v":""},null,{"$f":"IF(T29=\"\",\"\",CONCATENATE('Otras referencias'!B$7,\"/Estación\"))","v":""}]
[null,{"$f":"IF(C30=\"\",\"\",IF(COUNTIF($C$3:C30, C30)>1, \"\", C30))","v":""},{"$f":"IF(E30=\"\",\"\",CONCATENATE(DIGITADOR!$M$1,E30,F30))","v":""},"",null,{"$f":"IF(G30=\"\",\"\",VLOOKUP(G30,referentes!S29:W76,4,FALSE))","v":""},null,null,null,null,null,null,null,null,null,null,{"$f":"IF(P30=\"\",\"\",'Otras referencias'!B$10)","v":""},null,{"$f":"IF(R30=\"\",\"\",'Otras referencias'!B$9)","v":""},null,{"$f":"IF(T30=\"\",\"\",CONCATENATE('Otras referencias'!B$7,\"/Estación\"))","v":""}]
[null,{"$f":"IF(C31=\"\",\"\",IF(COUNTIF($C$3:C31, C31)>1, \"\", C31))","v":""},{"$f":"IF(E31=\"\",\"\",CONCATENATE(DIGITADOR!$M$1,E31,F31))","v":""},"",null,{"$f":"IF(G31=\"\",\"\",VLOOKUP(G31,referentes!S30:W77,4,FALSE))","v":""},null,null,null,null,null,null,null,null,null,null,{"$f":"IF(P31=\"\",\"\",'Otras referencias'!B$10)","v":""},null,{"$f":"IF(R31=\"\",\"\",'Otras referencias'!B$9)","v":""},null,{"$f":"IF(T31=\"\",\"\",CONCATENATE('Otras referencias'!B$7,\"/Estación\"))","v":""}]
[null,{"$f":"IF(C32=\"\",\"\",IF(COUNTIF($C$3:C32, C32)>1, \"\", C32))","v":""},{"$f":"IF(E32=\"\",\"\",CONCATENATE(DIGITADOR!$M$1,E32,F32))","v":""},"",null,{"$f":"IF(G32=\"\",\"\",VLOOKUP(G32,referentes!S31:W78,4,FALSE))","v":""},null,null,null,null,null,null,null,null,null,null,{"$f":"IF(P32=\"\",\"\",'Otras referencias'!B$10)","v":""},null,{"$f":"IF(R32=\"\",\"\",'Otras referencias'!B$9)","v":""},null,{"$f":"IF(T32=\"\",\"\",CONCATENATE('Otras referencias'!B$7,\"/Estación\"))","v":""}]
[null,{"$f":"IF(C33=\"\",\"\",IF(COUNTIF($C$3:C33, C33)>1, \"\", C33))","v":""},{"$f":"IF(E33=\"\",\"\",CONCATENATE(DIGITADOR!$M$1,E33,F33))","v":""},"",null,{"$f":"IF(G33=\"\",\"\",VLOOKUP(G33,referentes!S32:W79,4,FALSE))","v":""},null,null,null,null,null,null,null,null,null,null,{"$f":"IF(P33=\"\",\"\",'Otras referencias'!B$10)","v":""},null,{"$f":"IF(R33=\"\",\"\",'Otras referencias'!B$9)","v":""},null,{"$f":"IF(T33=\"\",\"\",CONCATENATE('Otras referencias'!B$7,\"/Estación\"))","v":""}]
[null,{"$f":"IF(C34=\"\",\"\",IF(COUNTIF($C$3:C34, C34)>1, \"\", C34))","v":""},{"$f":"IF(E34=\"\",\"\",CONCATENATE(DIGITADOR!$M$1,E34,F34))","v":""},"",null,{"$f":"IF(G34=\"\",\"\",VLOOKUP(G34,referentes!S33:W80,4,FALSE))","v":""},null,null,null,null,null,null,null,null,null,null,{"$f":"IF(P34=\"\",\"\",'Otras referencias'!B$10)","v":""},null,{"$f":"IF(R34=\"\",\"\",'Otras referencias'!B$9)","v":""},null,{"$f":"IF(T34=\"\",\"\",CONCATENATE('Otras referencias'!B$7,\"/Estación\"))","v":""}]
[null,{"$f":"IF(C35=\"\",\"\",IF(COUNTIF($C$3:C35, C35)>1, \"\", C35))","v":""},{"$f":"IF(E35=\"\",\"\",CONCATENATE(DIGITADOR!$M$1,E35,F35))","v":""},"",null,{"$f":"IF(G35=\"\",\"\",VLOOKUP(G35,referentes!S34:W81,4,FALSE))","v":""},null,null,null,null,null,null,null,null,null,null,{"$f":"IF(P35=\"\",\"\",'Otras referencias'!B$10)","v":""},null,{"$f":"IF(R35=\"\",\"\",'Otras referencias'!B$9)","v":""},null,{"$f":"IF(T35=\"\",\"\",CONCATENATE('Otras referencias'!B$7,\"/Estación\"))","v":""}]
[null,{"$f":"IF(C36=\"\",\"\",IF(COUNTIF($C$3:C36, C36)>1, \"\", C36))","v":""},{"$f":"IF(E36=\"\",\"\",CONCATENATE(DIGITADOR!$M$1,E36,F36))","v":""},"",null,{"$f":"IF(G36=\"\",\"\",VLOOKUP(G36,referentes!S35:W82,4,FALSE))","v":""},null,null,null,null,null,null,null,null,null,null,{"$f":"IF(P36=\"\",\"\",'Otras referencias'!B$10)","v":""},null,{"$f":"IF(R36=\"\",\"\",'Otras referencias'!B$9)","v":""},null,{"$f":"IF(T36=\"\",\"\",CONCATENATE('Otras referencias'!B$7,\"/Estación\"))","v":""}]
[null,{"$f":"IF(C37=\"\",\"\",IF(COUNTIF($C$3:C37, C37)>1, \"\", C37))","v":""},{"$f":"IF(E37=\"\",\"\",CONCATENATE(DIGITADOR!$M$1,E37,F37))","v":""},"",null,{"$f":"IF(G37=\"\",\"\",VLOOKUP(G37,referentes!S36:W83,4,FALSE))","v":""},null,null,null,null,null,null,null,null,null,null,{"$f":"IF(P37=\"\",\"\",'Otras referencias'!B$10)","v":""},null,{"$f":"IF(R37=\"\",\"\",'Otras referencias'!B$9)","v":""},null,{"$f":"IF(T37=\"\",\"\",CONCATENATE('Otras referencias'!B$7,\"/Estación\"))","v":""}]
[null,{"$f":"IF(C38=\"\",\"\",IF(COUNTIF($C$3:C38, C38)>1, \"\", C38))","v":""},{"$f":"IF(E38=\"\",\"\",CONCATENATE(DIGITADOR!$M$1,E38,F38))","v":""},"",null,{"$f":"IF(G38=\"\",\"\",VLOOKUP(G38,referentes!S37:W84,4,FALSE))","v":""},null,null,null,null,null,null,null,null,null,null,{"$f":"IF(P38=\"\",\"\",'Otras referencias'!B$10)","v":""},null,{"$f":"IF(R38=\"\",\"\",'Otras referencias'!B$9)","v":""},null,{"$f":"IF(T38=\"\",\"\",CONCATENATE('Otras referencias'!B$7,\"/Estación\"))","v":""}]
[null,{"$f":"IF(C39=\"\",\"\",IF(COUNTIF($C$3:C39, C39)>1, \"\", C39))","v":""},{"$f":"IF(E39=\"\",\"\",CONCATENATE(DIGITADOR!$M$1,E39,F39))","v":""},"",null,{"$f":"IF(G39=\"\",\"\",VLOOKUP(G39,referentes!S38:W85,4,FALSE))","v":""},null,null,null,null,null,null,null,null,null,null,{"$f":"IF(P39=\"\",\"\",'Otras referencias'!B$10)","v":""},null,{"$f":"IF(R39=\"\",\"\",'Otras referencias'!B$9)","v":""},null,{"$f":"IF(T39=\"\",\"\",CONCATENATE('Otras referencias'!B$7,\"/Estación\"))","v":""}]
[null,{"$f":"IF(C40=\"\",\"\",IF(COUNTIF($C$3:C40, C40)>1, \"\", C40))","v":""},{"$f":"IF(E40=\"\",\"\",CONCATENATE(DIGITADOR!$M$1,E40,F40))","v":""},"",null,{"$f":"IF(G40=\"\",\"\",VLOOKUP(G40,referentes!S39:W86,4,FALSE))","v":""},null,null,null,null,null,null,null,null,null,null,{"$f":"IF(P40=\"\",\"\",'Otras referencias'!B$10)","v":""},null,{"$f":"IF(R40=\"\",\"\",'Otras referencias'!B$9)","v":""},null,{"$f":"IF(T40=\"\",\"\",CONCATENATE('Otras referencias'!B$7,\"/Estación\"))","v":""}]
[null,{"$f":"IF(C41=\"\",\"\",IF(COUNTIF($C$3:C41, C41)>1, \"\", C41))","v":""},{"$f":"IF(E41=\"\",\"\",CONCATENATE(DIGITADOR!$M$1,E41,F41))","v":""},"",null,{"$f":"IF(G41=\"\",\"\",VLOOKUP(G41,referentes!S40:W87,4,FALSE))","v":""},null,null,null,null,null,null,null,null,null,null,{"$f":"IF(P41=\"\",\"\",'Otras referencias'!B$10)","v":""},null,{"$f":"IF(R41=\"\",\"\",'Otras referencias'!B$9)","v":""},null,{"$f":"IF(T41=\"\",\"\",CONCATENATE('Otras referencias'!B$7,\"/Estación\"))","v":""}]
[null,{"$f":"IF(C42=\"\",\"\",IF(COUNTIF($C$3:C42, C42)>1, \"\", C42))","v":""},{"$f":"IF(E42=\"\",\"\",CONCATENATE(DIGITADOR!$M$1,E42,F42))","v":""},"",null,{"$f":"IF(G42=\"\",\"\",VLOOKUP(G42,referentes!S41:W88,4,FALSE))","v":""},null,null,null,null,null,null,null,null,null,null,{"$f":"IF(P42=\"\",\"\",'Otras referencias'!B$10)","v":""},null,{"$f":"IF(R42=\"\",\"\",'Otras referencias'!B$9)","v":""},null,{"$f":"IF(T42=\"\",\"\",CONCATENATE('Otras referencias'!B$7,\"/Estación\"))","v":""}]
[null,{"$f":"IF(C43=\"\",\"\",IF(COUNTIF($C$3:C43, C43)>1, \"\", C43))","v":""},{"$f":"IF(E43=\"\",\"\",CONCATENATE(DIGITADOR!$M$1,E43,F43))","v":""},"",null,{"$f":"IF(G43=\"\",\"\",VLOOKUP(G43,referentes!S42:W89,4,FALSE))","v":""},null,null,null,null,null,null,null,null,null,null,{"$f":"IF(P43=\"\",\"\",'Otras referencias'!B$10)","v":""},null,{"$f":"IF(R43=\"\",\"\",'Otras referencias'!B$9)","v":""},null,{"$f":"IF(T43=\"\",\"\",CONCATENATE('Otras referencias'!B$7,\"/Estación\"))","v":""}]
[null,{"$f":"IF(C44=\"\",\"\",IF(COUNTIF($C$3:C44, C44)>1, \"\", C44))","v":""},{"$f":"IF(E44=\"\",\"\",CONCATENATE(DIGITADOR!$M$1,E44,F44))","v":""},"",null,{"$f":"IF(G44=\"\",\"\",VLOOKUP(G44,referentes!S43:W90,4,FALSE))","v":""},null,null,null,null,null,null,null,null,null,null,{"$f":"IF(P44=\"\",\"\",'Otras referencias'!B$10)","v":""},null,{"$f":"IF(R44=\"\",\"\",'Otras referencias'!B$9)","v":""},null,{"$f":"IF(T44=\"\",\"\",CONCATENATE('Otras referencias'!B$7,\"/Estación\"))","v":""}]
[null,{"$f":"IF(C45=\"\",\"\",IF(COUNTIF($C$3:C45, C45)>1, \"\", C45))","v":""},{"$f":"IF(E45=\"\",\"\",CONCATENATE(DIGITADOR!$M$1,E45,F45))","v":""},"",null,{"$f":"IF(G45=\"\",\"\",VLOOKUP(G45,referentes!S44:W91,4,FALSE))","v":""},null,null,null,null,null,null,null,null,null,null,{"$f":"IF(P45=\"\",\"\",'Otras referencias'!B$10)","v":""},null,{"$f":"IF(R45=\"\",\"\",'Otras referencias'!B$9)","v":""},null,{"$f":"IF(T45=\"\",\"\",CONCATENATE('Otras referencias'!B$7,\"/Estación\"))","v":""}]
[null,{"$f":"IF(C46=\"\",\"\",IF(COUNTIF($C$3:C46, C46)>1, \"\", C46))","v":""},{"$f":"IF(E46=\"\",\"\",CONCATENATE(DIGITADOR!$M$1,E46,F46))","v":""},"",null,{"$f":"IF(G46=\"\",\"\",VLOOKUP(G46,referentes!S45:W92,4,FALSE))","v":""},null,null,null,null,null,null,null,null,null,null,{"$f":"IF(P46=\"\",\"\",'Otras referencias'!B$10)","v":""},null,{"$f":"IF(R46=\"\",\"\",'Otras referencias'!B$9)","v":""},null,{"$f":"IF(T46=\"\",\"\",CONCATENATE('Otras referencias'!B$7,\"/Estación\"))","v":""}]
[null,{"$f":"IF(C47=\"\",\"\",IF(COUNTIF($C$3:C47, C47)>1, \"\", C47))","v":""},{"$f":"IF(E47=\"\",\"\",CONCATENATE(DIGITADOR!$M$1,E47,F47))","v":""},"",null,{"$f":"IF(G47=\"\",\"\",VLOOKUP(G47,referentes!S46:W93,4,FALSE))","v":""},null,null,null,null,null,null,null,null,null,null,{"$f":"IF(P47=\"\",\"\",'Otras referencias'!B$10)","v":""},null,{"$f":"IF(R47=\"\",\"\",'Otras referencias'!B$9)","v":""},null,{"$f":"IF(T47=\"\",\"\",CONCATENATE('Otras referencias'!B$7,\"/Estación\"))","v":""}]
[null,{"$f":"IF(C48=\"\",\"\",IF(COUNTIF($C$3:C48, C48)>1, \"\", C48))","v":""},{"$f":"IF(E48=\"\",\"\",CONCATENATE(DIGITADOR!$M$1,E48,F48))","v":""},"",null,{"$f":"IF(G48=\"\",\"\",VLOOKUP(G48,referentes!S47:W94,4,FALSE))","v":""},null,null,null,null,null,null,null,null,null,null,{"$f":"IF(P48=\"\",\"\",'Otras referencias'!B$10)","v":""},null,{"$f":"IF(R48=\"\",\"\",'Otras referencias'!B$9)","v":""},null,{"$f":"IF(T48=\"\",\"\",CONCATENATE('Otras referencias'!B$7,\"/Estación\"))","v":""}]
[null,{"$f":"IF(C49=\"\",\"\",IF(COUNTIF($C$3:C49, C49)>1, \"\", C49))","v":""},{"$f":"IF(E49=\"\",\"\",CONCATENATE(DIGITADOR!$M$1,E49,F49))","v":""},"",null,{"$f":"IF(G49=\"\",\"\",VLOOKUP(G49,referentes!S48:W95,4,FALSE))","v":""},null,null,null,null,null,null,null,null,null,null,{"$f":"IF(P49=\"\",\"\",'Otras referencias'!B$10)","v":""},null,{"$f":"IF(R49=\"\",\"\",'Otras referencias'!B$9)","v":""},null,{"$f":"IF(T49=\"\",\"\",CONCATENATE('Otras referencias'!B$7,\"/Estación\"))","v":""}]
[null,{"$f":"IF(C50=\"\",\"\",IF(COUNTIF($C$3:C50, C50)>1, \"\", C50))","v":""},{"$f":"IF(E50=\"\",\"\",CONCATENATE(DIGITADOR!$M$1,E50,F50))","v":""},"",null,{"$f":"IF(G50=\"\",\"\",VLOOKUP(G50,referentes!S49:W96,4,FALSE))","v":""},null,null,null,null,null,null,null,null,null,null,{"$f":"IF(P50=\"\",\"\",'Otras referencias'!B$10)","v":""},null,{"$f":"IF(R50=\"\",\"\",'Otras referencias'!B$9)","v":""},null,{"$f":"IF(T50=\"\",\"\",CONCATENATE('Otras referencias'!B$7,\"/Estación\"))","v":""}]
[null,{"$f":"IF(C51=\"\",\"\",IF(COUNTIF($C$3:C51, C51)>1, \"\", C51))","v":""},{"$f":"IF(E51=\"\",\"\",CONCATENATE(DIGITADOR!$M$1,E51,F51))","v":""},"",null,{"$f":"IF(G51=\"\",\"\",VLOOKUP(G51,referentes!S50:W97,4,FALSE))","v":""},null,null,null,null,null,null,null,null,null,null,{"$f":"IF(P51=\"\",\"\",'Otras referencias'!B$10)","v":""},null,{"$f":"IF(R51=\"\",\"\",'Otras referencias'!B$9)","v":""},null,{"$f":"IF(T51=\"\",\"\",CONCATENATE('Otras referencias'!B$7,\"/Estación\"))","v":""}]
[null,{"$f":"IF(C52=\"\",\"\",IF(COUNTIF($C$3:C52, C52)>1, \"\", C52))","v":""},{"$f":"IF(E52=\"\",\"\",CONCATENATE(DIGITADOR!$M$1,E52,F52))","v":""},"",null,{"$f":"IF(G52=\"\",\"\",VLOOKUP(G52,referentes!S51:W98,4,FALSE))","v":""},null,null,null,null,null,null,null,null,null,null,{"$f":"IF(P52=\"\",\"\",'Otras referencias'!B$10)","v":""},null,{"$f":"IF(R52=\"\",\"\",'Otras referencias'!B$9)","v":""},null,{"$f":"IF(T52=\"\",\"\",CONCATENATE('Otras referencias'!B$7,\"/Estación\"))","v":""}]
[null,{"$f":"IF(C53=\"\",\"\",IF(COUNTIF($C$3:C53, C53)>1, \"\", C53))","v":""},{"$f":"IF(E53=\"\",\"\",CONCATENATE(DIGITADOR!$M$1,E53,F53))","v":""},"",null,{"$f":"IF(G53=\"\",\"\",VLOOKUP(G53,referentes!S52:W99,4,FALSE))","v":""},null,null,null,null,null,null,null,null,null,null,{"$f":"IF(P53=\"\",\"\",'Otras referencias'!B$10)","v":""},null,{"$f":"IF(R53=\"\",\"\",'Otras referencias'!B$9)","v":""},null,{"$f":"IF(T53=\"\",\"\",CONCATENATE('Otras referencias'!B$7,\"/Estación\"))","v":""}]
[null,{"$f":"IF(C54=\"\",\"\",IF(COUNTIF($C$3:C54, C54)>1, \"\", C54))","v":""},{"$f":"IF(E54=\"\",\"\",CONCATENATE(DIGITADOR!$M$1,E54,F54))","v":""},"",null,{"$f":"IF(G54=\"\",\"\",VLOOKUP(G54,referentes!S53:W100,4,FALSE))","v":""},null,null,null,null,null,null,null,null,null,null,{"$f":"IF(P54=\"\",\"\",'Otras referencias'!B$10)","v":""},null,{"$f":"IF(R54=\"\",\"\",'Otras referencias'!B$9)","v":""},null,{"$f":"IF(T54=\"\",\"\",CONCATENATE('Otras referencias'!B$7,\"/Estación\"))","v":""}]
[null,{"$f":"IF(C55=\"\",\"\",IF(COUNTIF($C$3:C55, C55)>1, \"\", C55))","v":""},{"$f":"IF(E55=\"\",\"\",CONCATENATE(DIGITADOR!$M$1,E55,F55))","v":""},"",null,{"$f":"IF(G55=\"\",\"\",VLOOKUP(G55,referentes!S54:W101,4,FALSE))","v":""},null,null,null,null,null,null,null,null,null,null,{"$f":"IF(P55=\"\",\"\",'Otras referencias'!B$10)","v":""},null,{"$f":"IF(R55=\"\",\"\",'Otras referencias'!B$9)","v":""},null,{"$f":"IF(T55=\"\",\"\",CONCATENATE('Otras referencias'!B$7,\"/Estación\"))","v":""}]
[null,{"$f":"IF(C56=\"\",\"\",IF(COUNTIF($C$3:C56, C56)>1, \"\", C56))","v":""},{"$f":"IF(E56=\"\",\"\",CONCATENATE(DIGITADOR!$M$1,E56,F56))","v":""},"",null,{"$f":"IF(G56=\"\",\"\",VLOOKUP(G56,referentes!S55:W102,4,FALSE))","v":""},null,null,null,null,null,null,null,null,null,null,{"$f":"IF(P56=\"\",\"\",'Otras referencias'!B$10)","v":""},null,{"$f":"IF(R56=\"\",\"\",'Otras referencias'!B$9)","v":""},null,{"$f":"IF(T56=\"\",\"\",CONCATENATE('Otras referencias'!B$7,\"/Estación\"))","v":""}]
[null,{"$f":"IF(C57=\"\",\"\",IF(COUNTIF($C$3:C57, C57)>1, \"\", C57))","v":""},{"$f":"IF(E57=\"\",\"\",CONCATENATE(DIGITADOR!$M$1,E57,F57))","v":""},"",null,{"$f":"IF(G57=\"\",\"\",VLOOKUP(G57,referentes!S56:W103,4,FALSE))","v":""},null,null,null,null,null,null,null,null,null,null,{"$f":"IF(P57=\"\",\"\",'Otras referencias'!B$10)","v":""},null,{"$f":"IF(R57=\"\",\"\",'Otras referencias'!B$9)","v":""},null,{"$f":"IF(T57=\"\",\"\",CONCATENATE('Otras referencias'!B$7,\"/Estación\"))","v":""}]
[null,{"$f":"IF(C58=\"\",\"\",IF(COUNTIF($C$3:C58, C58)>1, \"\", C58))","v":""},{"$f":"IF(E58=\"\",\"\",CONCATENATE(DIGITADOR!$M$1,E58,F58))","v":""},"",null,{"$f":"IF(G58=\"\",\"\",VLOOKUP(G58,referentes!S57:W104,4,FALSE))","v":""},null,null,null,null,null,null,null,null,null,null,{"$f":"IF(P58=\"\",\"\",'Otras referencias'!B$10)","v":""},null,{"$f":"IF(R58=\"\",\"\",'Otras referencias'!B$9)","v":""},null,{"$f":"IF(T58=\"\",\"\",CONCATENATE('Otras referencias'!B$7,\"/Estación\"))","v":""}]
[null,{"$f":"IF(C59=\"\",\"\",IF(COUNTIF($C$3:C59, C59)>1, \"\", C59))","v":""},{"$f":"IF(E59=\"\",\"\",CONCATENATE(DIGITADOR!$M$1,E59,F59))","v":""},"",null,{"$f":"IF(G59=\"\",\"\",VLOOKUP(G59,referentes!S58:W105,4,FALSE))","v":""},null,null,null,null,null,null,null,null,null,null,{"$f":"IF(P59=\"\",\"\",'Otras referencias'!B$10)","v":""},null,{"$f":"IF(R59=\"\",\"\",'Otras referencias'!B$9)","v":""},null,{"$f":"IF(T59=\"\",\"\",CONCATENATE('Otras referencias'!B$7,\"/Estación\"))","v":""}]
[null,{"$f":"IF(C60=\"\",\"\",IF(COUNTIF($C$3:C60, C60)>1, \"\", C60))","v":""},{"$f":"IF(E60=\"\",\"\",CONCATENATE(DIGITADOR!$M$1,E60,F60))","v":""},"",null,{"$f":"IF(G60=\"\",\"\",VLOOKUP(G60,referentes!S59:W106,4,FALSE))","v":""},null,null,null,null,null,null,null,null,null,null,{"$f":"IF(P60=\"\",\"\",'Otras referencias'!B$10)","v":""},null,{"$f":"IF(R60=\"\",\"\",'Otras referencias'!B$9)","v":""},null,{"$f":"IF(T60=\"\",\"\",CONCATENATE('Otras referencias'!B$7,\"/Estación\"))","v":""}]
[null,{"$f":"IF(C61=\"\",\"\",IF(COUNTIF($C$3:C61, C61)>1, \"\", C61))","v":""},{"$f":"IF(E61=\"\",\"\",CONCATENATE(DIGITADOR!$M$1,E61,F61))","v":""},"",null,{"$f":"IF(G61=\"\",\"\",VLOOKUP(G61,referentes!S60:W107,4,FALSE))","v":""},null,null,null,null,null,null,null,null,null,null,{"$f":"IF(P61=\"\",\"\",'Otras referencias'!B$10)","v":""},null,{"$f":"IF(R61=\"\",\"\",'Otras referencias'!B$9)","v":""},null,{"$f":"IF(T61=\"\",\"\",CONCATENATE('Otras referencias'!B$7,\"/Estación\"))","v":""}]
[null,{"$f":"IF(C62=\"\",\"\",IF(COUNTIF($C$3:C62, C62)>1, \"\", C62))","v":""},{"$f":"IF(E62=\"\",\"\",CONCATENATE(DIGITADOR!$M$1,E62,F62))","v":""},"",null,{"$f":"IF(G62=\"\",\"\",VLOOKUP(G62,referentes!S61:W108,4,FALSE))","v":""},null,null,null,null,null,null,null,null,null,null,{"$f":"IF(P62=\"\",\"\",'Otras referencias'!B$10)","v":""},null,{"$f":"IF(R62=\"\",\"\",'Otras referencias'!B$9)","v":""},null,{"$f":"IF(T62=\"\",\"\",CONCATENATE('Otras referencias'!B$7,\"/Estación\"))","v":""}]
[null,{"$f":"IF(C63=\"\",\"\",IF(COUNTIF($C$3:C63, C63)>1, \"\", C63))","v":""},{"$f":"IF(E63=\"\",\"\",CONCATENATE(DIGITADOR!$M$1,E63,F63))","v":""},"",null,{"$f":"IF(G63=\"\",\"\",VLOOKUP(G63,referentes!S62:W109,4,FALSE))","v":""},null,null,null,null,null,null,null,null,null,null,{"$f":"IF(P63=\"\",\"\",'Otras referencias'!B$10)","v":""},null,{"$f":"IF(R63=\"\",\"\",'Otras referencias'!B$9)","v":""},null,{"$f":"IF(T63=\"\",\"\",CONCATENATE('Otras referencias'!B$7,\"/Estación\"))","v":""}]
[null,{"$f":"IF(C64=\"\",\"\",IF(COUNTIF($C$3:C64, C64)>1, \"\", C64))","v":""},{"$f":"IF(E64=\"\",\"\",CONCATENATE(DIGITADOR!$M$1,E64,F64))","v":""},"",null,{"$f":"IF(G64=\"\",\"\",VLOOKUP(G64,referentes!S63:W110,4,FALSE))","v":""},null,null,null,null,null,null,null,null,null,null,{"$f":"IF(P64=\"\",\"\",'Otras referencias'!B$10)","v":""},null,{"$f":"IF(R64=\"\",\"\",'Otras referencias'!B$9)","v":""},null,{"$f":"IF(T64=\"\",\"\",CONCATENATE('Otras referencias'!B$7,\"/Estación\"))","v":""}]
[null,{"$f":"IF(C65=\"\",\"\",IF(COUNTIF($C$3:C65, C65)>1, \"\", C65))","v":""},{"$f":"IF(E65=\"\",\"\",CONCATENATE(DIGITADOR!$M$1,E65,F65))","v":""},"",null,{"$f":"IF(G65=\"\",\"\",VLOOKUP(G65,referentes!S64:W111,4,FALSE))","v":""},null,null,null,null,null,null,null,null,null,null,{"$f":"IF(P65=\"\",\"\",'Otras referencias'!B$10)","v":""},null,{"$f":"IF(R65=\"\",\"\",'Otras referencias'!B$9)","v":""},null,{"$f":"IF(T65=\"\",\"\",CONCATENATE('Otras referencias'!B$7,\"/Estación\"))","v":""}]
[null,{"$f":"IF(C66=\"\",\"\",IF(COUNTIF($C$3:C66, C66)>1, \"\", C66))","v":""},{"$f":"IF(E66=\"\",\"\",CONCATENATE(DIGITADOR!$M$1,E66,F66))","v":""},"",null,{"$f":"IF(G66=\"\",\"\",VLOOKUP(G66,referentes!S65:W112,4,FALSE))","v":""},null,null,null,null,null,null,null,null,null,null,{"$f":"IF(P66=\"\",\"\",'Otras referencias'!B$10)","v":""},null,{"$f":"IF(R66=\"\",\"\",'Otras referencias'!B$9)","v":""},null,{"$f":"IF(T66=\"\",\"\",CONCATENATE('Otras referencias'!B$7,\"/Estación\"))","v":""}]
[null,{"$f":"IF(C67=\"\",\"\",IF(COUNTIF($C$3:C67, C67)>1, \"\", C67))","v":""},{"$f":"IF(E67=\"\",\"\",CONCATENATE(DIGITADOR!$M$1,E67,F67))","v":""},"",null,{"$f":"IF(G67=\"\",\"\",VLOOKUP(G67,referentes!S66:W113,4,FALSE))","v":""},null,null,null,null,null,null,null,null,null,null,{"$f":"IF(P67=\"\",\"\",'Otras referencias'!B$10)","v":""},null,{"$f":"IF(R67=\"\",\"\",'Otras referencias'!B$9)","v":""},null,{"$f":"IF(T67=\"\",\"\",CONCATENATE('Otras referencias'!B$7,\"/Estación\"))","v":""}]
[null,{"$f":"IF(C68=\"\",\"\",IF(COUNTIF($C$3:C68, C68)>1, \"\", C68))","v":""},{"$f":"IF(E68=\"\",\"\",CONCATENATE(DIGITADOR!$M$1,E68,F68))","v":""},{"$f":"IF(C68=\"\",\"\",CONCATENATE(C68,ROW()-2))","v":""},null,{"$f":"IF(G68=\"\",\"\",VLOOKUP(G68,referentes!S67:W114,4,FALSE))","v":""},null,null,null,null,null,null,null,null,null,null,{"$f":"IF(P68=\"\",\"\",'Otras referencias'!B$10)","v":""},null,{"$f":"IF(R68=\"\",\"\",'Otras referencias'!B$9)","v":""},null,{"$f":"IF(T68=\"\",\"\",CONCATENATE('Otras referencias'!B$7,\"/Estación\"))","v":""}]
[null,{"$f":"IF(C69=\"\",\"\",IF(COUNTIF($C$3:C69, C69)>1, \"\", C69))","v":""},{"$f":"IF(E69=\"\",\"\",CONCATENATE(DIGITADOR!$M$1,E69,F69))","v":""},"",null,{"$f":"IF(G69=\"\",\"\",VLOOKUP(G69,referentes!S68:W115,4,FALSE))","v":""},null,null,null,null,null,null,null,null,null,null,{"$f":"IF(P69=\"\",\"\",'Otras referencias'!B$10)","v":""},null,{"$f":"IF(R69=\"\",\"\",'Otras referencias'!B$9)","v":""},null,{"$f":"IF(T69=\"\",\"\",CONCATENATE('Otras referencias'!B$7,\"/Estación\"))","v":""}]
[null,{"$f":"IF(C70=\"\",\"\",IF(COUNTIF($C$3:C70, C70)>1, \"\", C70))","v":""},{"$f":"IF(E70=\"\",\"\",CONCATENATE(DIGITADOR!$M$1,E70,F70))","v":""},"",null,{"$f":"IF(G70=\"\",\"\",VLOOKUP(G70,referentes!S69:W116,4,FALSE))","v":""},null,null,null,null,null,null,null,null,null,null,{"$f":"IF(P70=\"\",\"\",'Otras referencias'!B$10)","v":""},null,{"$f":"IF(R70=\"\",\"\",'Otras referencias'!B$9)","v":""},null,{"$f":"IF(T70=\"\",\"\",CONCATENATE('Otras referencias'!B$7,\"/Estación\"))","v":""}]
[null,{"$f":"IF(C71=\"\",\"\",IF(COUNTIF($C$3:C71, C71)>1, \"\", C71))","v":""},{"$f":"IF(E71=\"\",\"\",CONCATENATE(DIGITADOR!$M$1,E71,F71))","v":""},"",null,{"$f":"IF(G71=\"\",\"\",VLOOKUP(G71,referentes!S70:W117,4,FALSE))","v":""},null,null,null,null,null,null,null,null,null,null,{"$f":"IF(P71=\"\",\"\",'Otras referencias'!B$10)","v":""},null,{"$f":"IF(R71=\"\",\"\",'Otras referencias'!B$9)","v":""},null,{"$f":"IF(T71=\"\",\"\",CONCATENATE('Otras referencias'!B$7,\"/Estación\"))","v":""}]
[null,{"$f":"IF(C72=\"\",\"\",IF(COUNTIF($C$3:C72, C72)>1, \"\", C72))","v":""},{"$f":"IF(E72=\"\",\"\",CONCATENATE(DIGITADOR!$M$1,E72,F72))","v":""},"",null,{"$f":"IF(G72=\"\",\"\",VLOOKUP(G72,referentes!S71:W118,4,FALSE))","v":""},null,null,null,null,null,null,null,null,null,null,{"$f":"IF(P72=\"\",\"\",'Otras referencias'!B$10)","v":""},null,{"$f":"IF(R72=\"\",\"\",'Otras referencias'!B$9)","v":""},null,{"$f":"IF(T72=\"\",\"\",CONCATENATE('Otras referencias'!B$7,\"/Estación\"))","v":""}]
[null,{"$f":"IF(C73=\"\",\"\",IF(COUNTIF($C$3:C73, C73)>1, \"\", C73))","v":""},{"$f":"IF(E73=\"\",\"\",CONCATENATE(DIGITADOR!$M$1,E73,F73))","v":""},"",null,{"$f":"IF(G73=\"\",\"\",VLOOKUP(G73,referentes!S72:W119,4,FALSE))","v":""},null,null,null,null,null,null,null,null,null,null,{"$f":"IF(P73=\"\",\"\",'Otras referencias'!B$10)","v":""},null,{"$f":"IF(R73=\"\",\"\",'Otras referencias'!B$9)","v":""},null,{"$f":"IF(T73=\"\",\"\",CONCATENATE('Otras referencias'!B$7,\"/Estación\"))","v":""}]
[null,{"$f":"IF(C74=\"\",\"\",IF(COUNTIF($C$3:C74, C74)>1, \"\", C74))","v":""},{"$f":"IF(E74=\"\",\"\",CONCATENATE(DIGITADOR!$M$1,E74,F74))","v":""},"",null,{"$f":"IF(G74=\"\",\"\",VLOOKUP(G74,referentes!S73:W120,4,FALSE))","v":""},null,null,null,null,null,null,null,null,null,null,{"$f":"IF(P74=\"\",\"\",'Otras referencias'!B$10)","v":""},null,{"$f":"IF(R74=\"\",\"\",'Otras referencias'!B$9)","v":""},null,{"$f":"IF(T74=\"\",\"\",CONCATENATE('Otras referencias'!B$7,\"/Estación\"))","v":""}]
[null,{"$f":"IF(C75=\"\",\"\",IF(COUNTIF($C$3:C75, C75)>1, \"\", C75))","v":""},{"$f":"IF(E75=\"\",\"\",CONCATENATE(DIGITADOR!$M$1,E75,F75))","v":""},"",null,{"$f":"IF(G75=\"\",\"\",VLOOKUP(G75,referentes!S74:W121,4,FALSE))","v":""},null,null,null,null,null,null,null,null,null,null,{"$f":"IF(P75=\"\",\"\",'Otras referencias'!B$10)","v":""},null,{"$f":"IF(R75=\"\",\"\",'Otras referencias'!B$9)","v":""},null,{"$f":"IF(T75=\"\",\"\",CONCATENATE('Otras referencias'!B$7,\"/Estación\"))","v":""}]
[null,{"$f":"IF(C76=\"\",\"\",IF(COUNTIF($C$3:C76, C76)>1, \"\", C76))","v":""},{"$f":"IF(E76=\"\",\"\",CONCATENATE(DIGITADOR!$M$1,E76,F76))","v":""},"",null,{"$f":"IF(G76=\"\",\"\",VLOOKUP(G76,referentes!S75:W122,4,FALSE))","v":""},null,null,null,null,null,null,null,null,null,null,{"$f":"IF(P76=\"\",\"\",'Otras referencias'!B$10)","v":""},null,{"$f":"IF(R76=\"\",\"\",'Otras referencias'!B$9)","v":""},null,{"$f":"IF(T76=\"\",\"\",CONCATENATE('Otras referencias'!B$7,\"/Estación\"))","v":""}]
[null,{"$f":"IF(C77=\"\",\"\",IF(COUNTIF($C$3:C77, C77)>1, \"\", C77))","v":""},{"$f":"IF(E77=\"\",\"\",CONCATENATE(DIGITADOR!$M$1,E77,F77))","v":""},"",null,{"$f":"IF(G77=\"\",\"\",VLOOKUP(G77,referentes!S76:W123,4,FALSE))","v":""},null,null,null,null,null,null,null,null,null,null,{"$f":"IF(P77=\"\",\"\",'Otras referencias'!B$10)","v":""},null,{"$f":"IF(R77=\"\",\"\",'Otras referencias'!B$9)","v":""},null,{"$f":"IF(T77=\"\",\"\",CONCATENATE('Otras referencias'!B$7,\"/Estación\"))","v":""}]
[null,{"$f":"IF(C78=\"\",\"\",IF(COUNTIF($C$3:C78, C78)>1, \"\", C78))","v":""},{"$f":"IF(E78=\"\",\"\",CONCATENATE(DIGITADOR!$M$1,E78,F78))","v":""},"",null,{"$f":"IF(G78=\"\",\"\",VLOOKUP(G78,referentes!S77:W124,4,FALSE))","v":""},null,null,null,null,null,null,null,null,null,null,{"$f":"IF(P78=\"\",\"\",'Otras referencias'!B$10)","v":""},null,{"$f":"IF(R78=\"\",\"\",'Otras referencias'!B$9)","v":""},null,{"$f":"IF(T78=\"\",\"\",CONCATENATE('Otras referencias'!B$7,\"/Estación\"))","v":""}]
[null,{"$f":"IF(C79=\"\",\"\",IF(COUNTIF($C$3:C79, C79)>1, \"\", C79))","v":""},{"$f":"IF(E79=\"\",\"\",CONCATENATE(DIGITADOR!$M$1,E79,F79))","v":""},"",null,{"$f":"IF(G79=\"\",\"\",VLOOKUP(G79,referentes!S78:W125,4,FALSE))","v":""},null,null,null,null,null,null,null,null,null,null,{"$f":"IF(P79=\"\",\"\",'Otras referencias'!B$10)","v":""},null,{"$f":"IF(R79=\"\",\"\",'Otras referencias'!B$9)","v":""},null,{"$f":"IF(T79=\"\",\"\",CONCATENATE('Otras referencias'!B$7,\"/Estación\"))","v":""}]
[null,{"$f":"IF(C80=\"\",\"\",IF(COUNTIF($C$3:C80, C80)>1, \"\", C80))","v":""},{"$f":"IF(E80=\"\",\"\",CONCATENATE(DIGITADOR!$M$1,E80,F80))","v":""},"",null,{"$f":"IF(G80=\"\",\"\",VLOOKUP(G80,referentes!S79:W126,4,FALSE))","v":""},null,null,null,null,null,null,null,null,null,null,{"$f":"IF(P80=\"\",\"\",'Otras referencias'!B$10)","v":""},null,{"$f":"IF(R80=\"\",\"\",'Otras referencias'!B$9)","v":""},null,{"$f":"IF(T80=\"\",\"\",CONCATENATE('Otras referencias'!B$7,\"/Estación\"))","v":""}]
[null,{"$f":"IF(C81=\"\",\"\",IF(COUNTIF($C$3:C81, C81)>1, \"\", C81))","v":""},{"$f":"IF(E81=\"\",\"\",CONCATENATE(DIGITADOR!$M$1,E81,F81))","v":""},"",null,{"$f":"IF(G81=\"\",\"\",VLOOKUP(G81,referentes!S80:W127,4,FALSE))","v":""},null,null,null,null,null,null,null,null,null,null,{"$f":"IF(P81=\"\",\"\",'Otras referencias'!B$10)","v":""},null,{"$f":"IF(R81=\"\",\"\",'Otras referencias'!B$9)","v":""},null,{"$f":"IF(T81=\"\",\"\",CONCATENATE('Otras referencias'!B$7,\"/Estación\"))","v":""}]
[null,{"$f":"IF(C82=\"\",\"\",IF(COUNTIF($C$3:C82, C82)>1, \"\", C82))","v":""},{"$f":"IF(E82=\"\",\"\",CONCATENATE(DIGITADOR!$M$1,E82,F82))","v":""},"",null,{"$f":"IF(G82=\"\",\"\",VLOOKUP(G82,referentes!S81:W128,4,FALSE))","v":""},null,null,null,null,null,null,null,null,null,null,{"$f":"IF(P82=\"\",\"\",'Otras referencias'!B$10)","v":""},null,{"$f":"IF(R82=\"\",\"\",'Otras referencias'!B$9)","v":""},null,{"$f":"IF(T82=\"\",\"\",CONCATENATE('Otras referencias'!B$7,\"/Estación\"))","v":""}]
[null,{"$f":"IF(C83=\"\",\"\",IF(COUNTIF($C$3:C83, C83)>1, \"\", C83))","v":""},{"$f":"IF(E83=\"\",\"\",CONCATENATE(DIGITADOR!$M$1,E83,F83))","v":""},"",null,{"$f":"IF(G83=\"\",\"\",VLOOKUP(G83,referentes!S82:W129,4,FALSE))","v":""},null,null,null,null,null,null,null,null,null,null,{"$f":"IF(P83=\"\",\"\",'Otras referencias'!B$10)","v":""},null,{"$f":"IF(R83=\"\",\"\",'Otras referencias'!B$9)","v":""},null,{"$f":"IF(T83=\"\",\"\",CONCATENATE('Otras referencias'!B$7,\"/Estación\"))","v":""}]
[null,{"$f":"IF(C84=\"\",\"\",IF(COUNTIF($C$3:C84, C84)>1, \"\", C84))","v":""},{"$f":"IF(E84=\"\",\"\",CONCATENATE(DIGITADOR!$M$1,E84,F84))","v":""},"",null,{"$f":"IF(G84=\"\",\"\",VLOOKUP(G84,referentes!S83:W130,4,FALSE))","v":""},null,null,null,null,null,null,null,null,null,null,{"$f":"IF(P84=\"\",\"\",'Otras referencias'!B$10)","v":""},null,{"$f":"IF(R84=\"\",\"\",'Otras referencias'!B$9)","v":""},null,{"$f":"IF(T84=\"\",\"\",CONCATENATE('Otras referencias'!B$7,\"/Estación\"))","v":""}]
[null,{"$f":"IF(C85=\"\",\"\",IF(COUNTIF($C$3:C85, C85)>1, \"\", C85))","v":""},{"$f":"IF(E85=\"\",\"\",CONCATENATE(DIGITADOR!$M$1,E85,F85))","v":""},"",null,{"$f":"IF(G85=\"\",\"\",VLOOKUP(G85,referentes!S84:W131,4,FALSE))","v":""},null,null,null,null,null,null,null,null,null,null,{"$f":"IF(P85=\"\",\"\",'Otras referencias'!B$10)","v":""},null,{"$f":"IF(R85=\"\",\"\",'Otras referencias'!B$9)","v":""},null,{"$f":"IF(T85=\"\",\"\",CONCATENATE('Otras referencias'!B$7,\"/Estación\"))","v":""}]
[null,{"$f":"IF(C86=\"\",\"\",IF(COUNTIF($C$3:C86, C86)>1, \"\", C86))","v":""},{"$f":"IF(E86=\"\",\"\",CONCATENATE(DIGITADOR!$M$1,E86,F86))","v":""},"",null,{"$f":"IF(G86=\"\",\"\",VLOOKUP(G86,referentes!S85:W132,4,FALSE))","v":""},null,null,null,null,null,null,null,null,null,null,{"$f":"IF(P86=\"\",\"\",'Otras referencias'!B$10)","v":""},null,{"$f":"IF(R86=\"\",\"\",'Otras referencias'!B$9)","v":""},null,{"$f":"IF(T86=\"\",\"\",CONCATENATE('Otras referencias'!B$7,\"/Estación\"))","v":""}]
[null,{"$f":"IF(C87=\"\",\"\",IF(COUNTIF($C$3:C87, C87)>1, \"\", C87))","v":""},{"$f":"IF(E87=\"\",\"\",CONCATENATE(DIGITADOR!$M$1,E87,F87))","v":""},"",null,{"$f":"IF(G87=\"\",\"\",VLOOKUP(G87,referentes!S86:W133,4,FALSE))","v":""},null,null,null,null,null,null,null,null,null,null,{"$f":"IF(P87=\"\",\"\",'Otras referencias'!B$10)","v":""},null,{"$f":"IF(R87=\"\",\"\",'Otras referencias'!B$9)","v":""},null,{"$f":"IF(T87=\"\",\"\",CONCATENATE('Otras referencias'!B$7,\"/Estación\"))","v":""}]
[null,{"$f":"IF(C88=\"\",\"\",IF(COUNTIF($C$3:C88, C88)>1, \"\", C88))","v":""},{"$f":"IF(E88=\"\",\"\",CONCATENATE(DIGITADOR!$M$1,E88,F88))","v":""},"",null,{"$f":"IF(G88=\"\",\"\",VLOOKUP(G88,referentes!S87:W134,4,FALSE))","v":""},null,null,null,null,null,null,null,null,null,null,{"$f":"IF(P88=\"\",\"\",'Otras referencias'!B$10)","v":""},null,{"$f":"IF(R88=\"\",\"\",'Otras referencias'!B$9)","v":""},null,{"$f":"IF(T88=\"\",\"\",CONCATENATE('Otras referencias'!B$7,\"/Estación\"))","v":""}]
[null,{"$f":"IF(C89=\"\",\"\",IF(COUNTIF($C$3:C89, C89)>1, \"\", C89))","v":""},{"$f":"IF(E89=\"\",\"\",CONCATENATE(DIGITADOR!$M$1,E89,F89))","v":""},"",null,{"$f":"IF(G89=\"\",\"\",VLOOKUP(G89,referentes!S88:W135,4,FALSE))","v":""},null,null,null,null,null,null,null,null,null,null,{"$f":"IF(P89=\"\",\"\",'Otras referencias'!B$10)","v":""},null,{"$f":"IF(R89=\"\",\"\",'Otras referencias'!B$9)","v":""},null,{"$f":"IF(T89=\"\",\"\",CONCATENATE('Otras referencias'!B$7,\"/Estación\"))","v":""}]
[null,{"$f":"IF(C90=\"\",\"\",IF(COUNTIF($C$3:C90, C90)>1, \"\", C90))","v":""},{"$f":"IF(E90=\"\",\"\",CONCATENATE(DIGITADOR!$M$1,E90,F90))","v":""},"",null,{"$f":"IF(G90=\"\",\"\",VLOOKUP(G90,referentes!S89:W136,4,FALSE))","v":""},null,null,null,null,null,null,null,null,null,null,{"$f":"IF(P90=\"\",\"\",'Otras referencias'!B$10)","v":""},null,{"$f":"IF(R90=\"\",\"\",'Otras referencias'!B$9)","v":""},null,{"$f":"IF(T90=\"\",\"\",CONCATENATE('Otras referencias'!B$7,\"/Estación\"))","v":""}]
[null,{"$f":"IF(C91=\"\",\"\",IF(COUNTIF($C$3:C91, C91)>1, \"\", C91))","v":""},{"$f":"IF(E91=\"\",\"\",CONCATENATE(DIGITADOR!$M$1,E91,F91))","v":""},"",null,{"$f":"IF(G91=\"\",\"\",VLOOKUP(G91,referentes!S90:W137,4,FALSE))","v":""},null,null,null,null,null,null,null,null,null,null,{"$f":"IF(P91=\"\",\"\",'Otras referencias'!B$10)","v":""},null,{"$f":"IF(R91=\"\",\"\",'Otras referencias'!B$9)","v":""},null,{"$f":"IF(T91=\"\",\"\",CONCATENATE('Otras referencias'!B$7,\"/Estación\"))","v":""}]
[null,{"$f":"IF(C92=\"\",\"\",IF(COUNTIF($C$3:C92, C92)>1, \"\", C92))","v":""},{"$f":"IF(E92=\"\",\"\",CONCATENATE(DIGITADOR!$M$1,E92,F92))","v":""},"",null,{"$f":"IF(G92=\"\",\"\",VLOOKUP(G92,referentes!S91:W138,4,FALSE))","v":""},null,null,null,null,null,null,null,null,null,null,{"$f":"IF(P92=\"\",\"\",'Otras referencias'!B$10)","v":""},null,{"$f":"IF(R92=\"\",\"\",'Otras referencias'!B$9)","v":""},null,{"$f":"IF(T92=\"\",\"\",CONCATENATE('Otras referencias'!B$7,\"/Estación\"))","v":""}]
[null,{"$f":"IF(C93=\"\",\"\",IF(COUNTIF($C$3:C93, C93)>1, \"\", C93))","v":""},{"$f":"IF(E93=\"\",\"\",CONCATENATE(DIGITADOR!$M$1,E93,F93))","v":""},"",null,{"$f":"IF(G93=\"\",\"\",VLOOKUP(G93,referentes!S92:W139,4,FALSE))","v":""},null,null,null,null,null,null,null,null,null,null,{"$f":"IF(P93=\"\",\"\",'Otras referencias'!B$10)","v":""},null,{"$f":"IF(R93=\"\",\"\",'Otras referencias'!B$9)","v":""},null,{"$f":"IF(T93=\"\",\"\",CONCATENATE('Otras referencias'!B$7,\"/Estación\"))","v":""}]
[null,{"$f":"IF(C94=\"\",\"\",IF(COUNTIF($C$3:C94, C94)>1, \"\", C94))","v":""},{"$f":"IF(E94=\"\",\"\",CONCATENATE(DIGITADOR!$M$1,E94,F94))","v":""},"",null,{"$f":"IF(G94=\"\",\"\",VLOOKUP(G94,referentes!S93:W140,4,FALSE))","v":""},null,null,null,null,null,null,null,null,null,null,{"$f":"IF(P94=\"\",\"\",'Otras referencias'!B$10)","v":""},null,{"$f":"IF(R94=\"\",\"\",'Otras referencias'!B$9)","v":""},null,{"$f":"IF(T94=\"\",\"\",CONCATENATE('Otras referencias'!B$7,\"/Estación\"))","v":""}]
[null,{"$f":"IF(C95=\"\",\"\",IF(COUNTIF($C$3:C95, C95)>1, \"\", C95))","v":""},{"$f":"IF(E95=\"\",\"\",CONCATENATE(DIGITADOR!$M$1,E95,F95))","v":""},"",null,{"$f":"IF(G95=\"\",\"\",VLOOKUP(G95,referentes!S94:W141,4,FALSE))","v":""},null,null,null,null,null,null,null,null,null,null,{"$f":"IF(P95=\"\",\"\",'Otras referencias'!B$10)","v":""},null,{"$f":"IF(R95=\"\",\"\",'Otras referencias'!B$9)","v":""},null,{"$f":"IF(T95=\"\",\"\",CONCATENATE('Otras referencias'!B$7,\"/Estación\"))","v":""}]
[null,{"$f":"IF(C96=\"\",\"\",IF(COUNTIF($C$3:C96, C96)>1, \"\", C96))","v":""},{"$f":"IF(E96=\"\",\"\",CONCATENATE(DIGITADOR!$M$1,E96,F96))","v":""},"",null,{"$f":"IF(G96=\"\",\"\",VLOOKUP(G96,referentes!S95:W142,4,FALSE))","v":""},null,null,null,null,null,null,null,null,null,null,{"$f":"IF(P96=\"\",\"\",'Otras referencias'!B$10)","v":""},null,{"$f":"IF(R96=\"\",\"\",'Otras referencias'!B$9)","v":""},null,{"$f":"IF(T96=\"\",\"\",CONCATENATE('Otras referencias'!B$7,\"/Estación\"))","v":""}]
[null,{"$f":"IF(C97=\"\",\"\",IF(COUNTIF($C$3:C97, C97)>1, \"\", C97))","v":""},{"$f":"IF(E97=\"\",\"\",CONCATENATE(DIGITADOR!$M$1,E97,F97))","v":""},"",null,{"$f":"IF(G97=\"\",\"\",VLOOKUP(G97,referentes!S96:W143,4,FALSE))","v":""},null,null,null,null,null,null,null,null,null,null,{"$f":"IF(P97=\"\",\"\",'Otras referencias'!B$10)","v":""},null,{"$f":"IF(R97=\"\",\"\",'Otras referencias'!B$9)","v":""},null,{"$f":"IF(T97=\"\",\"\",CONCATENATE('Otras referencias'!B$7,\"/Estación\"))","v":""}]
[null,{"$f":"IF(C98=\"\",\"\",IF(COUNTIF($C$3:C98, C98)>1, \"\", C98))","v":""},{"$f":"IF(E98=\"\",\"\",CONCATENATE(DIGITADOR!$M$1,E98,F98))","v":""},"",null,{"$f":"IF(G98=\"\",\"\",VLOOKUP(G98,referentes!S97:W144,4,FALSE))","v":""},null,null,null,null,null,null,null,null,null,null,{"$f":"IF(P98=\"\",\"\",'Otras referencias'!B$10)","v":""},null,{"$f":"IF(R98=\"\",\"\",'Otras referencias'!B$9)","v":""},null,{"$f":"IF(T98=\"\",\"\",CONCATENATE('Otras referencias'!B$7,\"/Estación\"))","v":""}]
[null,{"$f":"IF(C99=\"\",\"\",IF(COUNTIF($C$3:C99, C99)>1, \"\", C99))","v":""},{"$f":"IF(E99=\"\",\"\",CONCATENATE(DIGITADOR!$M$1,E99,F99))","v":""},"",null,{"$f":"IF(G99=\"\",\"\",VLOOKUP(G99,referentes!S98:W145,4,FALSE))","v":""},null,null,null,null,null,null,null,null,null,null,{"$f":"IF(P99=\"\",\"\",'Otras referencias'!B$10)","v":""},null,{"$f":"IF(R99=\"\",\"\",'Otras referencias'!B$9)","v":""},null,{"$f":"IF(T99=\"\",\"\",CONCATENATE('Otras referencias'!B$7,\"/Estación\"))","v":""}]
[null,{"$f":"IF(C100=\"\",\"\",IF(COUNTIF($C$3:C100, C100)>1, \"\", C100))","v":""},{"$f":"IF(E100=\"\",\"\",CONCATENATE(DIGITADOR!$M$1,E100,F100))","v":""},"",null,{"$f":"IF(G100=\"\",\"\",VLOOKUP(G100,referentes!S99:W146,4,FALSE))","v":""},null,null,null,null,null,null,null,null,null,null,{"$f":"IF(P100=\"\",\"\",'Otras referencias'!B$10)","v":""},null,{"$f":"IF(R100=\"\",\"\",'Otras referencias'!B$9)","v":""},null,{"$f":"IF(T100=\"\",\"\",CONCATENATE('Otras referencias'!B$7,\"/Estación\"))","v":""}]
[null,{"$f":"IF(C101=\"\",\"\",IF(COUNTIF($C$3:C101, C101)>1, \"\", C101))","v":""},{"$f":"IF(E101=\"\",\"\",CONCATENATE(DIGITADOR!$M$1,E101,F101))","v":""},"",null,{"$f":"IF(G101=\"\",\"\",VLOOKUP(G101,referentes!S100:W147,4,FALSE))","v":""},null,null,null,null,null,null,null,null,null,null,{"$f":"IF(P101=\"\",\"\",'Otras referencias'!B$10)","v":""},null,{"$f":"IF(R101=\"\",\"\",'Otras referencias'!B$9)","v":""},null,{"$f":"IF(T101=\"\",\"\",CONCATENATE('Otras referencias'!B$7,\"/Estación\"))","v":""}]
[null,{"$f":"IF(C102=\"\",\"\",IF(COUNTIF($C$3:C102, C102)>1, \"\", C102))","v":""},{"$f":"IF(E102=\"\",\"\",CONCATENATE(DIGITADOR!$M$1,E102,F102))","v":""},"",null,{"$f":"IF(G102=\"\",\"\",VLOOKUP(G102,referentes!S101:W148,4,FALSE))","v":""},null,null,null,null,null,null,null,null,null,null,{"$f":"IF(P102=\"\",\"\",'Otras referencias'!B$10)","v":""},null,{"$f":"IF(R102=\"\",\"\",'Otras referencias'!B$9)","v":""},null,{"$f":"IF(T102=\"\",\"\",CONCATENATE('Otras referencias'!B$7,\"/Estación\"))","v":""}]
[null,{"$f":"IF(C103=\"\",\"\",IF(COUNTIF($C$3:C103, C103)>1, \"\", C103))","v":""},{"$f":"IF(E103=\"\",\"\",CONCATENATE(DIGITADOR!$M$1,E103,F103))","v":""},"",null,{"$f":"IF(G103=\"\",\"\",VLOOKUP(G103,referentes!S102:W149,4,FALSE))","v":""},null,null,null,null,null,null,null,null,null,null,{"$f":"IF(P103=\"\",\"\",'Otras referencias'!B$10)","v":""},null,{"$f":"IF(R103=\"\",\"\",'Otras referencias'!B$9)","v":""},null,{"$f":"IF(T103=\"\",\"\",CONCATENATE('Otras referencias'!B$7,\"/Estación\"))","v":""}]
[null,{"$f":"IF(C104=\"\",\"\",IF(COUNTIF($C$3:C104, C104)>1, \"\", C104))","v":""},{"$f":"IF(E104=\"\",\"\",CONCATENATE(DIGITADOR!$M$1,E104,F104))","v":""},"",null,{"$f":"IF(G104=\"\",\"\",VLOOKUP(G104,referentes!S103:W150,4,FALSE))","v":""},null,null,null,null,null,null,null,null,null,null,{"$f":"IF(P104=\"\",\"\",'Otras referencias'!B$10)","v":""},null,{"$f":"IF(R104=\"\",\"\",'Otras referencias'!B$9)","v":""},null,{"$f":"IF(T104=\"\",\"\",CONCATENATE('Otras referencias'!B$7,\"/Estación\"))","v":""}]
[null,{"$f":"IF(C105=\"\",\"\",IF(COUNTIF($C$3:C105, C105)>1, \"\", C105))","v":""},{"$f":"IF(E105=\"\",\"\",CONCATENATE(DIGITADOR!$M$1,E105,F105))","v":""},"",null,{"$f":"IF(G105=\"\",\"\",VLOOKUP(G105,referentes!S104:W151,4,FALSE))","v":""},null,null,null,null,null,null,null,null,null,null,{"$f":"IF(P105=\"\",\"\",'Otras referencias'!B$10)","v":""},null,{"$f":"IF(R105=\"\",\"\",'Otras referencias'!B$9)","v":""},null,{"$f":"IF(T105=\"\",\"\",CONCATENATE('Otras referencias'!B$7,\"/Estación\"))","v":""}]
[null,{"$f":"IF(C106=\"\",\"\",IF(COUNTIF($C$3:C106, C106)>1, \"\", C106))","v":""},{"$f":"IF(E106=\"\",\"\",CONCATENATE(DIGITADOR!$M$1,E106,F106))","v":""},"",null,{"$f":"IF(G106=\"\",\"\",VLOOKUP(G106,referentes!S105:W152,4,FALSE))","v":""},null,null,null,null,null,null,null,null,null,null,{"$f":"IF(P106=\"\",\"\",'Otras referencias'!B$10)","v":""},null,{"$f":"IF(R106=\"\",\"\",'Otras referencias'!B$9)","v":""},null,{"$f":"IF(T106=\"\",\"\",CONCATENATE('Otras referencias'!B$7,\"/Estación\"))","v":""}]
[null,{"$f":"IF(C107=\"\",\"\",IF(COUNTIF($C$3:C107, C107)>1, \"\", C107))","v":""},{"$f":"IF(E107=\"\",\"\",CONCATENATE(DIGITADOR!$M$1,E107,F107))","v":""},"",null,{"$f":"IF(G107=\"\",\"\",VLOOKUP(G107,referentes!S106:W153,4,FALSE))","v":""},null,null,null,null,null,null,null,null,null,null,{"$f":"IF(P107=\"\",\"\",'Otras referencias'!B$10)","v":""},null,{"$f":"IF(R107=\"\",\"\",'Otras referencias'!B$9)","v":""},null,{"$f":"IF(T107=\"\",\"\",CONCATENATE('Otras referencias'!B$7,\"/Estación\"))","v":""}]
[null,{"$f":"IF(C108=\"\",\"\",IF(COUNTIF($C$3:C108, C108)>1, \"\", C108))","v":""},{"$f":"IF(E108=\"\",\"\",CONCATENATE(DIGITADOR!$M$1,E108,F108))","v":""},"",null,{"$f":"IF(G108=\"\",\"\",VLOOKUP(G108,referentes!S107:W154,4,FALSE))","v":""},null,null,null,null,null,null,null,null,null,null,{"$f":"IF(P108=\"\",\"\",'Otras referencias'!B$10)","v":""},null,{"$f":"IF(R108=\"\",\"\",'Otras referencias'!B$9)","v":""},null,{"$f":"IF(T108=\"\",\"\",CONCATENATE('Otras referencias'!B$7,\"/Estación\"))","v":""}]
[null,{"$f":"IF(C109=\"\",\"\",IF(COUNTIF($C$3:C109, C109)>1, \"\", C109))","v":""},{"$f":"IF(E109=\"\",\"\",CONCATENATE(DIGITADOR!$M$1,E109,F109))","v":""},"",null,{"$f":"IF(G109=\"\",\"\",VLOOKUP(G109,referentes!S108:W155,4,FALSE))","v":""},null,null,null,null,null,null,null,null,null,null,{"$f":"IF(P109=\"\",\"\",'Otras referencias'!B$10)","v":""},null,{"$f":"IF(R109=\"\",\"\",'Otras referencias'!B$9)","v":""},null,{"$f":"IF(T109=\"\",\"\",CONCATENATE('Otras referencias'!B$7,\"/Estación\"))","v":""}]
[null,{"$f":"IF(C110=\"\",\"\",IF(COUNTIF($C$3:C110, C110)>1, \"\", C110))","v":""},{"$f":"IF(E110=\"\",\"\",CONCATENATE(DIGITADOR!$M$1,E110,F110))","v":""},"",null,{"$f":"IF(G110=\"\",\"\",VLOOKUP(G110,referentes!S109:W156,4,FALSE))","v":""},null,null,null,null,null,null,null,null,null,null,{"$f":"IF(P110=\"\",\"\",'Otras referencias'!B$10)","v":""},null,{"$f":"IF(R110=\"\",\"\",'Otras referencias'!B$9)","v":""},null,{"$f":"IF(T110=\"\",\"\",CONCATENATE('Otras referencias'!B$7,\"/Estación\"))","v":""}]
[null,{"$f":"IF(C111=\"\",\"\",IF(COUNTIF($C$3:C111, C111)>1, \"\", C111))","v":""},{"$f":"IF(E111=\"\",\"\",CONCATENATE(DIGITADOR!$M$1,E111,F111))","v":""},"",null,{"$f":"IF(G111=\"\",\"\",VLOOKUP(G111,referentes!S110:W157,4,FALSE))","v":""},null,null,null,null,null,null,null,null,null,null,{"$f":"IF(P111=\"\",\"\",'Otras referencias'!B$10)","v":""},null,{"$f":"IF(R111=\"\",\"\",'Otras referencias'!B$9)","v":""},null,{"$f":"IF(T111=\"\",\"\",CONCATENATE('Otras referencias'!B$7,\"/Estación\"))","v":""}]
[null,{"$f":"IF(C112=\"\",\"\",IF(COUNTIF($C$3:C112, C112)>1, \"\", C112))","v":""},{"$f":"IF(E112=\"\",\"\",CONCATENATE(DIGITADOR!$M$1,E112,F112))","v":""},"",null,{"$f":"IF(G112=\"\",\"\",VLOOKUP(G112,referentes!S111:W158,4,FALSE))","v":""},null,null,null,null,null,null,null,null,null,null,{"$f":"IF(P112=\"\",\"\",'Otras referencias'!B$10)","v":""},null,{"$f":"IF(R112=\"\",\"\",'Otras referencias'!B$9)","v":""},null,{"$f":"IF(T112=\"\",\"\",CONCATENATE('Otras referencias'!B$7,\"/Estación\"))","v":""}]
[null,{"$f":"IF(C113=\"\",\"\",IF(COUNTIF($C$3:C113, C113)>1, \"\", C113))","v":""},{"$f":"IF(E113=\"\",\"\",CONCATENATE(DIGITADOR!$M$1,E113,F113))","v":""},"",null,{"$f":"IF(G113=\"\",\"\",VLOOKUP(G113,referentes!S112:W159,4,FALSE))","v":""},null,null,null,null,null,null,null,null,null,null,{"$f":"IF(P113=\"\",\"\",'Otras referencias'!B$10)","v":""},null,{"$f":"IF(R113=\"\",\"\",'Otras referencias'!B$9)","v":""},null,{"$f":"IF(T113=\"\",\"\",CONCATENATE('Otras referencias'!B$7,\"/Estación\"))","v":""}]
[null,{"$f":"IF(C114=\"\",\"\",IF(COUNTIF($C$3:C114, C114)>1, \"\", C114))","v":""},{"$f":"IF(E114=\"\",\"\",CONCATENATE(DIGITADOR!$M$1,E114,F114))","v":""},"",null,{"$f":"IF(G114=\"\",\"\",VLOOKUP(G114,referentes!S113:W160,4,FALSE))","v":""},null,null,null,null,null,null,null,null,null,null,{"$f":"IF(P114=\"\",\"\",'Otras referencias'!B$10)","v":""},null,{"$f":"IF(R114=\"\",\"\",'Otras referencias'!B$9)","v":""},null,{"$f":"IF(T114=\"\",\"\",CONCATENATE('Otras referencias'!B$7,\"/Estación\"))","v":""}]
[null,{"$f":"IF(C115=\"\",\"\",IF(COUNTIF($C$3:C115, C115)>1, \"\", C115))","v":""},{"$f":"IF(E115=\"\",\"\",CONCATENATE(DIGITADOR!$M$1,E115,F115))","v":""},"",null,{"$f":"IF(G115=\"\",\"\",VLOOKUP(G115,referentes!S114:W161,4,FALSE))","v":""},null,null,null,null,null,null,null,null,null,null,{"$f":"IF(P115=\"\",\"\",'Otras referencias'!B$10)","v":""},null,{"$f":"IF(R115=\"\",\"\",'Otras referencias'!B$9)","v":""},null,{"$f":"IF(T115=\"\",\"\",CONCATENATE('Otras referencias'!B$7,\"/Estación\"))","v":""}]
[null,{"$f":"IF(C116=\"\",\"\",IF(COUNTIF($C$3:C116, C116)>1, \"\", C116))","v":""},{"$f":"IF(E116=\"\",\"\",CONCATENATE(DIGITADOR!$M$1,E116,F116))","v":""},"",null,{"$f":"IF(G116=\"\",\"\",VLOOKUP(G116,referentes!S115:W162,4,FALSE))","v":""},null,null,null,null,null,null,null,null,null,null,{"$f":"IF(P116=\"\",\"\",'Otras referencias'!B$10)","v":""},null,{"$f":"IF(R116=\"\",\"\",'Otras referencias'!B$9)","v":""},null,{"$f":"IF(T116=\"\",\"\",CONCATENATE('Otras referencias'!B$7,\"/Estación\"))","v":""}]
[null,{"$f":"IF(C117=\"\",\"\",IF(COUNTIF($C$3:C117, C117)>1, \"\", C117))","v":""},{"$f":"IF(E117=\"\",\"\",CONCATENATE(DIGITADOR!$M$1,E117,F117))","v":""},"",null,{"$f":"IF(G117=\"\",\"\",VLOOKUP(G117,referentes!S116:W163,4,FALSE))","v":""},null,null,null,null,null,null,null,null,null,null,{"$f":"IF(P117=\"\",\"\",'Otras referencias'!B$10)","v":""},null,{"$f":"IF(R117=\"\",\"\",'Otras referencias'!B$9)","v":""},null,{"$f":"IF(T117=\"\",\"\",CONCATENATE('Otras referencias'!B$7,\"/Estación\"))","v":""}]
[null,{"$f":"IF(C118=\"\",\"\",IF(COUNTIF($C$3:C118, C118)>1, \"\", C118))","v":""},{"$f":"IF(E118=\"\",\"\",CONCATENATE(DIGITADOR!$M$1,E118,F118))","v":""},"",null,{"$f":"IF(G118=\"\",\"\",VLOOKUP(G118,referentes!S117:W164,4,FALSE))","v":""},null,null,null,null,null,null,null,null,null,null,{"$f":"IF(P118=\"\",\"\",'Otras referencias'!B$10)","v":""},null,{"$f":"IF(R118=\"\",\"\",'Otras referencias'!B$9)","v":""},null,{"$f":"IF(T118=\"\",\"\",CONCATENATE('Otras referencias'!B$7,\"/Estación\"))","v":""}]
[null,{"$f":"IF(C119=\"\",\"\",IF(COUNTIF($C$3:C119, C119)>1, \"\", C119))","v":""},{"$f":"IF(E119=\"\",\"\",CONCATENATE(DIGITADOR!$M$1,E119,F119))","v":""},"",null,{"$f":"IF(G119=\"\",\"\",VLOOKUP(G119,referentes!S118:W165,4,FALSE))","v":""},null,null,null,null,null,null,null,null,null,null,{"$f":"IF(P119=\"\",\"\",'Otras referencias'!B$10)","v":""},null,{"$f":"IF(R119=\"\",\"\",'Otras referencias'!B$9)","v":""},null,{"$f":"IF(T119=\"\",\"\",CONCATENATE('Otras referencias'!B$7,\"/Estación\"))","v":""}]
[null,{"$f":"IF(C120=\"\",\"\",IF(COUNTIF($C$3:C120, C120)>1, \"\", C120))","v":""},{"$f":"IF(E120=\"\",\"\",CONCATENATE(DIGITADOR!$M$1,E120,F120))","v":""},"",null,{"$f":"IF(G120=\"\",\"\",VLOOKUP(G120,referentes!S119:W166,4,FALSE))","v":""},null,null,null,null,null,null,null,null,null,null,{"$f":"IF(P120=\"\",\"\",'Otras referencias'!B$10)","v":""},null,{"$f":"IF(R120=\"\",\"\",'Otras referencias'!B$9)","v":""},null,{"$f":"IF(T120=\"\",\"\",CONCATENATE('Otras referencias'!B$7,\"/Estación\"))","v":""}]
[null,{"$f":"IF(C121=\"\",\"\",IF(COUNTIF($C$3:C121, C121)>1, \"\", C121))","v":""},{"$f":"IF(E121=\"\",\"\",CONCATENATE(DIGITADOR!$M$1,E121,F121))","v":""},"",null,{"$f":"IF(G121=\"\",\"\",VLOOKUP(G121,referentes!S120:W167,4,FALSE))","v":""},null,null,null,null,null,null,null,null,null,null,{"$f":"IF(P121=\"\",\"\",'Otras referencias'!B$10)","v":""},null,{"$f":"IF(R121=\"\",\"\",'Otras referencias'!B$9)","v":""},null,{"$f":"IF(T121=\"\",\"\",CONCATENATE('Otras referencias'!B$7,\"/Estación\"))","v":""}]
[null,{"$f":"IF(C122=\"\",\"\",IF(COUNTIF($C$3:C122, C122)>1, \"\", C122))","v":""},{"$f":"IF(E122=\"\",\"\",CONCATENATE(DIGITADOR!$M$1,E122,F122))","v":""},"",null,{"$f":"IF(G122=\"\",\"\",VLOOKUP(G122,referentes!S121:W168,4,FALSE))","v":""},null,null,null,null,null,null,null,null,null,null,{"$f":"IF(P122=\"\",\"\",'Otras referencias'!B$10)","v":""},null,{"$f":"IF(R122=\"\",\"\",'Otras referencias'!B$9)","v":""},null,{"$f":"IF(T122=\"\",\"\",CONCATENATE('Otras referencias'!B$7,\"/Estación\"))","v":""}]
[null,{"$f":"IF(C123=\"\",\"\",IF(COUNTIF($C$3:C123, C123)>1, \"\", C123))","v":""},{"$f":"IF(E123=\"\",\"\",CONCATENATE(DIGITADOR!$M$1,E123,F123))","v":""},"",null,{"$f":"IF(G123=\"\",\"\",VLOOKUP(G123,referentes!S122:W169,4,FALSE))","v":""},null,null,null,null,null,null,null,null,null,null,{"$f":"IF(P123=\"\",\"\",'Otras referencias'!B$10)","v":""},null,{"$f":"IF(R123=\"\",\"\",'Otras referencias'!B$9)","v":""},null,{"$f":"IF(T123=\"\",\"\",CONCATENATE('Otras referencias'!B$7,\"/Estación\"))","v":""}]
[null,{"$f":"IF(C124=\"\",\"\",IF(COUNTIF($C$3:C124, C124)>1, \"\", C124))","v":""},{"$f":"IF(E124=\"\",\"\",CONCATENATE(DIGITADOR!$M$1,E124,F124))","v":""},"",null,{"$f":"IF(G124=\"\",\"\",VLOOKUP(G124,referentes!S123:W170,4,FALSE))","v":""},null,null,null,null,null,null,null,null,null,null,{"$f":"IF(P124=\"\",\"\",'Otras referencias'!B$10)","v":""},null,{"$f":"IF(R124=\"\",\"\",'Otras referencias'!B$9)","v":""},null,{"$f":"IF(T124=\"\",\"\",CONCATENATE('Otras referencias'!B$7,\"/Estación\"))","v":""}]
[null,{"$f":"IF(C125=\"\",\"\",IF(COUNTIF($C$3:C125, C125)>1, \"\", C125))","v":""},{"$f":"IF(E125=\"\",\"\",CONCATENATE(DIGITADOR!$M$1,E125,F125))","v":""},"",null,{"$f":"IF(G125=\"\",\"\",VLOOKUP(G125,referentes!S124:W171,4,FALSE))","v":""},null,null,null,null,null,null,null,null,null,null,{"$f":"IF(P125=\"\",\"\",'Otras referencias'!B$10)","v":""},null,{"$f":"IF(R125=\"\",\"\",'Otras referencias'!B$9)","v":""},null,{"$f":"IF(T125=\"\",\"\",CONCATENATE('Otras referencias'!B$7,\"/Estación\"))","v":""}]
[null,{"$f":"IF(C126=\"\",\"\",IF(COUNTIF($C$3:C126, C126)>1, \"\", C126))","v":""},{"$f":"IF(E126=\"\",\"\",CONCATENATE(DIGITADOR!$M$1,E126,F126))","v":""},"",null,{"$f":"IF(G126=\"\",\"\",VLOOKUP(G126,referentes!S125:W172,4,FALSE))","v":""},null,null,null,null,null,null,null,null,null,null,{"$f":"IF(P126=\"\",\"\",'Otras referencias'!B$10)","v":""},null,{"$f":"IF(R126=\"\",\"\",'Otras referencias'!B$9)","v":""},null,{"$f":"IF(T126=\"\",\"\",CONCATENATE('Otras referencias'!B$7,\"/Estación\"))","v":""}]
[null,{"$f":"IF(C127=\"\",\"\",IF(COUNTIF($C$3:C127, C127)>1, \"\", C127))","v":""},{"$f":"IF(E127=\"\",\"\",CONCATENATE(DIGITADOR!$M$1,E127,F127))","v":""},"",null,{"$f":"IF(G127=\"\",\"\",VLOOKUP(G127,referentes!S126:W173,4,FALSE))","v":""},null,null,null,null,null,null,null,null,null,null,{"$f":"IF(P127=\"\",\"\",'Otras referencias'!B$10)","v":""},null,{"$f":"IF(R127=\"\",\"\",'Otras referencias'!B$9)","v":""},null,{"$f":"IF(T127=\"\",\"\",CONCATENATE('Otras referencias'!B$7,\"/Estación\"))","v":""}]
[null,{"$f":"IF(C128=\"\",\"\",IF(COUNTIF($C$3:C128, C128)>1, \"\", C128))","v":""},{"$f":"IF(E128=\"\",\"\",CONCATENATE(DIGITADOR!$M$1,E128,F128))","v":""},"",null,{"$f":"IF(G128=\"\",\"\",VLOOKUP(G128,referentes!S127:W174,4,FALSE))","v":""},null,null,null,null,null,null,null,null,null,null,{"$f":"IF(P128=\"\",\"\",'Otras referencias'!B$10)","v":""},null,{"$f":"IF(R128=\"\",\"\",'Otras referencias'!B$9)","v":""},null,{"$f":"IF(T128=\"\",\"\",CONCATENATE('Otras referencias'!B$7,\"/Estación\"))","v":""}]
[null,{"$f":"IF(C129=\"\",\"\",IF(COUNTIF($C$3:C129, C129)>1, \"\", C129))","v":""},{"$f":"IF(E129=\"\",\"\",CONCATENATE(DIGITADOR!$M$1,E129,F129))","v":""},"",null,{"$f":"IF(G129=\"\",\"\",VLOOKUP(G129,referentes!S128:W175,4,FALSE))","v":""},null,null,null,null,null,null,null,null,null,null,{"$f":"IF(P129=\"\",\"\",'Otras referencias'!B$10)","v":""},null,{"$f":"IF(R129=\"\",\"\",'Otras referencias'!B$9)","v":""},null,{"$f":"IF(T129=\"\",\"\",CONCATENATE('Otras referencias'!B$7,\"/Estación\"))","v":""}]
[null,{"$f":"IF(C130=\"\",\"\",IF(COUNTIF($C$3:C130, C130)>1, \"\", C130))","v":""},{"$f":"IF(E130=\"\",\"\",CONCATENATE(DIGITADOR!$M$1,E130,F130))","v":""},"",null,{"$f":"IF(G130=\"\",\"\",VLOOKUP(G130,referentes!S129:W176,4,FALSE))","v":""},null,null,null,null,null,null,null,null,null,null,{"$f":"IF(P130=\"\",\"\",'Otras referencias'!B$10)","v":""},null,{"$f":"IF(R130=\"\",\"\",'Otras referencias'!B$9)","v":""},null,{"$f":"IF(T130=\"\",\"\",CONCATENATE('Otras referencias'!B$7,\"/Estación\"))","v":""}]
[null,{"$f":"IF(C131=\"\",\"\",IF(COUNTIF($C$3:C131, C131)>1, \"\", C131))","v":""},{"$f":"IF(E131=\"\",\"\",CONCATENATE(DIGITADOR!$M$1,E131,F131))","v":""},"",null,{"$f":"IF(G131=\"\",\"\",VLOOKUP(G131,referentes!S130:W177,4,FALSE))","v":""},null,null,null,null,null,null,null,null,null,null,{"$f":"IF(P131=\"\",\"\",'Otras referencias'!B$10)","v":""},null,{"$f":"IF(R131=\"\",\"\",'Otras referencias'!B$9)","v":""},null,{"$f":"IF(T131=\"\",\"\",CONCATENATE('Otras referencias'!B$7,\"/Estación\"))","v":""}]
[null,{"$f":"IF(C132=\"\",\"\",IF(COUNTIF($C$3:C132, C132)>1, \"\", C132))","v":""},{"$f":"IF(E132=\"\",\"\",CONCATENATE(DIGITADOR!$M$1,E132,F132))","v":""},{"$f":"IF(C132=\"\",\"\",CONCATENATE(C132,ROW()-2))","v":""},null,{"$f":"IF(G132=\"\",\"\",VLOOKUP(G132,referentes!S131:W178,4,FALSE))","v":""},null,null,null,null,null,null,null,null,null,null,{"$f":"IF(P132=\"\",\"\",'Otras referencias'!B$10)","v":""},null,{"$f":"IF(R132=\"\",\"\",'Otras referencias'!B$9)","v":""},null,{"$f":"IF(T132=\"\",\"\",CONCATENATE('Otras referencias'!B$7,\"/Estación\"))","v":""}]
[null,{"$f":"IF(C133=\"\",\"\",IF(COUNTIF($C$3:C133, C133)>1, \"\", C133))","v":""},{"$f":"IF(E133=\"\",\"\",CONCATENATE(DIGITADOR!$M$1,E133,F133))","v":""},"",null,{"$f":"IF(G133=\"\",\"\",VLOOKUP(G133,referentes!S132:W179,4,FALSE))","v":""},null,null,null,null,null,null,null,null,null,null,{"$f":"IF(P133=\"\",\"\",'Otras referencias'!B$10)","v":""},null,{"$f":"IF(R133=\"\",\"\",'Otras referencias'!B$9)","v":""},null,{"$f":"IF(T133=\"\",\"\",CONCATENATE('Otras referencias'!B$7,\"/Estación\"))","v":""}]
[null,{"$f":"IF(C134=\"\",\"\",IF(COUNTIF($C$3:C134, C134)>1, \"\", C134))","v":""},{"$f":"IF(E134=\"\",\"\",CONCATENATE(DIGITADOR!$M$1,E134,F134))","v":""},"",null,{"$f":"IF(G134=\"\",\"\",VLOOKUP(G134,referentes!S133:W180,4,FALSE))","v":""},null,null,null,null,null,null,null,null,null,null,{"$f":"IF(P134=\"\",\"\",'Otras referencias'!B$10)","v":""},null,{"$f":"IF(R134=\"\",\"\",'Otras referencias'!B$9)","v":""},null,{"$f":"IF(T134=\"\",\"\",CONCATENATE('Otras referencias'!B$7,\"/Estación\"))","v":""}]
[null,{"$f":"IF(C135=\"\",\"\",IF(COUNTIF($C$3:C135, C135)>1, \"\", C135))","v":""},{"$f":"IF(E135=\"\",\"\",CONCATENATE(DIGITADOR!$M$1,E135,F135))","v":""},"",null,{"$f":"IF(G135=\"\",\"\",VLOOKUP(G135,referentes!S134:W181,4,FALSE))","v":""},null,null,null,null,null,null,null,null,null,null,{"$f":"IF(P135=\"\",\"\",'Otras referencias'!B$10)","v":""},null,{"$f":"IF(R135=\"\",\"\",'Otras referencias'!B$9)","v":""},null,{"$f":"IF(T135=\"\",\"\",CONCATENATE('Otras referencias'!B$7,\"/Estación\"))","v":""}]
[null,{"$f":"IF(C136=\"\",\"\",IF(COUNTIF($C$3:C136, C136)>1, \"\", C136))","v":""},{"$f":"IF(E136=\"\",\"\",CONCATENATE(DIGITADOR!$M$1,E136,F136))","v":""},"",null,{"$f":"IF(G136=\"\",\"\",VLOOKUP(G136,referentes!S135:W182,4,FALSE))","v":""},null,null,null,null,null,null,null,null,null,null,{"$f":"IF(P136=\"\",\"\",'Otras referencias'!B$10)","v":""},null,{"$f":"IF(R136=\"\",\"\",'Otras referencias'!B$9)","v":""},null,{"$f":"IF(T136=\"\",\"\",CONCATENATE('Otras referencias'!B$7,\"/Estación\"))","v":""}]
[null,{"$f":"IF(C137=\"\",\"\",IF(COUNTIF($C$3:C137, C137)>1, \"\", C137))","v":""},{"$f":"IF(E137=\"\",\"\",CONCATENATE(DIGITADOR!$M$1,E137,F137))","v":""},"",null,{"$f":"IF(G137=\"\",\"\",VLOOKUP(G137,referentes!S136:W183,4,FALSE))","v":""},null,null,null,null,null,null,null,null,null,null,{"$f":"IF(P137=\"\",\"\",'Otras referencias'!B$10)","v":""},null,{"$f":"IF(R137=\"\",\"\",'Otras referencias'!B$9)","v":""},null,{"$f":"IF(T137=\"\",\"\",CONCATENATE('Otras referencias'!B$7,\"/Estación\"))","v":""}]
[null,{"$f":"IF(C138=\"\",\"\",IF(COUNTIF($C$3:C138, C138)>1, \"\", C138))","v":""},{"$f":"IF(E138=\"\",\"\",CONCATENATE(DIGITADOR!$M$1,E138,F138))","v":""},"",null,{"$f":"IF(G138=\"\",\"\",VLOOKUP(G138,referentes!S137:W184,4,FALSE))","v":""},null,null,null,null,null,null,null,null,null,null,{"$f":"IF(P138=\"\",\"\",'Otras referencias'!B$10)","v":""},null,{"$f":"IF(R138=\"\",\"\",'Otras referencias'!B$9)","v":""},null,{"$f":"IF(T138=\"\",\"\",CONCATENATE('Otras referencias'!B$7,\"/Estación\"))","v":""}]
[null,{"$f":"IF(C139=\"\",\"\",IF(COUNTIF($C$3:C139, C139)>1, \"\", C139))","v":""},{"$f":"IF(E139=\"\",\"\",CONCATENATE(DIGITADOR!$M$1,E139,F139))","v":""},"",null,{"$f":"IF(G139=\"\",\"\",VLOOKUP(G139,referentes!S138:W185,4,FALSE))","v":""},null,null,null,null,null,null,null,null,null,null,{"$f":"IF(P139=\"\",\"\",'Otras referencias'!B$10)","v":""},null,{"$f":"IF(R139=\"\",\"\",'Otras referencias'!B$9)","v":""},null,{"$f":"IF(T139=\"\",\"\",CONCATENATE('Otras referencias'!B$7,\"/Estación\"))","v":""}]
[null,{"$f":"IF(C140=\"\",\"\",IF(COUNTIF($C$3:C140, C140)>1, \"\", C140))","v":""},{"$f":"IF(E140=\"\",\"\",CONCATENATE(DIGITADOR!$M$1,E140,F140))","v":""},"",null,{"$f":"IF(G140=\"\",\"\",VLOOKUP(G140,referentes!S139:W186,4,FALSE))","v":""},null,null,null,null,null,null,null,null,null,null,{"$f":"IF(P140=\"\",\"\",'Otras referencias'!B$10)","v":""},null,{"$f":"IF(R140=\"\",\"\",'Otras referencias'!B$9)","v":""},null,{"$f":"IF(T140=\"\",\"\",CONCATENATE('Otras referencias'!B$7,\"/Estación\"))","v":""}]
[null,{"$f":"IF(C141=\"\",\"\",IF(COUNTIF($C$3:C141, C141)>1, \"\", C141))","v":""},{"$f":"IF(E141=\"\",\"\",CONCATENATE(DIGITADOR!$M$1,E141,F141))","v":""},"",null,{"$f":"IF(G141=\"\",\"\",VLOOKUP(G141,referentes!S140:W187,4,FALSE))","v":""},null,null,null,null,null,null,null,null,null,null,{"$f":"IF(P141=\"\",\"\",'Otras referencias'!B$10)","v":""},null,{"$f":"IF(R141=\"\",\"\",'Otras referencias'!B$9)","v":""},null,{"$f":"IF(T141=\"\",\"\",CONCATENATE('Otras referencias'!B$7,\"/Estación\"))","v":""}]
[null,{"$f":"IF(C142=\"\",\"\",IF(COUNTIF($C$3:C142, C142)>1, \"\", C142))","v":""},{"$f":"IF(E142=\"\",\"\",CONCATENATE(DIGITADOR!$M$1,E142,F142))","v":""},"",null,{"$f":"IF(G142=\"\",\"\",VLOOKUP(G142,referentes!S141:W188,4,FALSE))","v":""},null,null,null,null,null,null,null,null,null,null,{"$f":"IF(P142=\"\",\"\",'Otras referencias'!B$10)","v":""},null,{"$f":"IF(R142=\"\",\"\",'Otras referencias'!B$9)","v":""},null,{"$f":"IF(T142=\"\",\"\",CONCATENATE('Otras referencias'!B$7,\"/Estación\"))","v":""}]
[null,{"$f":"IF(C143=\"\",\"\",IF(COUNTIF($C$3:C143, C143)>1, \"\", C143))","v":""},{"$f":"IF(E143=\"\",\"\",CONCATENATE(DIGITADOR!$M$1,E143,F143))","v":""},"",null,{"$f":"IF(G143=\"\",\"\",VLOOKUP(G143,referentes!S142:W189,4,FALSE))","v":""},null,null,null,null,null,null,null,null,null,null,{"$f":"IF(P143=\"\",\"\",'Otras referencias'!B$10)","v":""},null,{"$f":"IF(R143=\"\",\"\",'Otras referencias'!B$9)","v":""},null,{"$f":"IF(T143=\"\",\"\",CONCATENATE('Otras referencias'!B$7,\"/Estación\"))","v":""}]
[null,{"$f":"IF(C144=\"\",\"\",IF(COUNTIF($C$3:C144, C144)>1, \"\", C144))","v":""},{"$f":"IF(E144=\"\",\"\",CONCATENATE(DIGITADOR!$M$1,E144,F144))","v":""},"",null,{"$f":"IF(G144=\"\",\"\",VLOOKUP(G144,referentes!S143:W190,4,FALSE))","v":""},null,null,null,null,null,null,null,null,null,null,{"$f":"IF(P144=\"\",\"\",'Otras referencias'!B$10)","v":""},null,{"$f":"IF(R144=\"\",\"\",'Otras referencias'!B$9)","v":""},null,{"$f":"IF(T144=\"\",\"\",CONCATENATE('Otras referencias'!B$7,\"/Estación\"))","v":""}]
[null,{"$f":"IF(C145=\"\",\"\",IF(COUNTIF($C$3:C145, C145)>1, \"\", C145))","v":""},{"$f":"IF(E145=\"\",\"\",CONCATENATE(DIGITADOR!$M$1,E145,F145))","v":""},"",null,{"$f":"IF(G145=\"\",\"\",VLOOKUP(G145,referentes!S144:W191,4,FALSE))","v":""},null,null,null,null,null,null,null,null,null,null,{"$f":"IF(P145=\"\",\"\",'Otras referencias'!B$10)","v":""},null,{"$f":"IF(R145=\"\",\"\",'Otras referencias'!B$9)","v":""},null,{"$f":"IF(T145=\"\",\"\",CONCATENATE('Otras referencias'!B$7,\"/Estación\"))","v":""}]
[null,{"$f":"IF(C146=\"\",\"\",IF(COUNTIF($C$3:C146, C146)>1, \"\", C146))","v":""},{"$f":"IF(E146=\"\",\"\",CONCATENATE(DIGITADOR!$M$1,E146,F146))","v":""},"",null,{"$f":"IF(G146=\"\",\"\",VLOOKUP(G146,referentes!S145:W192,4,FALSE))","v":""},null,null,null,null,null,null,null,null,null,null,{"$f":"IF(P146=\"\",\"\",'Otras referencias'!B$10)","v":""},null,{"$f":"IF(R146=\"\",\"\",'Otras referencias'!B$9)","v":""},null,{"$f":"IF(T146=\"\",\"\",CONCATENATE('Otras referencias'!B$7,\"/Estación\"))","v":""}]
[null,{"$f":"IF(C147=\"\",\"\",IF(COUNTIF($C$3:C147, C147)>1, \"\", C147))","v":""},{"$f":"IF(E147=\"\",\"\",CONCATENATE(DIGITADOR!$M$1,E147,F147))","v":""},"",null,{"$f":"IF(G147=\"\",\"\",VLOOKUP(G147,referentes!S146:W193,4,FALSE))","v":""},null,null,null,null,null,null,null,null,null,null,{"$f":"IF(P147=\"\",\"\",'Otras referencias'!B$10)","v":""},null,{"$f":"IF(R147=\"\",\"\",'Otras referencias'!B$9)","v":""},null,{"$f":"IF(T147=\"\",\"\",CONCATENATE('Otras referencias'!B$7,\"/Estación\"))","v":""}]
[null,{"$f":"IF(C148=\"\",\"\",IF(COUNTIF($C$3:C148, C148)>1, \"\", C148))","v":""},{"$f":"IF(E148=\"\",\"\",CONCATENATE(DIGITADOR!$M$1,E148,F148))","v":""},"",null,{"$f":"IF(G148=\"\",\"\",VLOOKUP(G148,referentes!S147:W194,4,FALSE))","v":""},null,null,null,null,null,null,null,null,null,null,{"$f":"IF(P148=\"\",\"\",'Otras referencias'!B$10)","v":""},null,{"$f":"IF(R148=\"\",\"\",'Otras referencias'!B$9)","v":""},null,{"$f":"IF(T148=\"\",\"\",CONCATENATE('Otras referencias'!B$7,\"/Estación\"))","v":""}]
[null,{"$f":"IF(C149=\"\",\"\",IF(COUNTIF($C$3:C149, C149)>1, \"\", C149))","v":""},{"$f":"IF(E149=\"\",\"\",CONCATENATE(DIGITADOR!$M$1,E149,F149))","v":""},"",null,{"$f":"IF(G149=\"\",\"\",VLOOKUP(G149,referentes!S148:W195,4,FALSE))","v":""},null,null,null,null,null,null,null,null,null,null,{"$f":"IF(P149=\"\",\"\",'Otras referencias'!B$10)","v":""},null,{"$f":"IF(R149=\"\",\"\",'Otras referencias'!B$9)","v":""},null,{"$f":"IF(T149=\"\",\"\",CONCATENATE('Otras referencias'!B$7,\"/Estación\"))","v":""}]
[null,{"$f":"IF(C150=\"\",\"\",IF(COUNTIF($C$3:C150, C150)>1, \"\", C150))","v":""},{"$f":"IF(E150=\"\",\"\",CONCATENATE(DIGITADOR!$M$1,E150,F150))","v":""},"",null,{"$f":"IF(G150=\"\",\"\",VLOOKUP(G150,referentes!S149:W196,4,FALSE))","v":""},null,null,null,null,null,null,null,null,null,null,{"$f":"IF(P150=\"\",\"\",'Otras referencias'!B$10)","v":""},null,{"$f":"IF(R150=\"\",\"\",'Otras referencias'!B$9)","v":""},null,{"$f":"IF(T150=\"\",\"\",CONCATENATE('Otras referencias'!B$7,\"/Estación\"))","v":""}]
[null,{"$f":"IF(C151=\"\",\"\",IF(COUNTIF($C$3:C151, C151)>1, \"\", C151))","v":""},{"$f":"IF(E151=\"\",\"\",CONCATENATE(DIGITADOR!$M$1,E151,F151))","v":""},"",null,{"$f":"IF(G151=\"\",\"\",VLOOKUP(G151,referentes!S150:W197,4,FALSE))","v":""},null,null,null,null,null,null,null,null,null,null,{"$f":"IF(P151=\"\",\"\",'Otras referencias'!B$10)","v":""},null,{"$f":"IF(R151=\"\",\"\",'Otras referencias'!B$9)","v":""},null,{"$f":"IF(T151=\"\",\"\",CONCATENATE('Otras referencias'!B$7,\"/Estación\"))","v":""}]
[null,{"$f":"IF(C152=\"\",\"\",IF(COUNTIF($C$3:C152, C152)>1, \"\", C152))","v":""},{"$f":"IF(E152=\"\",\"\",CONCATENATE(DIGITADOR!$M$1,E152,F152))","v":""},"",null,{"$f":"IF(G152=\"\",\"\",VLOOKUP(G152,referentes!S151:W198,4,FALSE))","v":""},null,null,null,null,null,null,null,null,null,null,{"$f":"IF(P152=\"\",\"\",'Otras referencias'!B$10)","v":""},null,{"$f":"IF(R152=\"\",\"\",'Otras referencias'!B$9)","v":""},null,{"$f":"IF(T152=\"\",\"\",CONCATENATE('Otras referencias'!B$7,\"/Estación\"))","v":""}]
[null,{"$f":"IF(C153=\"\",\"\",IF(COUNTIF($C$3:C153, C153)>1, \"\", C153))","v":""},{"$f":"IF(E153=\"\",\"\",CONCATENATE(DIGITADOR!$M$1,E153,F153))","v":""},"",null,{"$f":"IF(G153=\"\",\"\",VLOOKUP(G153,referentes!S152:W199,4,FALSE))","v":""},null,null,null,null,null,null,null,null,null,null,{"$f":"IF(P153=\"\",\"\",'Otras referencias'!B$10)","v":""},null,{"$f":"IF(R153=\"\",\"\",'Otras referencias'!B$9)","v":""},null,{"$f":"IF(T153=\"\",\"\",CONCATENATE('Otras referencias'!B$7,\"/Estación\"))","v":""}]
[null,{"$f":"IF(C154=\"\",\"\",IF(COUNTIF($C$3:C154, C154)>1, \"\", C154))","v":""},{"$f":"IF(E154=\"\",\"\",CONCATENATE(DIGITADOR!$M$1,E154,F154))","v":""},"",null,{"$f":"IF(G154=\"\",\"\",VLOOKUP(G154,referentes!S153:W200,4,FALSE))","v":""},null,null,null,null,null,null,null,null,null,null,{"$f":"IF(P154=\"\",\"\",'Otras referencias'!B$10)","v":""},null,{"$f":"IF(R154=\"\",\"\",'Otras referencias'!B$9)","v":""},null,{"$f":"IF(T154=\"\",\"\",CONCATENATE('Otras referencias'!B$7,\"/Estación\"))","v":""}]
[null,{"$f":"IF(C155=\"\",\"\",IF(COUNTIF($C$3:C155, C155)>1, \"\", C155))","v":""},{"$f":"IF(E155=\"\",\"\",CONCATENATE(DIGITADOR!$M$1,E155,F155))","v":""},"",null,{"$f":"IF(G155=\"\",\"\",VLOOKUP(G155,referentes!S154:W201,4,FALSE))","v":""},null,null,null,null,null,null,null,null,null,null,{"$f":"IF(P155=\"\",\"\",'Otras referencias'!B$10)","v":""},null,{"$f":"IF(R155=\"\",\"\",'Otras referencias'!B$9)","v":""},null,{"$f":"IF(T155=\"\",\"\",CONCATENATE('Otras referencias'!B$7,\"/Estación\"))","v":""}]
[null,{"$f":"IF(C156=\"\",\"\",IF(COUNTIF($C$3:C156, C156)>1, \"\", C156))","v":""},{"$f":"IF(E156=\"\",\"\",CONCATENATE(DIGITADOR!$M$1,E156,F156))","v":""},"",null,{"$f":"IF(G156=\"\",\"\",VLOOKUP(G156,referentes!S155:W202,4,FALSE))","v":""},null,null,null,null,null,null,null,null,null,null,{"$f":"IF(P156=\"\",\"\",'Otras referencias'!B$10)","v":""},null,{"$f":"IF(R156=\"\",\"\",'Otras referencias'!B$9)","v":""},null,{"$f":"IF(T156=\"\",\"\",CONCATENATE('Otras referencias'!B$7,\"/Estación\"))","v":""}]
[null,{"$f":"IF(C157=\"\",\"\",IF(COUNTIF($C$3:C157, C157)>1, \"\", C157))","v":""},{"$f":"IF(E157=\"\",\"\",CONCATENATE(DIGITADOR!$M$1,E157,F157))","v":""},"",null,{"$f":"IF(G157=\"\",\"\",VLOOKUP(G157,referentes!S156:W203,4,FALSE))","v":""},null,null,null,null,null,null,null,null,null,null,{"$f":"IF(P157=\"\",\"\",'Otras referencias'!B$10)","v":""},null,{"$f":"IF(R157=\"\",\"\",'Otras referencias'!B$9)","v":""},null,{"$f":"IF(T157=\"\",\"\",CONCATENATE('Otras referencias'!B$7,\"/Estación\"))","v":""}]
[null,{"$f":"IF(C158=\"\",\"\",IF(COUNTIF($C$3:C158, C158)>1, \"\", C158))","v":""},{"$f":"IF(E158=\"\",\"\",CONCATENATE(DIGITADOR!$M$1,E158,F158))","v":""},"",null,{"$f":"IF(G158=\"\",\"\",VLOOKUP(G158,referentes!S157:W204,4,FALSE))","v":""},null,null,null,null,null,null,null,null,null,null,{"$f":"IF(P158=\"\",\"\",'Otras referencias'!B$10)","v":""},null,{"$f":"IF(R158=\"\",\"\",'Otras referencias'!B$9)","v":""},null,{"$f":"IF(T158=\"\",\"\",CONCATENATE('Otras referencias'!B$7,\"/Estación\"))","v":""}]
[null,{"$f":"IF(C159=\"\",\"\",IF(COUNTIF($C$3:C159, C159)>1, \"\", C159))","v":""},{"$f":"IF(E159=\"\",\"\",CONCATENATE(DIGITADOR!$M$1,E159,F159))","v":""},"",null,{"$f":"IF(G159=\"\",\"\",VLOOKUP(G159,referentes!S158:W205,4,FALSE))","v":""},null,null,null,null,null,null,null,null,null,null,{"$f":"IF(P159=\"\",\"\",'Otras referencias'!B$10)","v":""},null,{"$f":"IF(R159=\"\",\"\",'Otras referencias'!B$9)","v":""},null,{"$f":"IF(T159=\"\",\"\",CONCATENATE('Otras referencias'!B$7,\"/Estación\"))","v":""}]
[null,{"$f":"IF(C160=\"\",\"\",IF(COUNTIF($C$3:C160, C160)>1, \"\", C160))","v":""},{"$f":"IF(E160=\"\",\"\",CONCATENATE(DIGITADOR!$M$1,E160,F160))","v":""},"",null,{"$f":"IF(G160=\"\",\"\",VLOOKUP(G160,referentes!S159:W206,4,FALSE))","v":""},null,null,null,null,null,null,null,null,null,null,{"$f":"IF(P160=\"\",\"\",'Otras referencias'!B$10)","v":""},null,{"$f":"IF(R160=\"\",\"\",'Otras referencias'!B$9)","v":""},null,{"$f":"IF(T160=\"\",\"\",CONCATENATE('Otras referencias'!B$7,\"/Estación\"))","v":""}]
[null,{"$f":"IF(C161=\"\",\"\",IF(COUNTIF($C$3:C161, C161)>1, \"\", C161))","v":""},{"$f":"IF(E161=\"\",\"\",CONCATENATE(DIGITADOR!$M$1,E161,F161))","v":""},"",null,{"$f":"IF(G161=\"\",\"\",VLOOKUP(G161,referentes!S160:W207,4,FALSE))","v":""},null,null,null,null,null,null,null,null,null,null,{"$f":"IF(P161=\"\",\"\",'Otras referencias'!B$10)","v":""},null,{"$f":"IF(R161=\"\",\"\",'Otras referencias'!B$9)","v":""},null,{"$f":"IF(T161=\"\",\"\",CONCATENATE('Otras referencias'!B$7,\"/Estación\"))","v":""}]
[null,{"$f":"IF(C162=\"\",\"\",IF(COUNTIF($C$3:C162, C162)>1, \"\", C162))","v":""},{"$f":"IF(E162=\"\",\"\",CONCATENATE(DIGITADOR!$M$1,E162,F162))","v":""},"",null,{"$f":"IF(G162=\"\",\"\",VLOOKUP(G162,referentes!S161:W208,4,FALSE))","v":""},null,null,null,null,null,null,null,null,null,null,{"$f":"IF(P162=\"\",\"\",'Otras referencias'!B$10)","v":""},null,{"$f":"IF(R162=\"\",\"\",'Otras referencias'!B$9)","v":""},null,{"$f":"IF(T162=\"\",\"\",CONCATENATE('Otras referencias'!B$7,\"/Estación\"))","v":""}]
[null,{"$f":"IF(C163=\"\",\"\",IF(COUNTIF($C$3:C163, C163)>1, \"\", C163))","v":""},{"$f":"IF(E163=\"\",\"\",CONCATENATE(DIGITADOR!$M$1,E163,F163))","v":""},"",null,{"$f":"IF(G163=\"\",\"\",VLOOKUP(G163,referentes!S162:W209,4,FALSE))","v":""},null,null,null,null,null,null,null,null,null,null,{"$f":"IF(P163=\"\",\"\",'Otras referencias'!B$10)","v":""},null,{"$f":"IF(R163=\"\",\"\",'Otras referencias'!B$9)","v":""},null,{"$f":"IF(T163=\"\",\"\",CONCATENATE('Otras referencias'!B$7,\"/Estación\"))","v":""}]
[null,{"$f":"IF(C164=\"\",\"\",IF(COUNTIF($C$3:C164, C164)>1, \"\", C164))","v":""},{"$f":"IF(E164=\"\",\"\",CONCATENATE(DIGITADOR!$M$1,E164,F164))","v":""},"",null,{"$f":"IF(G164=\"\",\"\",VLOOKUP(G164,referentes!S163:W210,4,FALSE))","v":""},null,null,null,null,null,null,null,null,null,null,{"$f":"IF(P164=\"\",\"\",'Otras referencias'!B$10)","v":""},null,{"$f":"IF(R164=\"\",\"\",'Otras referencias'!B$9)","v":""},null,{"$f":"IF(T164=\"\",\"\",CONCATENATE('Otras referencias'!B$7,\"/Estación\"))","v":""}]
[null,{"$f":"IF(C165=\"\",\"\",IF(COUNTIF($C$3:C165, C165)>1, \"\", C165))","v":""},{"$f":"IF(E165=\"\",\"\",CONCATENATE(DIGITADOR!$M$1,E165,F165))","v":""},"",null,{"$f":"IF(G165=\"\",\"\",VLOOKUP(G165,referentes!S164:W211,4,FALSE))","v":""},null,null,null,null,null,null,null,null,null,null,{"$f":"IF(P165=\"\",\"\",'Otras referencias'!B$10)","v":""},null,{"$f":"IF(R165=\"\",\"\",'Otras referencias'!B$9)","v":""},null,{"$f":"IF(T165=\"\",\"\",CONCATENATE('Otras referencias'!B$7,\"/Estación\"))","v":""}]
[null,{"$f":"IF(C166=\"\",\"\",IF(COUNTIF($C$3:C166, C166)>1, \"\", C166))","v":""},{"$f":"IF(E166=\"\",\"\",CONCATENATE(DIGITADOR!$M$1,E166,F166))","v":""},"",null,{"$f":"IF(G166=\"\",\"\",VLOOKUP(G166,referentes!S165:W212,4,FALSE))","v":""},null,null,null,null,null,null,null,null,null,null,{"$f":"IF(P166=\"\",\"\",'Otras referencias'!B$10)","v":""},null,{"$f":"IF(R166=\"\",\"\",'Otras referencias'!B$9)","v":""},null,{"$f":"IF(T166=\"\",\"\",CONCATENATE('Otras referencias'!B$7,\"/Estación\"))","v":""}]
[null,{"$f":"IF(C167=\"\",\"\",IF(COUNTIF($C$3:C167, C167)>1, \"\", C167))","v":""},{"$f":"IF(E167=\"\",\"\",CONCATENATE(DIGITADOR!$M$1,E167,F167))","v":""},"",null,{"$f":"IF(G167=\"\",\"\",VLOOKUP(G167,referentes!S166:W213,4,FALSE))","v":""},null,null,null,null,null,null,null,null,null,null,{"$f":"IF(P167=\"\",\"\",'Otras referencias'!B$10)","v":""},null,{"$f":"IF(R167=\"\",\"\",'Otras referencias'!B$9)","v":""},null,{"$f":"IF(T167=\"\",\"\",CONCATENATE('Otras referencias'!B$7,\"/Estación\"))","v":""}]
[null,{"$f":"IF(C168=\"\",\"\",IF(COUNTIF($C$3:C168, C168)>1, \"\", C168))","v":""},{"$f":"IF(E168=\"\",\"\",CONCATENATE(DIGITADOR!$M$1,E168,F168))","v":""},"",null,{"$f":"IF(G168=\"\",\"\",VLOOKUP(G168,referentes!S167:W214,4,FALSE))","v":""},null,null,null,null,null,null,null,null,null,null,{"$f":"IF(P168=\"\",\"\",'Otras referencias'!B$10)","v":""},null,{"$f":"IF(R168=\"\",\"\",'Otras referencias'!B$9)","v":""},null,{"$f":"IF(T168=\"\",\"\",CONCATENATE('Otras referencias'!B$7,\"/Estación\"))","v":""}]
[null,{"$f":"IF(C169=\"\",\"\",IF(COUNTIF($C$3:C169, C169)>1, \"\", C169))","v":""},{"$f":"IF(E169=\"\",\"\",CONCATENATE(DIGITADOR!$M$1,E169,F169))","v":""},"",null,{"$f":"IF(G169=\"\",\"\",VLOOKUP(G169,referentes!S168:W215,4,FALSE))","v":""},null,null,null,null,null,null,null,null,null,null,{"$f":"IF(P169=\"\",\"\",'Otras referencias'!B$10)","v":""},null,{"$f":"IF(R169=\"\",\"\",'Otras referencias'!B$9)","v":""},null,{"$f":"IF(T169=\"\",\"\",CONCATENATE('Otras referencias'!B$7,\"/Estación\"))","v":""}]
[null,{"$f":"IF(C170=\"\",\"\",IF(COUNTIF($C$3:C170, C170)>1, \"\", C170))","v":""},{"$f":"IF(E170=\"\",\"\",CONCATENATE(DIGITADOR!$M$1,E170,F170))","v":""},"",null,{"$f":"IF(G170=\"\",\"\",VLOOKUP(G170,referentes!S169:W216,4,FALSE))","v":""},null,null,null,null,null,null,null,null,null,null,{"$f":"IF(P170=\"\",\"\",'Otras referencias'!B$10)","v":""},null,{"$f":"IF(R170=\"\",\"\",'Otras referencias'!B$9)","v":""},null,{"$f":"IF(T170=\"\",\"\",CONCATENATE('Otras referencias'!B$7,\"/Estación\"))","v":""}]
[null,{"$f":"IF(C171=\"\",\"\",IF(COUNTIF($C$3:C171, C171)>1, \"\", C171))","v":""},{"$f":"IF(E171=\"\",\"\",CONCATENATE(DIGITADOR!$M$1,E171,F171))","v":""},"",null,{"$f":"IF(G171=\"\",\"\",VLOOKUP(G171,referentes!S170:W217,4,FALSE))","v":""},null,null,null,null,null,null,null,null,null,null,{"$f":"IF(P171=\"\",\"\",'Otras referencias'!B$10)","v":""},null,{"$f":"IF(R171=\"\",\"\",'Otras referencias'!B$9)","v":""},null,{"$f":"IF(T171=\"\",\"\",CONCATENATE('Otras referencias'!B$7,\"/Estación\"))","v":""}]
[null,{"$f":"IF(C172=\"\",\"\",IF(COUNTIF($C$3:C172, C172)>1, \"\", C172))","v":""},{"$f":"IF(E172=\"\",\"\",CONCATENATE(DIGITADOR!$M$1,E172,F172))","v":""},"",null,{"$f":"IF(G172=\"\",\"\",VLOOKUP(G172,referentes!S171:W218,4,FALSE))","v":""},null,null,null,null,null,null,null,null,null,null,{"$f":"IF(P172=\"\",\"\",'Otras referencias'!B$10)","v":""},null,{"$f":"IF(R172=\"\",\"\",'Otras referencias'!B$9)","v":""},null,{"$f":"IF(T172=\"\",\"\",CONCATENATE('Otras referencias'!B$7,\"/Estación\"))","v":""}]
[null,{"$f":"IF(C173=\"\",\"\",IF(COUNTIF($C$3:C173, C173)>1, \"\", C173))","v":""},{"$f":"IF(E173=\"\",\"\",CONCATENATE(DIGITADOR!$M$1,E173,F173))","v":""},"",null,{"$f":"IF(G173=\"\",\"\",VLOOKUP(G173,referentes!S172:W219,4,FALSE))","v":""},null,null,null,null,null,null,null,null,null,null,{"$f":"IF(P173=\"\",\"\",'Otras referencias'!B$10)","v":""},null,{"$f":"IF(R173=\"\",\"\",'Otras referencias'!B$9)","v":""},null,{"$f":"IF(T173=\"\",\"\",CONCATENATE('Otras referencias'!B$7,\"/Estación\"))","v":""}]
[null,{"$f":"IF(C174=\"\",\"\",IF(COUNTIF($C$3:C174, C174)>1, \"\", C174))","v":""},{"$f":"IF(E174=\"\",\"\",CONCATENATE(DIGITADOR!$M$1,E174,F174))","v":""},"",null,{"$f":"IF(G174=\"\",\"\",VLOOKUP(G174,referentes!S173:W220,4,FALSE))","v":""},null,null,null,null,null,null,null,null,null,null,{"$f":"IF(P174=\"\",\"\",'Otras referencias'!B$10)","v":""},null,{"$f":"IF(R174=\"\",\"\",'Otras referencias'!B$9)","v":""},null,{"$f":"IF(T174=\"\",\"\",CONCATENATE('Otras referencias'!B$7,\"/Estación\"))","v":""}]
[null,{"$f":"IF(C175=\"\",\"\",IF(COUNTIF($C$3:C175, C175)>1, \"\", C175))","v":""},{"$f":"IF(E175=\"\",\"\",CONCATENATE(DIGITADOR!$M$1,E175,F175))","v":""},"",null,{"$f":"IF(G175=\"\",\"\",VLOOKUP(G175,referentes!S174:W221,4,FALSE))","v":""},null,null,null,null,null,null,null,null,null,null,{"$f":"IF(P175=\"\",\"\",'Otras referencias'!B$10)","v":""},null,{"$f":"IF(R175=\"\",\"\",'Otras referencias'!B$9)","v":""},null,{"$f":"IF(T175=\"\",\"\",CONCATENATE('Otras referencias'!B$7,\"/Estación\"))","v":""}]
[null,{"$f":"IF(C176=\"\",\"\",IF(COUNTIF($C$3:C176, C176)>1, \"\", C176))","v":""},{"$f":"IF(E176=\"\",\"\",CONCATENATE(DIGITADOR!$M$1,E176,F176))","v":""},"",null,{"$f":"IF(G176=\"\",\"\",VLOOKUP(G176,referentes!S175:W222,4,FALSE))","v":""},null,null,null,null,null,null,null,null,null,null,{"$f":"IF(P176=\"\",\"\",'Otras referencias'!B$10)","v":""},null,{"$f":"IF(R176=\"\",\"\",'Otras referencias'!B$9)","v":""},null,{"$f":"IF(T176=\"\",\"\",CONCATENATE('Otras referencias'!B$7,\"/Estación\"))","v":""}]
[null,{"$f":"IF(C177=\"\",\"\",IF(COUNTIF($C$3:C177, C177)>1, \"\", C177))","v":""},{"$f":"IF(E177=\"\",\"\",CONCATENATE(DIGITADOR!$M$1,E177,F177))","v":""},"",null,{"$f":"IF(G177=\"\",\"\",VLOOKUP(G177,referentes!S176:W223,4,FALSE))","v":""},null,null,null,null,null,null,null,null,null,null,{"$f":"IF(P177=\"\",\"\",'Otras referencias'!B$10)","v":""},null,{"$f":"IF(R177=\"\",\"\",'Otras referencias'!B$9)","v":""},null,{"$f":"IF(T177=\"\",\"\",CONCATENATE('Otras referencias'!B$7,\"/Estación\"))","v":""}]
[null,{"$f":"IF(C178=\"\",\"\",IF(COUNTIF($C$3:C178, C178)>1, \"\", C178))","v":""},{"$f":"IF(E178=\"\",\"\",CONCATENATE(DIGITADOR!$M$1,E178,F178))","v":""},"",null,{"$f":"IF(G178=\"\",\"\",VLOOKUP(G178,referentes!S177:W224,4,FALSE))","v":""},null,null,null,null,null,null,null,null,null,null,{"$f":"IF(P178=\"\",\"\",'Otras referencias'!B$10)","v":""},null,{"$f":"IF(R178=\"\",\"\",'Otras referencias'!B$9)","v":""},null,{"$f":"IF(T178=\"\",\"\",CONCATENATE('Otras referencias'!B$7,\"/Estación\"))","v":""}]
[null,{"$f":"IF(C179=\"\",\"\",IF(COUNTIF($C$3:C179, C179)>1, \"\", C179))","v":""},{"$f":"IF(E179=\"\",\"\",CONCATENATE(DIGITADOR!$M$1,E179,F179))","v":""},"",null,{"$f":"IF(G179=\"\",\"\",VLOOKUP(G179,referentes!S178:W225,4,FALSE))","v":""},null,null,null,null,null,null,null,null,null,null,{"$f":"IF(P179=\"\",\"\",'Otras referencias'!B$10)","v":""},null,{"$f":"IF(R179=\"\",\"\",'Otras referencias'!B$9)","v":""},null,{"$f":"IF(T179=\"\",\"\",CONCATENATE('Otras referencias'!B$7,\"/Estación\"))","v":""}]
[null,{"$f":"IF(C180=\"\",\"\",IF(COUNTIF($C$3:C180, C180)>1, \"\", C180))","v":""},{"$f":"IF(E180=\"\",\"\",CONCATENATE(DIGITADOR!$M$1,E180,F180))","v":""},"",null,{"$f":"IF(G180=\"\",\"\",VLOOKUP(G180,referentes!S179:W226,4,FALSE))","v":""},null,null,null,null,null,null,null,null,null,null,{"$f":"IF(P180=\"\",\"\",'Otras referencias'!B$10)","v":""},null,{"$f":"IF(R180=\"\",\"\",'Otras referencias'!B$9)","v":""},null,{"$f":"IF(T180=\"\",\"\",CONCATENATE('Otras referencias'!B$7,\"/Estación\"))","v":""}]
[null,{"$f":"IF(C181=\"\",\"\",IF(COUNTIF($C$3:C181, C181)>1, \"\", C181))","v":""},{"$f":"IF(E181=\"\",\"\",CONCATENATE(DIGITADOR!$M$1,E181,F181))","v":""},"",null,{"$f":"IF(G181=\"\",\"\",VLOOKUP(G181,referentes!S180:W227,4,FALSE))","v":""},null,null,null,null,null,null,null,null,null,null,{"$f":"IF(P181=\"\",\"\",'Otras referencias'!B$10)","v":""},null,{"$f":"IF(R181=\"\",\"\",'Otras referencias'!B$9)","v":""},null,{"$f":"IF(T181=\"\",\"\",CONCATENATE('Otras referencias'!B$7,\"/Estación\"))","v":""}]
[null,{"$f":"IF(C182=\"\",\"\",IF(COUNTIF($C$3:C182, C182)>1, \"\", C182))","v":""},{"$f":"IF(E182=\"\",\"\",CONCATENATE(DIGITADOR!$M$1,E182,F182))","v":""},"",null,{"$f":"IF(G182=\"\",\"\",VLOOKUP(G182,referentes!S181:W228,4,FALSE))","v":""},null,null,null,null,null,null,null,null,null,null,{"$f":"IF(P182=\"\",\"\",'Otras referencias'!B$10)","v":""},null,{"$f":"IF(R182=\"\",\"\",'Otras referencias'!B$9)","v":""},null,{"$f":"IF(T182=\"\",\"\",CONCATENATE('Otras referencias'!B$7,\"/Estación\"))","v":""}]
[null,{"$f":"IF(C183=\"\",\"\",IF(COUNTIF($C$3:C183, C183)>1, \"\", C183))","v":""},{"$f":"IF(E183=\"\",\"\",CONCATENATE(DIGITADOR!$M$1,E183,F183))","v":""},"",null,{"$f":"IF(G183=\"\",\"\",VLOOKUP(G183,referentes!S182:W229,4,FALSE))","v":""},null,null,null,null,null,null,null,null,null,null,{"$f":"IF(P183=\"\",\"\",'Otras referencias'!B$10)","v":""},null,{"$f":"IF(R183=\"\",\"\",'Otras referencias'!B$9)","v":""},null,{"$f":"IF(T183=\"\",\"\",CONCATENATE('Otras referencias'!B$7,\"/Estación\"))","v":""}]
[null,{"$f":"IF(C184=\"\",\"\",IF(COUNTIF($C$3:C184, C184)>1, \"\", C184))","v":""},{"$f":"IF(E184=\"\",\"\",CONCATENATE(DIGITADOR!$M$1,E184,F184))","v":""},"",null,{"$f":"IF(G184=\"\",\"\",VLOOKUP(G184,referentes!S183:W230,4,FALSE))","v":""},null,null,null,null,null,null,null,null,null,null,{"$f":"IF(P184=\"\",\"\",'Otras referencias'!B$10)","v":""},null,{"$f":"IF(R184=\"\",\"\",'Otras referencias'!B$9)","v":""},null,{"$f":"IF(T184=\"\",\"\",CONCATENATE('Otras referencias'!B$7,\"/Estación\"))","v":""}]
[null,{"$f":"IF(C185=\"\",\"\",IF(COUNTIF($C$3:C185, C185)>1, \"\", C185))","v":""},{"$f":"IF(E185=\"\",\"\",CONCATENATE(DIGITADOR!$M$1,E185,F185))","v":""},"",null,{"$f":"IF(G185=\"\",\"\",VLOOKUP(G185,referentes!S184:W231,4,FALSE))","v":""},null,null,null,null,null,null,null,null,null,null,{"$f":"IF(P185=\"\",\"\",'Otras referencias'!B$10)","v":""},null,{"$f":"IF(R185=\"\",\"\",'Otras referencias'!B$9)","v":""},null,{"$f":"IF(T185=\"\",\"\",CONCATENATE('Otras referencias'!B$7,\"/Estación\"))","v":""}]
[null,{"$f":"IF(C186=\"\",\"\",IF(COUNTIF($C$3:C186, C186)>1, \"\", C186))","v":""},{"$f":"IF(E186=\"\",\"\",CONCATENATE(DIGITADOR!$M$1,E186,F186))","v":""},"",null,{"$f":"IF(G186=\"\",\"\",VLOOKUP(G186,referentes!S185:W232,4,FALSE))","v":""},null,null,null,null,null,null,null,null,null,null,{"$f":"IF(P186=\"\",\"\",'Otras referencias'!B$10)","v":""},null,{"$f":"IF(R186=\"\",\"\",'Otras referencias'!B$9)","v":""},null,{"$f":"IF(T186=\"\",\"\",CONCATENATE('Otras referencias'!B$7,\"/Estación\"))","v":""}]
[null,{"$f":"IF(C187=\"\",\"\",IF(COUNTIF($C$3:C187, C187)>1, \"\", C187))","v":""},{"$f":"IF(E187=\"\",\"\",CONCATENATE(DIGITADOR!$M$1,E187,F187))","v":""},"",null,{"$f":"IF(G187=\"\",\"\",VLOOKUP(G187,referentes!S186:W233,4,FALSE))","v":""},null,null,null,null,null,null,null,null,null,null,{"$f":"IF(P187=\"\",\"\",'Otras referencias'!B$10)","v":""},null,{"$f":"IF(R187=\"\",\"\",'Otras referencias'!B$9)","v":""},null,{"$f":"IF(T187=\"\",\"\",CONCATENATE('Otras referencias'!B$7,\"/Estación\"))","v":""}]
[null,{"$f":"IF(C188=\"\",\"\",IF(COUNTIF($C$3:C188, C188)>1, \"\", C188))","v":""},{"$f":"IF(E188=\"\",\"\",CONCATENATE(DIGITADOR!$M$1,E188,F188))","v":""},"",null,{"$f":"IF(G188=\"\",\"\",VLOOKUP(G188,referentes!S187:W234,4,FALSE))","v":""},null,null,null,null,null,null,null,null,null,null,{"$f":"IF(P188=\"\",\"\",'Otras referencias'!B$10)","v":""},null,{"$f":"IF(R188=\"\",\"\",'Otras referencias'!B$9)","v":""},null,{"$f":"IF(T188=\"\",\"\",CONCATENATE('Otras referencias'!B$7,\"/Estación\"))","v":""}]
[null,{"$f":"IF(C189=\"\",\"\",IF(COUNTIF($C$3:C189, C189)>1, \"\", C189))","v":""},{"$f":"IF(E189=\"\",\"\",CONCATENATE(DIGITADOR!$M$1,E189,F189))","v":""},"",null,{"$f":"IF(G189=\"\",\"\",VLOOKUP(G189,referentes!S188:W235,4,FALSE))","v":""},null,null,null,null,null,null,null,null,null,null,{"$f":"IF(P189=\"\",\"\",'Otras referencias'!B$10)","v":""},null,{"$f":"IF(R189=\"\",\"\",'Otras referencias'!B$9)","v":""},null,{"$f":"IF(T189=\"\",\"\",CONCATENATE('Otras referencias'!B$7,\"/Estación\"))","v":""}]
[null,{"$f":"IF(C190=\"\",\"\",IF(COUNTIF($C$3:C190, C190)>1, \"\", C190))","v":""},{"$f":"IF(E190=\"\",\"\",CONCATENATE(DIGITADOR!$M$1,E190,F190))","v":""},"",null,{"$f":"IF(G190=\"\",\"\",VLOOKUP(G190,referentes!S189:W236,4,FALSE))","v":""},null,null,null,null,null,null,null,null,null,null,{"$f":"IF(P190=\"\",\"\",'Otras referencias'!B$10)","v":""},null,{"$f":"IF(R190=\"\",\"\",'Otras referencias'!B$9)","v":""},null,{"$f":"IF(T190=\"\",\"\",CONCATENATE('Otras referencias'!B$7,\"/Estación\"))","v":""}]
[null,{"$f":"IF(C191=\"\",\"\",IF(COUNTIF($C$3:C191, C191)>1, \"\", C191))","v":""},{"$f":"IF(E191=\"\",\"\",CONCATENATE(DIGITADOR!$M$1,E191,F191))","v":""},"",null,{"$f":"IF(G191=\"\",\"\",VLOOKUP(G191,referentes!S190:W237,4,FALSE))","v":""},null,null,null,null,null,null,null,null,null,null,{"$f":"IF(P191=\"\",\"\",'Otras referencias'!B$10)","v":""},null,{"$f":"IF(R191=\"\",\"\",'Otras referencias'!B$9)","v":""},null,{"$f":"IF(T191=\"\",\"\",CONCATENATE('Otras referencias'!B$7,\"/Estación\"))","v":""}]
[null,{"$f":"IF(C192=\"\",\"\",IF(COUNTIF($C$3:C192, C192)>1, \"\", C192))","v":""},{"$f":"IF(E192=\"\",\"\",CONCATENATE(DIGITADOR!$M$1,E192,F192))","v":""},"",null,{"$f":"IF(G192=\"\",\"\",VLOOKUP(G192,referentes!S191:W238,4,FALSE))","v":""},null,null,null,null,null,null,null,null,null,null,{"$f":"IF(P192=\"\",\"\",'Otras referencias'!B$10)","v":""},null,{"$f":"IF(R192=\"\",\"\",'Otras referencias'!B$9)","v":""},null,{"$f":"IF(T192=\"\",\"\",CONCATENATE('Otras referencias'!B$7,\"/Estación\"))","v":""}]
[null,{"$f":"IF(C193=\"\",\"\",IF(COUNTIF($C$3:C193, C193)>1, \"\", C193))","v":""},{"$f":"IF(E193=\"\",\"\",CONCATENATE(DIGITADOR!$M$1,E193,F193))","v":""},"",null,{"$f":"IF(G193=\"\",\"\",VLOOKUP(G193,referentes!S192:W239,4,FALSE))","v":""},null,null,null,null,null,null,null,null,null,null,{"$f":"IF(P193=\"\",\"\",'Otras referencias'!B$10)","v":""},null,{"$f":"IF(R193=\"\",\"\",'Otras referencias'!B$9)","v":""},null,{"$f":"IF(T193=\"\",\"\",CONCATENATE('Otras referencias'!B$7,\"/Estación\"))","v":""}]
[null,{"$f":"IF(C194=\"\",\"\",IF(COUNTIF($C$3:C194, C194)>1, \"\", C194))","v":""},{"$f":"IF(E194=\"\",\"\",CONCATENATE(DIGITADOR!$M$1,E194,F194))","v":""},"",null,{"$f":"IF(G194=\"\",\"\",VLOOKUP(G194,referentes!S193:W240,4,FALSE))","v":""},null,null,null,null,null,null,null,null,null,null,{"$f":"IF(P194=\"\",\"\",'Otras referencias'!B$10)","v":""},null,{"$f":"IF(R194=\"\",\"\",'Otras referencias'!B$9)","v":""},null,{"$f":"IF(T194=\"\",\"\",CONCATENATE('Otras referencias'!B$7,\"/Estación\"))","v":""}]
[null,{"$f":"IF(C195=\"\",\"\",IF(COUNTIF($C$3:C195, C195)>1, \"\", C195))","v":""},{"$f":"IF(E195=\"\",\"\",CONCATENATE(DIGITADOR!$M$1,E195,F195))","v":""},"",null,{"$f":"IF(G195=\"\",\"\",VLOOKUP(G195,referentes!S194:W241,4,FALSE))","v":""},null,null,null,null,null,null,null,null,null,null,{"$f":"IF(P195=\"\",\"\",'Otras referencias'!B$10)","v":""},null,{"$f":"IF(R195=\"\",\"\",'Otras referencias'!B$9)","v":""},null,{"$f":"IF(T195=\"\",\"\",CONCATENATE('Otras referencias'!B$7,\"/Estación\"))","v":""}]
[null,{"$f":"IF(C196=\"\",\"\",IF(COUNTIF($C$3:C196, C196)>1, \"\", C196))","v":""},{"$f":"IF(E196=\"\",\"\",CONCATENATE(DIGITADOR!$M$1,E196,F196))","v":""},{"$f":"IF(C196=\"\",\"\",CONCATENATE(C196,ROW()-2))","v":""},null,{"$f":"IF(G196=\"\",\"\",VLOOKUP(G196,referentes!S195:W242,4,FALSE))","v":""},null,null,null,null,null,null,null,null,null,null,{"$f":"IF(P196=\"\",\"\",'Otras referencias'!B$10)","v":""},null,{"$f":"IF(R196=\"\",\"\",'Otras referencias'!B$9)","v":""},null,{"$f":"IF(T196=\"\",\"\",CONCATENATE('Otras referencias'!B$7,\"/Estación\"))","v":""}]
[null,{"$f":"IF(C197=\"\",\"\",IF(COUNTIF($C$3:C197, C197)>1, \"\", C197))","v":""},{"$f":"IF(E197=\"\",\"\",CONCATENATE(DIGITADOR!$M$1,E197,F197))","v":""},"",null,{"$f":"IF(G197=\"\",\"\",VLOOKUP(G197,referentes!S196:W243,4,FALSE))","v":""},null,null,null,null,null,null,null,null,null,null,{"$f":"IF(P197=\"\",\"\",'Otras referencias'!B$10)","v":""},null,{"$f":"IF(R197=\"\",\"\",'Otras referencias'!B$9)","v":""},null,{"$f":"IF(T197=\"\",\"\",CONCATENATE('Otras referencias'!B$7,\"/Estación\"))","v":""}]
[null,{"$f":"IF(C198=\"\",\"\",IF(COUNTIF($C$3:C198, C198)>1, \"\", C198))","v":""},{"$f":"IF(E198=\"\",\"\",CONCATENATE(DIGITADOR!$M$1,E198,F198))","v":""},"",null,{"$f":"IF(G198=\"\",\"\",VLOOKUP(G198,referentes!S197:W244,4,FALSE))","v":""},null,null,null,null,null,null,null,null,null,null,{"$f":"IF(P198=\"\",\"\",'Otras referencias'!B$10)","v":""},null,{"$f":"IF(R198=\"\",\"\",'Otras referencias'!B$9)","v":""},null,{"$f":"IF(T198=\"\",\"\",CONCATENATE('Otras referencias'!B$7,\"/Estación\"))","v":""}]
[null,{"$f":"IF(C199=\"\",\"\",IF(COUNTIF($C$3:C199, C199)>1, \"\", C199))","v":""},{"$f":"IF(E199=\"\",\"\",CONCATENATE(DIGITADOR!$M$1,E199,F199))","v":""},"",null,{"$f":"IF(G199=\"\",\"\",VLOOKUP(G199,referentes!S198:W245,4,FALSE))","v":""},null,null,null,null,null,null,null,null,null,null,{"$f":"IF(P199=\"\",\"\",'Otras referencias'!B$10)","v":""},null,{"$f":"IF(R199=\"\",\"\",'Otras referencias'!B$9)","v":""},null,{"$f":"IF(T199=\"\",\"\",CONCATENATE('Otras referencias'!B$7,\"/Estación\"))","v":""}]
[null,{"$f":"IF(C200=\"\",\"\",IF(COUNTIF($C$3:C200, C200)>1, \"\", C200))","v":""},{"$f":"IF(E200=\"\",\"\",CONCATENATE(DIGITADOR!$M$1,E200,F200))","v":""},"",null,{"$f":"IF(G200=\"\",\"\",VLOOKUP(G200,referentes!S199:W246,4,FALSE))","v":""},null,null,null,null,null,null,null,null,null,null,{"$f":"IF(P200=\"\",\"\",'Otras referencias'!B$10)","v":""},null,{"$f":"IF(R200=\"\",\"\",'Otras referencias'!B$9)","v":""},null,{"$f":"IF(T200=\"\",\"\",CONCATENATE('Otras referencias'!B$7,\"/Estación\"))","v":""}]
[null,{"$f":"IF(C201=\"\",\"\",IF(COUNTIF($C$3:C201, C201)>1, \"\", C201))","v":""},{"$f":"IF(E201=\"\",\"\",CONCATENATE(DIGITADOR!$M$1,E201,F201))","v":""},"",null,{"$f":"IF(G201=\"\",\"\",VLOOKUP(G201,referentes!S200:W247,4,FALSE))","v":""},null,null,null,null,null,null,null,null,null,null,{"$f":"IF(P201=\"\",\"\",'Otras referencias'!B$10)","v":""},null,{"$f":"IF(R201=\"\",\"\",'Otras referencias'!B$9)","v":""},null,{"$f":"IF(T201=\"\",\"\",CONCATENATE('Otras referencias'!B$7,\"/Estación\"))","v":""}]
[null,{"$f":"IF(C202=\"\",\"\",IF(COUNTIF($C$3:C202, C202)>1, \"\", C202))","v":""},{"$f":"IF(E202=\"\",\"\",CONCATENATE(DIGITADOR!$M$1,E202,F202))","v":""},"",null,{"$f":"IF(G202=\"\",\"\",VLOOKUP(G202,referentes!S201:W248,4,FALSE))","v":""},null,null,null,null,null,null,null,null,null,null,{"$f":"IF(P202=\"\",\"\",'Otras referencias'!B$10)","v":""},null,{"$f":"IF(R202=\"\",\"\",'Otras referencias'!B$9)","v":""},null,{"$f":"IF(T202=\"\",\"\",CONCATENATE('Otras referencias'!B$7,\"/Estación\"))","v":""}]
[null,{"$f":"IF(C203=\"\",\"\",IF(COUNTIF($C$3:C203, C203)>1, \"\", C203))","v":""},{"$f":"IF(E203=\"\",\"\",CONCATENATE(DIGITADOR!$M$1,E203,F203))","v":""},"",null,{"$f":"IF(G203=\"\",\"\",VLOOKUP(G203,referentes!S202:W249,4,FALSE))","v":""},null,null,null,null,null,null,null,null,null,null,{"$f":"IF(P203=\"\",\"\",'Otras referencias'!B$10)","v":""},null,{"$f":"IF(R203=\"\",\"\",'Otras referencias'!B$9)","v":""},null,{"$f":"IF(T203=\"\",\"\",CONCATENATE('Otras referencias'!B$7,\"/Estación\"))","v":""}]
[null,{"$f":"IF(C204=\"\",\"\",IF(COUNTIF($C$3:C204, C204)>1, \"\", C204))","v":""},{"$f":"IF(E204=\"\",\"\",CONCATENATE(DIGITADOR!$M$1,E204,F204))","v":""},"",null,{"$f":"IF(G204=\"\",\"\",VLOOKUP(G204,referentes!S203:W250,4,FALSE))","v":""},null,null,null,null,null,null,null,null,null,null,{"$f":"IF(P204=\"\",\"\",'Otras referencias'!B$10)","v":""},null,{"$f":"IF(R204=\"\",\"\",'Otras referencias'!B$9)","v":""},null,{"$f":"IF(T204=\"\",\"\",CONCATENATE('Otras referencias'!B$7,\"/Estación\"))","v":""}]
[null,{"$f":"IF(C205=\"\",\"\",IF(COUNTIF($C$3:C205, C205)>1, \"\", C205))","v":""},{"$f":"IF(E205=\"\",\"\",CONCATENATE(DIGITADOR!$M$1,E205,F205))","v":""},"",null,{"$f":"IF(G205=\"\",\"\",VLOOKUP(G205,referentes!S204:W251,4,FALSE))","v":""},null,null,null,null,null,null,null,null,null,null,{"$f":"IF(P205=\"\",\"\",'Otras referencias'!B$10)","v":""},null,{"$f":"IF(R205=\"\",\"\",'Otras referencias'!B$9)","v":""},null,{"$f":"IF(T205=\"\",\"\",CONCATENATE('Otras referencias'!B$7,\"/Estación\"))","v":""}]
[null,{"$f":"IF(C206=\"\",\"\",IF(COUNTIF($C$3:C206, C206)>1, \"\", C206))","v":""},{"$f":"IF(E206=\"\",\"\",CONCATENATE(DIGITADOR!$M$1,E206,F206))","v":""},"",null,{"$f":"IF(G206=\"\",\"\",VLOOKUP(G206,referentes!S205:W252,4,FALSE))","v":""},null,null,null,null,null,null,null,null,null,null,{"$f":"IF(P206=\"\",\"\",'Otras referencias'!B$10)","v":""},null,{"$f":"IF(R206=\"\",\"\",'Otras referencias'!B$9)","v":""},null,{"$f":"IF(T206=\"\",\"\",CONCATENATE('Otras referencias'!B$7,\"/Estación\"))","v":""}]
[null,{"$f":"IF(C207=\"\",\"\",IF(COUNTIF($C$3:C207, C207)>1, \"\", C207))","v":""},{"$f":"IF(E207=\"\",\"\",CONCATENATE(DIGITADOR!$M$1,E207,F207))","v":""},"",null,{"$f":"IF(G207=\"\",\"\",VLOOKUP(G207,referentes!S206:W253,4,FALSE))","v":""},null,null,null,null,null,null,null,null,null,null,{"$f":"IF(P207=\"\",\"\",'Otras referencias'!B$10)","v":""},null,{"$f":"IF(R207=\"\",\"\",'Otras referencias'!B$9)","v":""},null,{"$f":"IF(T207=\"\",\"\",CONCATENATE('Otras referencias'!B$7,\"/Estación\"))","v":""}]
[null,{"$f":"IF(C208=\"\",\"\",IF(COUNTIF($C$3:C208, C208)>1, \"\", C208))","v":""},{"$f":"IF(E208=\"\",\"\",CONCATENATE(DIGITADOR!$M$1,E208,F208))","v":""},"",null,{"$f":"IF(G208=\"\",\"\",VLOOKUP(G208,referentes!S207:W254,4,FALSE))","v":""},null,null,null,null,null,null,null,null,null,null,{"$f":"IF(P208=\"\",\"\",'Otras referencias'!B$10)","v":""},null,{"$f":"IF(R208=\"\",\"\",'Otras referencias'!B$9)","v":""},null,{"$f":"IF(T208=\"\",\"\",CONCATENATE('Otras referencias'!B$7,\"/Estación\"))","v":""}]
[null,{"$f":"IF(C209=\"\",\"\",IF(COUNTIF($C$3:C209, C209)>1, \"\", C209))","v":""},{"$f":"IF(E209=\"\",\"\",CONCATENATE(DIGITADOR!$M$1,E209,F209))","v":""},"",null,{"$f":"IF(G209=\"\",\"\",VLOOKUP(G209,referentes!S208:W255,4,FALSE))","v":""},null,null,null,null,null,null,null,null,null,null,{"$f":"IF(P209=\"\",\"\",'Otras referencias'!B$10)","v":""},null,{"$f":"IF(R209=\"\",\"\",'Otras referencias'!B$9)","v":""},null,{"$f":"IF(T209=\"\",\"\",CONCATENATE('Otras referencias'!B$7,\"/Estación\"))","v":""}]
[null,{"$f":"IF(C210=\"\",\"\",IF(COUNTIF($C$3:C210, C210)>1, \"\", C210))","v":""},{"$f":"IF(E210=\"\",\"\",CONCATENATE(DIGITADOR!$M$1,E210,F210))","v":""},"",null,{"$f":"IF(G210=\"\",\"\",VLOOKUP(G210,referentes!S209:W256,4,FALSE))","v":""},null,null,null,null,null,null,null,null,null,null,{"$f":"IF(P210=\"\",\"\",'Otras referencias'!B$10)","v":""},null,{"$f":"IF(R210=\"\",\"\",'Otras referencias'!B$9)","v":""},null,{"$f":"IF(T210=\"\",\"\",CONCATENATE('Otras referencias'!B$7,\"/Estación\"))","v":""}]
[null,{"$f":"IF(C211=\"\",\"\",IF(COUNTIF($C$3:C211, C211)>1, \"\", C211))","v":""},{"$f":"IF(E211=\"\",\"\",CONCATENATE(DIGITADOR!$M$1,E211,F211))","v":""},"",null,{"$f":"IF(G211=\"\",\"\",VLOOKUP(G211,referentes!S210:W257,4,FALSE))","v":""},null,null,null,null,null,null,null,null,null,null,{"$f":"IF(P211=\"\",\"\",'Otras referencias'!B$10)","v":""},null,{"$f":"IF(R211=\"\",\"\",'Otras referencias'!B$9)","v":""},null,{"$f":"IF(T211=\"\",\"\",CONCATENATE('Otras referencias'!B$7,\"/Estación\"))","v":""}]
[null,{"$f":"IF(C212=\"\",\"\",IF(COUNTIF($C$3:C212, C212)>1, \"\", C212))","v":""},{"$f":"IF(E212=\"\",\"\",CONCATENATE(DIGITADOR!$M$1,E212,F212))","v":""},"",null,{"$f":"IF(G212=\"\",\"\",VLOOKUP(G212,referentes!S211:W258,4,FALSE))","v":""},null,null,null,null,null,null,null,null,null,null,{"$f":"IF(P212=\"\",\"\",'Otras referencias'!B$10)","v":""},null,{"$f":"IF(R212=\"\",\"\",'Otras referencias'!B$9)","v":""},null,{"$f":"IF(T212=\"\",\"\",CONCATENATE('Otras referencias'!B$7,\"/Estación\"))","v":""}]
[null,{"$f":"IF(C213=\"\",\"\",IF(COUNTIF($C$3:C213, C213)>1, \"\", C213))","v":""},{"$f":"IF(E213=\"\",\"\",CONCATENATE(DIGITADOR!$M$1,E213,F213))","v":""},"",null,{"$f":"IF(G213=\"\",\"\",VLOOKUP(G213,referentes!S212:W259,4,FALSE))","v":""},null,null,null,null,null,null,null,null,null,null,{"$f":"IF(P213=\"\",\"\",'Otras referencias'!B$10)","v":""},null,{"$f":"IF(R213=\"\",\"\",'Otras referencias'!B$9)","v":""},null,{"$f":"IF(T213=\"\",\"\",CONCATENATE('Otras referencias'!B$7,\"/Estación\"))","v":""}]
[null,{"$f":"IF(C214=\"\",\"\",IF(COUNTIF($C$3:C214, C214)>1, \"\", C214))","v":""},{"$f":"IF(E214=\"\",\"\",CONCATENATE(DIGITADOR!$M$1,E214,F214))","v":""},"",null,{"$f":"IF(G214=\"\",\"\",VLOOKUP(G214,referentes!S213:W260,4,FALSE))","v":""},null,null,null,null,null,null,null,null,null,null,{"$f":"IF(P214=\"\",\"\",'Otras referencias'!B$10)","v":""},null,{"$f":"IF(R214=\"\",\"\",'Otras referencias'!B$9)","v":""},null,{"$f":"IF(T214=\"\",\"\",CONCATENATE('Otras referencias'!B$7,\"/Estación\"))","v":""}]
[null,{"$f":"IF(C215=\"\",\"\",IF(COUNTIF($C$3:C215, C215)>1, \"\", C215))","v":""},{"$f":"IF(E215=\"\",\"\",CONCATENATE(DIGITADOR!$M$1,E215,F215))","v":""},"",null,{"$f":"IF(G215=\"\",\"\",VLOOKUP(G215,referentes!S214:W261,4,FALSE))","v":""},null,null,null,null,null,null,null,null,null,null,{"$f":"IF(P215=\"\",\"\",'Otras referencias'!B$10)","v":""},null,{"$f":"IF(R215=\"\",\"\",'Otras referencias'!B$9)","v":""},null,{"$f":"IF(T215=\"\",\"\",CONCATENATE('Otras referencias'!B$7,\"/Estación\"))","v":""}]
[null,{"$f":"IF(C216=\"\",\"\",IF(COUNTIF($C$3:C216, C216)>1, \"\", C216))","v":""},{"$f":"IF(E216=\"\",\"\",CONCATENATE(DIGITADOR!$M$1,E216,F216))","v":""},"",null,{"$f":"IF(G216=\"\",\"\",VLOOKUP(G216,referentes!S215:W262,4,FALSE))","v":""},null,null,null,null,null,null,null,null,null,null,{"$f":"IF(P216=\"\",\"\",'Otras referencias'!B$10)","v":""},null,{"$f":"IF(R216=\"\",\"\",'Otras referencias'!B$9)","v":""},null,{"$f":"IF(T216=\"\",\"\",CONCATENATE('Otras referencias'!B$7,\"/Estación\"))","v":""}]
[null,{"$f":"IF(C217=\"\",\"\",IF(COUNTIF($C$3:C217, C217)>1, \"\", C217))","v":""},{"$f":"IF(E217=\"\",\"\",CONCATENATE(DIGITADOR!$M$1,E217,F217))","v":""},"",null,{"$f":"IF(G217=\"\",\"\",VLOOKUP(G217,referentes!S216:W263,4,FALSE))","v":""},null,null,null,null,null,null,null,null,null,null,{"$f":"IF(P217=\"\",\"\",'Otras referencias'!B$10)","v":""},null,{"$f":"IF(R217=\"\",\"\",'Otras referencias'!B$9)","v":""},null,{"$f":"IF(T217=\"\",\"\",CONCATENATE('Otras referencias'!B$7,\"/Estación\"))","v":""}]
[null,{"$f":"IF(C218=\"\",\"\",IF(COUNTIF($C$3:C218, C218)>1, \"\", C218))","v":""},{"$f":"IF(E218=\"\",\"\",CONCATENATE(DIGITADOR!$M$1,E218,F218))","v":""},"",null,{"$f":"IF(G218=\"\",\"\",VLOOKUP(G218,referentes!S217:W264,4,FALSE))","v":""},null,null,null,null,null,null,null,null,null,null,{"$f":"IF(P218=\"\",\"\",'Otras referencias'!B$10)","v":""},null,{"$f":"IF(R218=\"\",\"\",'Otras referencias'!B$9)","v":""},null,{"$f":"IF(T218=\"\",\"\",CONCATENATE('Otras referencias'!B$7,\"/Estación\"))","v":""}]
[null,{"$f":"IF(C219=\"\",\"\",IF(COUNTIF($C$3:C219, C219)>1, \"\", C219))","v":""},{"$f":"IF(E219=\"\",\"\",CONCATENATE(DIGITADOR!$M$1,E219,F219))","v":""},"",null,{"$f":"IF(G219=\"\",\"\",VLOOKUP(G219,referentes!S218:W265,4,FALSE))","v":""},null,null,null,null,null,null,null,null,null,null,{"$f":"IF(P219=\"\",\"\",'Otras referencias'!B$10)","v":""},null,{"$f":"IF(R219=\"\",\"\",'Otras referencias'!B$9)","v":""},null,{"$f":"IF(T219=\"\",\"\",CONCATENATE('Otras referencias'!B$7,\"/Estación\"))","v":""}]
[null,{"$f":"IF(C220=\"\",\"\",IF(COUNTIF($C$3:C220, C220)>1, \"\", C220))","v":""},{"$f":"IF(E220=\"\",\"\",CONCATENATE(DIGITADOR!$M$1,E220,F220))","v":""},"",null,{"$f":"IF(G220=\"\",\"\",VLOOKUP(G220,referentes!S219:W266,4,FALSE))","v":""},null,null,null,null,null,null,null,null,null,null,{"$f":"IF(P220=\"\",\"\",'Otras referencias'!B$10)","v":""},null,{"$f":"IF(R220=\"\",\"\",'Otras referencias'!B$9)","v":""},null,{"$f":"IF(T220=\"\",\"\",CONCATENATE('Otras referencias'!B$7,\"/Estación\"))","v":""}]
[null,{"$f":"IF(C221=\"\",\"\",IF(COUNTIF($C$3:C221, C221)>1, \"\", C221))","v":""},{"$f":"IF(E221=\"\",\"\",CONCATENATE(DIGITADOR!$M$1,E221,F221))","v":""},"",null,{"$f":"IF(G221=\"\",\"\",VLOOKUP(G221,referentes!S220:W267,4,FALSE))","v":""},null,null,null,null,null,null,null,null,null,null,{"$f":"IF(P221=\"\",\"\",'Otras referencias'!B$10)","v":""},null,{"$f":"IF(R221=\"\",\"\",'Otras referencias'!B$9)","v":""},null,{"$f":"IF(T221=\"\",\"\",CONCATENATE('Otras referencias'!B$7,\"/Estación\"))","v":""}]
[null,{"$f":"IF(C222=\"\",\"\",IF(COUNTIF($C$3:C222, C222)>1, \"\", C222))","v":""},{"$f":"IF(E222=\"\",\"\",CONCATENATE(DIGITADOR!$M$1,E222,F222))","v":""},"",null,{"$f":"IF(G222=\"\",\"\",VLOOKUP(G222,referentes!S221:W268,4,FALSE))","v":""},null,null,null,null,null,null,null,null,null,null,{"$f":"IF(P222=\"\",\"\",'Otras referencias'!B$10)","v":""},null,{"$f":"IF(R222=\"\",\"\",'Otras referencias'!B$9)","v":""},null,{"$f":"IF(T222=\"\",\"\",CONCATENATE('Otras referencias'!B$7,\"/Estación\"))","v":""}]
[null,{"$f":"IF(C223=\"\",\"\",IF(COUNTIF($C$3:C223, C223)>1, \"\", C223))","v":""},{"$f":"IF(E223=\"\",\"\",CONCATENATE(DIGITADOR!$M$1,E223,F223))","v":""},"",null,{"$f":"IF(G223=\"\",\"\",VLOOKUP(G223,referentes!S222:W269,4,FALSE))","v":""},null,null,null,null,null,null,null,null,null,null,{"$f":"IF(P223=\"\",\"\",'Otras referencias'!B$10)","v":""},null,{"$f":"IF(R223=\"\",\"\",'Otras referencias'!B$9)","v":""},null,{"$f":"IF(T223=\"\",\"\",CONCATENATE('Otras referencias'!B$7,\"/Estación\"))","v":""}]
[null,{"$f":"IF(C224=\"\",\"\",IF(COUNTIF($C$3:C224, C224)>1, \"\", C224))","v":""},{"$f":"IF(E224=\"\",\"\",CONCATENATE(DIGITADOR!$M$1,E224,F224))","v":""},"",null,{"$f":"IF(G224=\"\",\"\",VLOOKUP(G224,referentes!S223:W270,4,FALSE))","v":""},null,null,null,null,null,null,null,null,null,null,{"$f":"IF(P224=\"\",\"\",'Otras referencias'!B$10)","v":""},null,{"$f":"IF(R224=\"\",\"\",'Otras referencias'!B$9)","v":""},null,{"$f":"IF(T224=\"\",\"\",CONCATENATE('Otras referencias'!B$7,\"/Estación\"))","v":""}]
[null,{"$f":"IF(C225=\"\",\"\",IF(COUNTIF($C$3:C225, C225)>1, \"\", C225))","v":""},{"$f":"IF(E225=\"\",\"\",CONCATENATE(DIGITADOR!$M$1,E225,F225))","v":""},"",null,{"$f":"IF(G225=\"\",\"\",VLOOKUP(G225,referentes!S224:W271,4,FALSE))","v":""},null,null,null,null,null,null,null,null,null,null,{"$f":"IF(P225=\"\",\"\",'Otras referencias'!B$10)","v":""},null,{"$f":"IF(R225=\"\",\"\",'Otras referencias'!B$9)","v":""},null,{"$f":"IF(T225=\"\",\"\",CONCATENATE('Otras referencias'!B$7,\"/Estación\"))","v":""}]
[null,{"$f":"IF(C226=\"\",\"\",IF(COUNTIF($C$3:C226, C226)>1, \"\", C226))","v":""},{"$f":"IF(E226=\"\",\"\",CONCATENATE(DIGITADOR!$M$1,E226,F226))","v":""},"",null,{"$f":"IF(G226=\"\",\"\",VLOOKUP(G226,referentes!S225:W272,4,FALSE))","v":""},null,null,null,null,null,null,null,null,null,null,{"$f":"IF(P226=\"\",\"\",'Otras referencias'!B$10)","v":""},null,{"$f":"IF(R226=\"\",\"\",'Otras referencias'!B$9)","v":""},null,{"$f":"IF(T226=\"\",\"\",CONCATENATE('Otras referencias'!B$7,\"/Estación\"))","v":""}]
[null,{"$f":"IF(C227=\"\",\"\",IF(COUNTIF($C$3:C227, C227)>1, \"\", C227))","v":""},{"$f":"IF(E227=\"\",\"\",CONCATENATE(DIGITADOR!$M$1,E227,F227))","v":""},"",null,{"$f":"IF(G227=\"\",\"\",VLOOKUP(G227,referentes!S226:W273,4,FALSE))","v":""},null,null,null,null,null,null,null,null,null,null,{"$f":"IF(P227=\"\",\"\",'Otras referencias'!B$10)","v":""},null,{"$f":"IF(R227=\"\",\"\",'Otras referencias'!B$9)","v":""},null,{"$f":"IF(T227=\"\",\"\",CONCATENATE('Otras referencias'!B$7,\"/Estación\"))","v":""}]
[null,{"$f":"IF(C228=\"\",\"\",IF(COUNTIF($C$3:C228, C228)>1, \"\", C228))","v":""},{"$f":"IF(E228=\"\",\"\",CONCATENATE(DIGITADOR!$M$1,E228,F228))","v":""},"",null,{"$f":"IF(G228=\"\",\"\",VLOOKUP(G228,referentes!S227:W274,4,FALSE))","v":""},null,null,null,null,null,null,null,null,null,null,{"$f":"IF(P228=\"\",\"\",'Otras referencias'!B$10)","v":""},null,{"$f":"IF(R228=\"\",\"\",'Otras referencias'!B$9)","v":""},null,{"$f":"IF(T228=\"\",\"\",CONCATENATE('Otras referencias'!B$7,\"/Estación\"))","v":""}]
[null,{"$f":"IF(C229=\"\",\"\",IF(COUNTIF($C$3:C229, C229)>1, \"\", C229))","v":""},{"$f":"IF(E229=\"\",\"\",CONCATENATE(DIGITADOR!$M$1,E229,F229))","v":""},"",null,{"$f":"IF(G229=\"\",\"\",VLOOKUP(G229,referentes!S228:W275,4,FALSE))","v":""},null,null,null,null,null,null,null,null,null,null,{"$f":"IF(P229=\"\",\"\",'Otras referencias'!B$10)","v":""},null,{"$f":"IF(R229=\"\",\"\",'Otras referencias'!B$9)","v":""},null,{"$f":"IF(T229=\"\",\"\",CONCATENATE('Otras referencias'!B$7,\"/Estación\"))","v":""}]
[null,{"$f":"IF(C230=\"\",\"\",IF(COUNTIF($C$3:C230, C230)>1, \"\", C230))","v":""},{"$f":"IF(E230=\"\",\"\",CONCATENATE(DIGITADOR!$M$1,E230,F230))","v":""},"",null,{"$f":"IF(G230=\"\",\"\",VLOOKUP(G230,referentes!S229:W276,4,FALSE))","v":""},null,null,null,null,null,null,null,null,null,null,{"$f":"IF(P230=\"\",\"\",'Otras referencias'!B$10)","v":""},null,{"$f":"IF(R230=\"\",\"\",'Otras referencias'!B$9)","v":""},null,{"$f":"IF(T230=\"\",\"\",CONCATENATE('Otras referencias'!B$7,\"/Estación\"))","v":""}]
[null,{"$f":"IF(C231=\"\",\"\",IF(COUNTIF($C$3:C231, C231)>1, \"\", C231))","v":""},{"$f":"IF(E231=\"\",\"\",CONCATENATE(DIGITADOR!$M$1,E231,F231))","v":""},"",null,{"$f":"IF(G231=\"\",\"\",VLOOKUP(G231,referentes!S230:W277,4,FALSE))","v":""},null,null,null,null,null,null,null,null,null,null,{"$f":"IF(P231=\"\",\"\",'Otras referencias'!B$10)","v":""},null,{"$f":"IF(R231=\"\",\"\",'Otras referencias'!B$9)","v":""},null,{"$f":"IF(T231=\"\",\"\",CONCATENATE('Otras referencias'!B$7,\"/Estación\"))","v":""}]
[null,{"$f":"IF(C232=\"\",\"\",IF(COUNTIF($C$3:C232, C232)>1, \"\", C232))","v":""},{"$f":"IF(E232=\"\",\"\",CONCATENATE(DIGITADOR!$M$1,E232,F232))","v":""},"",null,{"$f":"IF(G232=\"\",\"\",VLOOKUP(G232,referentes!S231:W278,4,FALSE))","v":""},null,null,null,null,null,null,null,null,null,null,{"$f":"IF(P232=\"\",\"\",'Otras referencias'!B$10)","v":""},null,{"$f":"IF(R232=\"\",\"\",'Otras referencias'!B$9)","v":""},null,{"$f":"IF(T232=\"\",\"\",CONCATENATE('Otras referencias'!B$7,\"/Estación\"))","v":""}]
[null,{"$f":"IF(C233=\"\",\"\",IF(COUNTIF($C$3:C233, C233)>1, \"\", C233))","v":""},{"$f":"IF(E233=\"\",\"\",CONCATENATE(DIGITADOR!$M$1,E233,F233))","v":""},"",null,{"$f":"IF(G233=\"\",\"\",VLOOKUP(G233,referentes!S232:W279,4,FALSE))","v":""},null,null,null,null,null,null,null,null,null,null,{"$f":"IF(P233=\"\",\"\",'Otras referencias'!B$10)","v":""},null,{"$f":"IF(R233=\"\",\"\",'Otras referencias'!B$9)","v":""},null,{"$f":"IF(T233=\"\",\"\",CONCATENATE('Otras referencias'!B$7,\"/Estación\"))","v":""}]
[null,{"$f":"IF(C234=\"\",\"\",IF(COUNTIF($C$3:C234, C234)>1, \"\", C234))","v":""},{"$f":"IF(E234=\"\",\"\",CONCATENATE(DIGITADOR!$M$1,E234,F234))","v":""},"",null,{"$f":"IF(G234=\"\",\"\",VLOOKUP(G234,referentes!S233:W280,4,FALSE))","v":""},null,null,null,null,null,null,null,null,null,null,{"$f":"IF(P234=\"\",\"\",'Otras referencias'!B$10)","v":""},null,{"$f":"IF(R234=\"\",\"\",'Otras referencias'!B$9)","v":""},null,{"$f":"IF(T234=\"\",\"\",CONCATENATE('Otras referencias'!B$7,\"/Estación\"))","v":""}]
[null,{"$f":"IF(C235=\"\",\"\",IF(COUNTIF($C$3:C235, C235)>1, \"\", C235))","v":""},{"$f":"IF(E235=\"\",\"\",CONCATENATE(DIGITADOR!$M$1,E235,F235))","v":""},"",null,{"$f":"IF(G235=\"\",\"\",VLOOKUP(G235,referentes!S234:W281,4,FALSE))","v":""},null,null,null,null,null,null,null,null,null,null,{"$f":"IF(P235=\"\",\"\",'Otras referencias'!B$10)","v":""},null,{"$f":"IF(R235=\"\",\"\",'Otras referencias'!B$9)","v":""},null,{"$f":"IF(T235=\"\",\"\",CONCATENATE('Otras referencias'!B$7,\"/Estación\"))","v":""}]
[null,{"$f":"IF(C236=\"\",\"\",IF(COUNTIF($C$3:C236, C236)>1, \"\", C236))","v":""},{"$f":"IF(E236=\"\",\"\",CONCATENATE(DIGITADOR!$M$1,E236,F236))","v":""},"",null,{"$f":"IF(G236=\"\",\"\",VLOOKUP(G236,referentes!S235:W282,4,FALSE))","v":""},null,null,null,null,null,null,null,null,null,null,{"$f":"IF(P236=\"\",\"\",'Otras referencias'!B$10)","v":""},null,{"$f":"IF(R236=\"\",\"\",'Otras referencias'!B$9)","v":""},null,{"$f":"IF(T236=\"\",\"\",CONCATENATE('Otras referencias'!B$7,\"/Estación\"))","v":""}]
[null,{"$f":"IF(C237=\"\",\"\",IF(COUNTIF($C$3:C237, C237)>1, \"\", C237))","v":""},{"$f":"IF(E237=\"\",\"\",CONCATENATE(DIGITADOR!$M$1,E237,F237))","v":""},"",null,{"$f":"IF(G237=\"\",\"\",VLOOKUP(G237,referentes!S236:W283,4,FALSE))","v":""},null,null,null,null,null,null,null,null,null,null,{"$f":"IF(P237=\"\",\"\",'Otras referencias'!B$10)","v":""},null,{"$f":"IF(R237=\"\",\"\",'Otras referencias'!B$9)","v":""},null,{"$f":"IF(T237=\"\",\"\",CONCATENATE('Otras referencias'!B$7,\"/Estación\"))","v":""}]
[null,{"$f":"IF(C238=\"\",\"\",IF(COUNTIF($C$3:C238, C238)>1, \"\", C238))","v":""},{"$f":"IF(E238=\"\",\"\",CONCATENATE(DIGITADOR!$M$1,E238,F238))","v":""},"",null,{"$f":"IF(G238=\"\",\"\",VLOOKUP(G238,referentes!S237:W284,4,FALSE))","v":""},null,null,null,null,null,null,null,null,null,null,{"$f":"IF(P238=\"\",\"\",'Otras referencias'!B$10)","v":""},null,{"$f":"IF(R238=\"\",\"\",'Otras referencias'!B$9)","v":""},null,{"$f":"IF(T238=\"\",\"\",CONCATENATE('Otras referencias'!B$7,\"/Estación\"))","v":""}]
[null,{"$f":"IF(C239=\"\",\"\",IF(COUNTIF($C$3:C239, C239)>1, \"\", C239))","v":""},{"$f":"IF(E239=\"\",\"\",CONCATENATE(DIGITADOR!$M$1,E239,F239))","v":""},"",null,{"$f":"IF(G239=\"\",\"\",VLOOKUP(G239,referentes!S238:W285,4,FALSE))","v":""},null,null,null,null,null,null,null,null,null,null,{"$f":"IF(P239=\"\",\"\",'Otras referencias'!B$10)","v":""},null,{"$f":"IF(R239=\"\",\"\",'Otras referencias'!B$9)","v":""},null,{"$f":"IF(T239=\"\",\"\",CONCATENATE('Otras referencias'!B$7,\"/Estación\"))","v":""}]
[null,{"$f":"IF(C240=\"\",\"\",IF(COUNTIF($C$3:C240, C240)>1, \"\", C240))","v":""},{"$f":"IF(E240=\"\",\"\",CONCATENATE(DIGITADOR!$M$1,E240,F240))","v":""},"",null,{"$f":"IF(G240=\"\",\"\",VLOOKUP(G240,referentes!S239:W286,4,FALSE))","v":""},null,null,null,null,null,null,null,null,null,null,{"$f":"IF(P240=\"\",\"\",'Otras referencias'!B$10)","v":""},null,{"$f":"IF(R240=\"\",\"\",'Otras referencias'!B$9)","v":""},null,{"$f":"IF(T240=\"\",\"\",CONCATENATE('Otras referencias'!B$7,\"/Estación\"))","v":""}]
[null,{"$f":"IF(C241=\"\",\"\",IF(COUNTIF($C$3:C241, C241)>1, \"\", C241))","v":""},{"$f":"IF(E241=\"\",\"\",CONCATENATE(DIGITADOR!$M$1,E241,F241))","v":""},"",null,{"$f":"IF(G241=\"\",\"\",VLOOKUP(G241,referentes!S240:W287,4,FALSE))","v":""},null,null,null,null,null,null,null,null,null,null,{"$f":"IF(P241=\"\",\"\",'Otras referencias'!B$10)","v":""},null,{"$f":"IF(R241=\"\",\"\",'Otras referencias'!B$9)","v":""},null,{"$f":"IF(T241=\"\",\"\",CONCATENATE('Otras referencias'!B$7,\"/Estación\"))","v":""}]
[null,{"$f":"IF(C242=\"\",\"\",IF(COUNTIF($C$3:C242, C242)>1, \"\", C242))","v":""},{"$f":"IF(E242=\"\",\"\",CONCATENATE(DIGITADOR!$M$1,E242,F242))","v":""},"",null,{"$f":"IF(G242=\"\",\"\",VLOOKUP(G242,referentes!S241:W288,4,FALSE))","v":""},null,null,null,null,null,null,null,null,null,null,{"$f":"IF(P242=\"\",\"\",'Otras referencias'!B$10)","v":""},null,{"$f":"IF(R242=\"\",\"\",'Otras referencias'!B$9)","v":""},null,{"$f":"IF(T242=\"\",\"\",CONCATENATE('Otras referencias'!B$7,\"/Estación\"))","v":""}]
[null,{"$f":"IF(C243=\"\",\"\",IF(COUNTIF($C$3:C243, C243)>1, \"\", C243))","v":""},{"$f":"IF(E243=\"\",\"\",CONCATENATE(DIGITADOR!$M$1,E243,F243))","v":""},"",null,{"$f":"IF(G243=\"\",\"\",VLOOKUP(G243,referentes!S242:W289,4,FALSE))","v":""},null,null,null,null,null,null,null,null,null,null,{"$f":"IF(P243=\"\",\"\",'Otras referencias'!B$10)","v":""},null,{"$f":"IF(R243=\"\",\"\",'Otras referencias'!B$9)","v":""},null,{"$f":"IF(T243=\"\",\"\",CONCATENATE('Otras referencias'!B$7,\"/Estación\"))","v":""}]
[null,{"$f":"IF(C244=\"\",\"\",IF(COUNTIF($C$3:C244, C244)>1, \"\", C244))","v":""},{"$f":"IF(E244=\"\",\"\",CONCATENATE(DIGITADOR!$M$1,E244,F244))","v":""},"",null,{"$f":"IF(G244=\"\",\"\",VLOOKUP(G244,referentes!S243:W290,4,FALSE))","v":""},null,null,null,null,null,null,null,null,null,null,{"$f":"IF(P244=\"\",\"\",'Otras referencias'!B$10)","v":""},null,{"$f":"IF(R244=\"\",\"\",'Otras referencias'!B$9)","v":""},null,{"$f":"IF(T244=\"\",\"\",CONCATENATE('Otras referencias'!B$7,\"/Estación\"))","v":""}]
[null,{"$f":"IF(C245=\"\",\"\",IF(COUNTIF($C$3:C245, C245)>1, \"\", C245))","v":""},{"$f":"IF(E245=\"\",\"\",CONCATENATE(DIGITADOR!$M$1,E245,F245))","v":""},"",null,{"$f":"IF(G245=\"\",\"\",VLOOKUP(G245,referentes!S244:W291,4,FALSE))","v":""},null,null,null,null,null,null,null,null,null,null,{"$f":"IF(P245=\"\",\"\",'Otras referencias'!B$10)","v":""},null,{"$f":"IF(R245=\"\",\"\",'Otras referencias'!B$9)","v":""},null,{"$f":"IF(T245=\"\",\"\",CONCATENATE('Otras referencias'!B$7,\"/Estación\"))","v":""}]
[null,{"$f":"IF(C246=\"\",\"\",IF(COUNTIF($C$3:C246, C246)>1, \"\", C246))","v":""},{"$f":"IF(E246=\"\",\"\",CONCATENATE(DIGITADOR!$M$1,E246,F246))","v":""},"",null,{"$f":"IF(G246=\"\",\"\",VLOOKUP(G246,referentes!S245:W292,4,FALSE))","v":""},null,null,null,null,null,null,null,null,null,null,{"$f":"IF(P246=\"\",\"\",'Otras referencias'!B$10)","v":""},null,{"$f":"IF(R246=\"\",\"\",'Otras referencias'!B$9)","v":""},null,{"$f":"IF(T246=\"\",\"\",CONCATENATE('Otras referencias'!B$7,\"/Estación\"))","v":""}]
[null,{"$f":"IF(C247=\"\",\"\",IF(COUNTIF($C$3:C247, C247)>1, \"\", C247))","v":""},{"$f":"IF(E247=\"\",\"\",CONCATENATE(DIGITADOR!$M$1,E247,F247))","v":""},"",null,{"$f":"IF(G247=\"\",\"\",VLOOKUP(G247,referentes!S246:W293,4,FALSE))","v":""},null,null,null,null,null,null,null,null,null,null,{"$f":"IF(P247=\"\",\"\",'Otras referencias'!B$10)","v":""},null,{"$f":"IF(R247=\"\",\"\",'Otras referencias'!B$9)","v":""},null,{"$f":"IF(T247=\"\",\"\",CONCATENATE('Otras referencias'!B$7,\"/Estación\"))","v":""}]
[null,{"$f":"IF(C248=\"\",\"\",IF(COUNTIF($C$3:C248, C248)>1, \"\", C248))","v":""},{"$f":"IF(E248=\"\",\"\",CONCATENATE(DIGITADOR!$M$1,E248,F248))","v":""},"",null,{"$f":"IF(G248=\"\",\"\",VLOOKUP(G248,referentes!S247:W294,4,FALSE))","v":""},null,null,null,null,null,null,null,null,null,null,{"$f":"IF(P248=\"\",\"\",'Otras referencias'!B$10)","v":""},null,{"$f":"IF(R248=\"\",\"\",'Otras referencias'!B$9)","v":""},null,{"$f":"IF(T248=\"\",\"\",CONCATENATE('Otras referencias'!B$7,\"/Estación\"))","v":""}]
[null,{"$f":"IF(C249=\"\",\"\",IF(COUNTIF($C$3:C249, C249)>1, \"\", C249))","v":""},{"$f":"IF(E249=\"\",\"\",CONCATENATE(DIGITADOR!$M$1,E249,F249))","v":""},"",null,{"$f":"IF(G249=\"\",\"\",VLOOKUP(G249,referentes!S248:W295,4,FALSE))","v":""},null,null,null,null,null,null,null,null,null,null,{"$f":"IF(P249=\"\",\"\",'Otras referencias'!B$10)","v":""},null,{"$f":"IF(R249=\"\",\"\",'Otras referencias'!B$9)","v":""},null,{"$f":"IF(T249=\"\",\"\",CONCATENATE('Otras referencias'!B$7,\"/Estación\"))","v":""}]
[null,{"$f":"IF(C250=\"\",\"\",IF(COUNTIF($C$3:C250, C250)>1, \"\", C250))","v":""},{"$f":"IF(E250=\"\",\"\",CONCATENATE(DIGITADOR!$M$1,E250,F250))","v":""},"",null,{"$f":"IF(G250=\"\",\"\",VLOOKUP(G250,referentes!S249:W296,4,FALSE))","v":""},null,null,null,null,null,null,null,null,null,null,{"$f":"IF(P250=\"\",\"\",'Otras referencias'!B$10)","v":""},null,{"$f":"IF(R250=\"\",\"\",'Otras referencias'!B$9)","v":""},null,{"$f":"IF(T250=\"\",\"\",CONCATENATE('Otras referencias'!B$7,\"/Estación\"))","v":""}]
[null,{"$f":"IF(C251=\"\",\"\",IF(COUNTIF($C$3:C251, C251)>1, \"\", C251))","v":""},{"$f":"IF(E251=\"\",\"\",CONCATENATE(DIGITADOR!$M$1,E251,F251))","v":""},"",null,{"$f":"IF(G251=\"\",\"\",VLOOKUP(G251,referentes!S250:W297,4,FALSE))","v":""},null,null,null,null,null,null,null,null,null,null,{"$f":"IF(P251=\"\",\"\",'Otras referencias'!B$10)","v":""},null,{"$f":"IF(R251=\"\",\"\",'Otras referencias'!B$9)","v":""},null,{"$f":"IF(T251=\"\",\"\",CONCATENATE('Otras referencias'!B$7,\"/Estación\"))","v":""}]
[null,{"$f":"IF(C252=\"\",\"\",IF(COUNTIF($C$3:C252, C252)>1, \"\", C252))","v":""},{"$f":"IF(E252=\"\",\"\",CONCATENATE(DIGITADOR!$M$1,E252,F252))","v":""},"",null,{"$f":"IF(G252=\"\",\"\",VLOOKUP(G252,referentes!S251:W298,4,FALSE))","v":""},null,null,null,null,null,null,null,null,null,null,{"$f":"IF(P252=\"\",\"\",'Otras referencias'!B$10)","v":""},null,{"$f":"IF(R252=\"\",\"\",'Otras referencias'!B$9)","v":""},null,{"$f":"IF(T252=\"\",\"\",CONCATENATE('Otras referencias'!B$7,\"/Estación\"))","v":""}]
[null,{"$f":"IF(C253=\"\",\"\",IF(COUNTIF($C$3:C253, C253)>1, \"\", C253))","v":""},{"$f":"IF(E253=\"\",\"\",CONCATENATE(DIGITADOR!$M$1,E253,F253))","v":""},"",null,{"$f":"IF(G253=\"\",\"\",VLOOKUP(G253,referentes!S252:W299,4,FALSE))","v":""},null,null,null,null,null,null,null,null,null,null,{"$f":"IF(P253=\"\",\"\",'Otras referencias'!B$10)","v":""},null,{"$f":"IF(R253=\"\",\"\",'Otras referencias'!B$9)","v":""},null,{"$f":"IF(T253=\"\",\"\",CONCATENATE('Otras referencias'!B$7,\"/Estación\"))","v":""}]
[null,{"$f":"IF(C254=\"\",\"\",IF(COUNTIF($C$3:C254, C254)>1, \"\", C254))","v":""},{"$f":"IF(E254=\"\",\"\",CONCATENATE(DIGITADOR!$M$1,E254,F254))","v":""},"",null,{"$f":"IF(G254=\"\",\"\",VLOOKUP(G254,referentes!S253:W300,4,FALSE))","v":""},null,null,null,null,null,null,null,null,null,null,{"$f":"IF(P254=\"\",\"\",'Otras referencias'!B$10)","v":""},null,{"$f":"IF(R254=\"\",\"\",'Otras referencias'!B$9)","v":""},null,{"$f":"IF(T254=\"\",\"\",CONCATENATE('Otras referencias'!B$7,\"/Estación\"))","v":""}]
[null,{"$f":"IF(C255=\"\",\"\",IF(COUNTIF($C$3:C255, C255)>1, \"\", C255))","v":""},{"$f":"IF(E255=\"\",\"\",CONCATENATE(DIGITADOR!$M$1,E255,F255))","v":""},"",null,{"$f":"IF(G255=\"\",\"\",VLOOKUP(G255,referentes!S254:W301,4,FALSE))","v":""},null,null,null,null,null,null,null,null,null,null,{"$f":"IF(P255=\"\",\"\",'Otras referencias'!B$10)","v":""},null,{"$f":"IF(R255=\"\",\"\",'Otras referencias'!B$9)","v":""},null,{"$f":"IF(T255=\"\",\"\",CONCATENATE('Otras referencias'!B$7,\"/Estación\"))","v":""}]
[null,{"$f":"IF(C256=\"\",\"\",IF(COUNTIF($C$3:C256, C256)>1, \"\", C256))","v":""},{"$f":"IF(E256=\"\",\"\",CONCATENATE(DIGITADOR!$M$1,E256,F256))","v":""},"",null,{"$f":"IF(G256=\"\",\"\",VLOOKUP(G256,referentes!S255:W302,4,FALSE))","v":""},null,null,null,null,null,null,null,null,null,null,{"$f":"IF(P256=\"\",\"\",'Otras referencias'!B$10)","v":""},null,{"$f":"IF(R256=\"\",\"\",'Otras referencias'!B$9)","v":""},null,{"$f":"IF(T256=\"\",\"\",CONCATENATE('Otras referencias'!B$7,\"/Estación\"))","v":""}]
[null,{"$f":"IF(C257=\"\",\"\",IF(COUNTIF($C$3:C257, C257)>1, \"\", C257))","v":""},{"$f":"IF(E257=\"\",\"\",CONCATENATE(DIGITADOR!$M$1,E257,F257))","v":""},"",null,{"$f":"IF(G257=\"\",\"\",VLOOKUP(G257,referentes!S256:W303,4,FALSE))","v":""},null,null,null,null,null,null,null,null,null,null,{"$f":"IF(P257=\"\",\"\",'Otras referencias'!B$10)","v":""},null,{"$f":"IF(R257=\"\",\"\",'Otras referencias'!B$9)","v":""},null,{"$f":"IF(T257=\"\",\"\",CONCATENATE('Otras referencias'!B$7,\"/Estación\"))","v":""}]
[null,{"$f":"IF(C258=\"\",\"\",IF(COUNTIF($C$3:C258, C258)>1, \"\", C258))","v":""},{"$f":"IF(E258=\"\",\"\",CONCATENATE(DIGITADOR!$M$1,E258,F258))","v":""},"",null,{"$f":"IF(G258=\"\",\"\",VLOOKUP(G258,referentes!S257:W304,4,FALSE))","v":""},null,null,null,null,null,null,null,null,null,null,{"$f":"IF(P258=\"\",\"\",'Otras referencias'!B$10)","v":""},null,{"$f":"IF(R258=\"\",\"\",'Otras referencias'!B$9)","v":""},null,{"$f":"IF(T258=\"\",\"\",CONCATENATE('Otras referencias'!B$7,\"/Estación\"))","v":""}]
[null,{"$f":"IF(C259=\"\",\"\",IF(COUNTIF($C$3:C259, C259)>1, \"\", C259))","v":""},{"$f":"IF(E259=\"\",\"\",CONCATENATE(DIGITADOR!$M$1,E259,F259))","v":""},"",null,{"$f":"IF(G259=\"\",\"\",VLOOKUP(G259,referentes!S258:W305,4,FALSE))","v":""},null,null,null,null,null,null,null,null,null,null,{"$f":"IF(P259=\"\",\"\",'Otras referencias'!B$10)","v":""},null,{"$f":"IF(R259=\"\",\"\",'Otras referencias'!B$9)","v":""},null,{"$f":"IF(T259=\"\",\"\",CONCATENATE('Otras referencias'!B$7,\"/Estación\"))","v":""}]
[null,{"$f":"IF(C260=\"\",\"\",IF(COUNTIF($C$3:C260, C260)>1, \"\", C260))","v":""},{"$f":"IF(E260=\"\",\"\",CONCATENATE(DIGITADOR!$M$1,E260,F260))","v":""},{"$f":"IF(C260=\"\",\"\",CONCATENATE(C260,ROW()-2))","v":""},null,{"$f":"IF(G260=\"\",\"\",VLOOKUP(G260,referentes!S259:W306,4,FALSE))","v":""},null,null,null,null,null,null,null,null,null,null,{"$f":"IF(P260=\"\",\"\",'Otras referencias'!B$10)","v":""},null,{"$f":"IF(R260=\"\",\"\",'Otras referencias'!B$9)","v":""},null,{"$f":"IF(T260=\"\",\"\",CONCATENATE('Otras referencias'!B$7,\"/Estación\"))","v":""}]
[null,{"$f":"IF(C261=\"\",\"\",IF(COUNTIF($C$3:C261, C261)>1, \"\", C261))","v":""},{"$f":"IF(E261=\"\",\"\",CONCATENATE(DIGITADOR!$M$1,E261,F261))","v":""},"",null,{"$f":"IF(G261=\"\",\"\",VLOOKUP(G261,referentes!S260:W307,4,FALSE))","v":""},null,null,null,null,null,null,null,null,null,null,{"$f":"IF(P261=\"\",\"\",'Otras referencias'!B$10)","v":""},null,{"$f":"IF(R261=\"\",\"\",'Otras referencias'!B$9)","v":""},null,{"$f":"IF(T261=\"\",\"\",CONCATENATE('Otras referencias'!B$7,\"/Estación\"))","v":""}]
[null,{"$f":"IF(C262=\"\",\"\",IF(COUNTIF($C$3:C262, C262)>1, \"\", C262))","v":""},{"$f":"IF(E262=\"\",\"\",CONCATENATE(DIGITADOR!$M$1,E262,F262))","v":""},"",null,{"$f":"IF(G262=\"\",\"\",VLOOKUP(G262,referentes!S261:W308,4,FALSE))","v":""},null,null,null,null,null,null,null,null,null,null,{"$f":"IF(P262=\"\",\"\",'Otras referencias'!B$10)","v":""},null,{"$f":"IF(R262=\"\",\"\",'Otras referencias'!B$9)","v":""},null,{"$f":"IF(T262=\"\",\"\",CONCATENATE('Otras referencias'!B$7,\"/Estación\"))","v":""}]
[null,{"$f":"IF(C263=\"\",\"\",IF(COUNTIF($C$3:C263, C263)>1, \"\", C263))","v":""},{"$f":"IF(E263=\"\",\"\",CONCATENATE(DIGITADOR!$M$1,E263,F263))","v":""},"",null,{"$f":"IF(G263=\"\",\"\",VLOOKUP(G263,referentes!S262:W309,4,FALSE))","v":""},null,null,null,null,null,null,null,null,null,null,{"$f":"IF(P263=\"\",\"\",'Otras referencias'!B$10)","v":""},null,{"$f":"IF(R263=\"\",\"\",'Otras referencias'!B$9)","v":""},null,{"$f":"IF(T263=\"\",\"\",CONCATENATE('Otras referencias'!B$7,\"/Estación\"))","v":""}]
[null,{"$f":"IF(C264=\"\",\"\",IF(COUNTIF($C$3:C264, C264)>1, \"\", C264))","v":""},{"$f":"IF(E264=\"\",\"\",CONCATENATE(DIGITADOR!$M$1,E264,F264))","v":""},"",null,{"$f":"IF(G264=\"\",\"\",VLOOKUP(G264,referentes!S263:W310,4,FALSE))","v":""},null,null,null,null,null,null,null,null,null,null,{"$f":"IF(P264=\"\",\"\",'Otras referencias'!B$10)","v":""},null,{"$f":"IF(R264=\"\",\"\",'Otras referencias'!B$9)","v":""},null,{"$f":"IF(T264=\"\",\"\",CONCATENATE('Otras referencias'!B$7,\"/Estación\"))","v":""}]
[null,{"$f":"IF(C265=\"\",\"\",IF(COUNTIF($C$3:C265, C265)>1, \"\", C265))","v":""},{"$f":"IF(E265=\"\",\"\",CONCATENATE(DIGITADOR!$M$1,E265,F265))","v":""},"",null,{"$f":"IF(G265=\"\",\"\",VLOOKUP(G265,referentes!S264:W311,4,FALSE))","v":""},null,null,null,null,null,null,null,null,null,null,{"$f":"IF(P265=\"\",\"\",'Otras referencias'!B$10)","v":""},null,{"$f":"IF(R265=\"\",\"\",'Otras referencias'!B$9)","v":""},null,{"$f":"IF(T265=\"\",\"\",CONCATENATE('Otras referencias'!B$7,\"/Estación\"))","v":""}]
[null,{"$f":"IF(C266=\"\",\"\",IF(COUNTIF($C$3:C266, C266)>1, \"\", C266))","v":""},{"$f":"IF(E266=\"\",\"\",CONCATENATE(DIGITADOR!$M$1,E266,F266))","v":""},"",null,{"$f":"IF(G266=\"\",\"\",VLOOKUP(G266,referentes!S265:W312,4,FALSE))","v":""},null,null,null,null,null,null,null,null,null,null,{"$f":"IF(P266=\"\",\"\",'Otras referencias'!B$10)","v":""},null,{"$f":"IF(R266=\"\",\"\",'Otras referencias'!B$9)","v":""},null,{"$f":"IF(T266=\"\",\"\",CONCATENATE('Otras referencias'!B$7,\"/Estación\"))","v":""}]
[null,{"$f":"IF(C267=\"\",\"\",IF(COUNTIF($C$3:C267, C267)>1, \"\", C267))","v":""},{"$f":"IF(E267=\"\",\"\",CONCATENATE(DIGITADOR!$M$1,E267,F267))","v":""},"",null,{"$f":"IF(G267=\"\",\"\",VLOOKUP(G267,referentes!S266:W313,4,FALSE))","v":""},null,null,null,null,null,null,null,null,null,null,{"$f":"IF(P267=\"\",\"\",'Otras referencias'!B$10)","v":""},null,{"$f":"IF(R267=\"\",\"\",'Otras referencias'!B$9)","v":""},null,{"$f":"IF(T267=\"\",\"\",CONCATENATE('Otras referencias'!B$7,\"/Estación\"))","v":""}]
[null,{"$f":"IF(C268=\"\",\"\",IF(COUNTIF($C$3:C268, C268)>1, \"\", C268))","v":""},{"$f":"IF(E268=\"\",\"\",CONCATENATE(DIGITADOR!$M$1,E268,F268))","v":""},"",null,{"$f":"IF(G268=\"\",\"\",VLOOKUP(G268,referentes!S267:W314,4,FALSE))","v":""},null,null,null,null,null,null,null,null,null,null,{"$f":"IF(P268=\"\",\"\",'Otras referencias'!B$10)","v":""},null,{"$f":"IF(R268=\"\",\"\",'Otras referencias'!B$9)","v":""},null,{"$f":"IF(T268=\"\",\"\",CONCATENATE('Otras referencias'!B$7,\"/Estación\"))","v":""}]
[null,{"$f":"IF(C269=\"\",\"\",IF(COUNTIF($C$3:C269, C269)>1, \"\", C269))","v":""},{"$f":"IF(E269=\"\",\"\",CONCATENATE(DIGITADOR!$M$1,E269,F269))","v":""},"",null,{"$f":"IF(G269=\"\",\"\",VLOOKUP(G269,referentes!S268:W315,4,FALSE))","v":""},null,null,null,null,null,null,null,null,null,null,{"$f":"IF(P269=\"\",\"\",'Otras referencias'!B$10)","v":""},null,{"$f":"IF(R269=\"\",\"\",'Otras referencias'!B$9)","v":""},null,{"$f":"IF(T269=\"\",\"\",CONCATENATE('Otras referencias'!B$7,\"/Estación\"))","v":""}]
[null,{"$f":"IF(C270=\"\",\"\",IF(COUNTIF($C$3:C270, C270)>1, \"\", C270))","v":""},{"$f":"IF(E270=\"\",\"\",CONCATENATE(DIGITADOR!$M$1,E270,F270))","v":""},"",null,{"$f":"IF(G270=\"\",\"\",VLOOKUP(G270,referentes!S269:W316,4,FALSE))","v":""},null,null,null,null,null,null,null,null,null,null,{"$f":"IF(P270=\"\",\"\",'Otras referencias'!B$10)","v":""},null,{"$f":"IF(R270=\"\",\"\",'Otras referencias'!B$9)","v":""},null,{"$f":"IF(T270=\"\",\"\",CONCATENATE('Otras referencias'!B$7,\"/Estación\"))","v":""}]
[null,{"$f":"IF(C271=\"\",\"\",IF(COUNTIF($C$3:C271, C271)>1, \"\", C271))","v":""},{"$f":"IF(E271=\"\",\"\",CONCATENATE(DIGITADOR!$M$1,E271,F271))","v":""},"",null,{"$f":"IF(G271=\"\",\"\",VLOOKUP(G271,referentes!S270:W317,4,FALSE))","v":""},null,null,null,null,null,null,null,null,null,null,{"$f":"IF(P271=\"\",\"\",'Otras referencias'!B$10)","v":""},null,{"$f":"IF(R271=\"\",\"\",'Otras referencias'!B$9)","v":""},null,{"$f":"IF(T271=\"\",\"\",CONCATENATE('Otras referencias'!B$7,\"/Estación\"))","v":""}]
[null,{"$f":"IF(C272=\"\",\"\",IF(COUNTIF($C$3:C272, C272)>1, \"\", C272))","v":""},{"$f":"IF(E272=\"\",\"\",CONCATENATE(DIGITADOR!$M$1,E272,F272))","v":""},"",null,{"$f":"IF(G272=\"\",\"\",VLOOKUP(G272,referentes!S271:W318,4,FALSE))","v":""},null,null,null,null,null,null,null,null,null,null,{"$f":"IF(P272=\"\",\"\",'Otras referencias'!B$10)","v":""},null,{"$f":"IF(R272=\"\",\"\",'Otras referencias'!B$9)","v":""},null,{"$f":"IF(T272=\"\",\"\",CONCATENATE('Otras referencias'!B$7,\"/Estación\"))","v":""}]
[null,{"$f":"IF(C273=\"\",\"\",IF(COUNTIF($C$3:C273, C273)>1, \"\", C273))","v":""},{"$f":"IF(E273=\"\",\"\",CONCATENATE(DIGITADOR!$M$1,E273,F273))","v":""},"",null,{"$f":"IF(G273=\"\",\"\",VLOOKUP(G273,referentes!S272:W319,4,FALSE))","v":""},null,null,null,null,null,null,null,null,null,null,{"$f":"IF(P273=\"\",\"\",'Otras referencias'!B$10)","v":""},null,{"$f":"IF(R273=\"\",\"\",'Otras referencias'!B$9)","v":""},null,{"$f":"IF(T273=\"\",\"\",CONCATENATE('Otras referencias'!B$7,\"/Estación\"))","v":""}]
[null,{"$f":"IF(C274=\"\",\"\",IF(COUNTIF($C$3:C274, C274)>1, \"\", C274))","v":""},{"$f":"IF(E274=\"\",\"\",CONCATENATE(DIGITADOR!$M$1,E274,F274))","v":""},"",null,{"$f":"IF(G274=\"\",\"\",VLOOKUP(G274,referentes!S273:W320,4,FALSE))","v":""},null,null,null,null,null,null,null,null,null,null,{"$f":"IF(P274=\"\",\"\",'Otras referencias'!B$10)","v":""},null,{"$f":"IF(R274=\"\",\"\",'Otras referencias'!B$9)","v":""},null,{"$f":"IF(T274=\"\",\"\",CONCATENATE('Otras referencias'!B$7,\"/Estación\"))","v":""}]
[null,{"$f":"IF(C275=\"\",\"\",IF(COUNTIF($C$3:C275, C275)>1, \"\", C275))","v":""},{"$f":"IF(E275=\"\",\"\",CONCATENATE(DIGITADOR!$M$1,E275,F275))","v":""},"",null,{"$f":"IF(G275=\"\",\"\",VLOOKUP(G275,referentes!S274:W321,4,FALSE))","v":""},null,null,null,null,null,null,null,null,null,null,{"$f":"IF(P275=\"\",\"\",'Otras referencias'!B$10)","v":""},null,{"$f":"IF(R275=\"\",\"\",'Otras referencias'!B$9)","v":""},null,{"$f":"IF(T275=\"\",\"\",CONCATENATE('Otras referencias'!B$7,\"/Estación\"))","v":""}]
[null,{"$f":"IF(C276=\"\",\"\",IF(COUNTIF($C$3:C276, C276)>1, \"\", C276))","v":""},{"$f":"IF(E276=\"\",\"\",CONCATENATE(DIGITADOR!$M$1,E276,F276))","v":""},"",null,{"$f":"IF(G276=\"\",\"\",VLOOKUP(G276,referentes!S275:W322,4,FALSE))","v":""},null,null,null,null,null,null,null,null,null,null,{"$f":"IF(P276=\"\",\"\",'Otras referencias'!B$10)","v":""},null,{"$f":"IF(R276=\"\",\"\",'Otras referencias'!B$9)","v":""},null,{"$f":"IF(T276=\"\",\"\",CONCATENATE('Otras referencias'!B$7,\"/Estación\"))","v":""}]
[null,{"$f":"IF(C277=\"\",\"\",IF(COUNTIF($C$3:C277, C277)>1, \"\", C277))","v":""},{"$f":"IF(E277=\"\",\"\",CONCATENATE(DIGITADOR!$M$1,E277,F277))","v":""},"",null,{"$f":"IF(G277=\"\",\"\",VLOOKUP(G277,referentes!S276:W323,4,FALSE))","v":""},null,null,null,null,null,null,null,null,null,null,{"$f":"IF(P277=\"\",\"\",'Otras referencias'!B$10)","v":""},null,{"$f":"IF(R277=\"\",\"\",'Otras referencias'!B$9)","v":""},null,{"$f":"IF(T277=\"\",\"\",CONCATENATE('Otras referencias'!B$7,\"/Estación\"))","v":""}]
[null,{"$f":"IF(C278=\"\",\"\",IF(COUNTIF($C$3:C278, C278)>1, \"\", C278))","v":""},{"$f":"IF(E278=\"\",\"\",CONCATENATE(DIGITADOR!$M$1,E278,F278))","v":""},"",null,{"$f":"IF(G278=\"\",\"\",VLOOKUP(G278,referentes!S277:W324,4,FALSE))","v":""},null,null,null,null,null,null,null,null,null,null,{"$f":"IF(P278=\"\",\"\",'Otras referencias'!B$10)","v":""},null,{"$f":"IF(R278=\"\",\"\",'Otras referencias'!B$9)","v":""},null,{"$f":"IF(T278=\"\",\"\",CONCATENATE('Otras referencias'!B$7,\"/Estación\"))","v":""}]
[null,{"$f":"IF(C279=\"\",\"\",IF(COUNTIF($C$3:C279, C279)>1, \"\", C279))","v":""},{"$f":"IF(E279=\"\",\"\",CONCATENATE(DIGITADOR!$M$1,E279,F279))","v":""},"",null,{"$f":"IF(G279=\"\",\"\",VLOOKUP(G279,referentes!S278:W325,4,FALSE))","v":""},null,null,null,null,null,null,null,null,null,null,{"$f":"IF(P279=\"\",\"\",'Otras referencias'!B$10)","v":""},null,{"$f":"IF(R279=\"\",\"\",'Otras referencias'!B$9)","v":""},null,{"$f":"IF(T279=\"\",\"\",CONCATENATE('Otras referencias'!B$7,\"/Estación\"))","v":""}]
[null,{"$f":"IF(C280=\"\",\"\",IF(COUNTIF($C$3:C280, C280)>1, \"\", C280))","v":""},{"$f":"IF(E280=\"\",\"\",CONCATENATE(DIGITADOR!$M$1,E280,F280))","v":""},"",null,{"$f":"IF(G280=\"\",\"\",VLOOKUP(G280,referentes!S279:W326,4,FALSE))","v":""},null,null,null,null,null,null,null,null,null,null,{"$f":"IF(P280=\"\",\"\",'Otras referencias'!B$10)","v":""},null,{"$f":"IF(R280=\"\",\"\",'Otras referencias'!B$9)","v":""},null,{"$f":"IF(T280=\"\",\"\",CONCATENATE('Otras referencias'!B$7,\"/Estación\"))","v":""}]
[null,{"$f":"IF(C281=\"\",\"\",IF(COUNTIF($C$3:C281, C281)>1, \"\", C281))","v":""},{"$f":"IF(E281=\"\",\"\",CONCATENATE(DIGITADOR!$M$1,E281,F281))","v":""},"",null,{"$f":"IF(G281=\"\",\"\",VLOOKUP(G281,referentes!S280:W327,4,FALSE))","v":""},null,null,null,null,null,null,null,null,null,null,{"$f":"IF(P281=\"\",\"\",'Otras referencias'!B$10)","v":""},null,{"$f":"IF(R281=\"\",\"\",'Otras referencias'!B$9)","v":""},null,{"$f":"IF(T281=\"\",\"\",CONCATENATE('Otras referencias'!B$7,\"/Estación\"))","v":""}]
[null,{"$f":"IF(C282=\"\",\"\",IF(COUNTIF($C$3:C282, C282)>1, \"\", C282))","v":""},{"$f":"IF(E282=\"\",\"\",CONCATENATE(DIGITADOR!$M$1,E282,F282))","v":""},"",null,{"$f":"IF(G282=\"\",\"\",VLOOKUP(G282,referentes!S281:W328,4,FALSE))","v":""},null,null,null,null,null,null,null,null,null,null,{"$f":"IF(P282=\"\",\"\",'Otras referencias'!B$10)","v":""},null,{"$f":"IF(R282=\"\",\"\",'Otras referencias'!B$9)","v":""},null,{"$f":"IF(T282=\"\",\"\",CONCATENATE('Otras referencias'!B$7,\"/Estación\"))","v":""}]
[null,{"$f":"IF(C283=\"\",\"\",IF(COUNTIF($C$3:C283, C283)>1, \"\", C283))","v":""},{"$f":"IF(E283=\"\",\"\",CONCATENATE(DIGITADOR!$M$1,E283,F283))","v":""},"",null,{"$f":"IF(G283=\"\",\"\",VLOOKUP(G283,referentes!S282:W329,4,FALSE))","v":""},null,null,null,null,null,null,null,null,null,null,{"$f":"IF(P283=\"\",\"\",'Otras referencias'!B$10)","v":""},null,{"$f":"IF(R283=\"\",\"\",'Otras referencias'!B$9)","v":""},null,{"$f":"IF(T283=\"\",\"\",CONCATENATE('Otras referencias'!B$7,\"/Estación\"))","v":""}]
[null,{"$f":"IF(C284=\"\",\"\",IF(COUNTIF($C$3:C284, C284)>1, \"\", C284))","v":""},{"$f":"IF(E284=\"\",\"\",CONCATENATE(DIGITADOR!$M$1,E284,F284))","v":""},"",null,{"$f":"IF(G284=\"\",\"\",VLOOKUP(G284,referentes!S283:W330,4,FALSE))","v":""},null,null,null,null,null,null,null,null,null,null,{"$f":"IF(P284=\"\",\"\",'Otras referencias'!B$10)","v":""},null,{"$f":"IF(R284=\"\",\"\",'Otras referencias'!B$9)","v":""},null,{"$f":"IF(T284=\"\",\"\",CONCATENATE('Otras referencias'!B$7,\"/Estación\"))","v":""}]
[null,{"$f":"IF(C285=\"\",\"\",IF(COUNTIF($C$3:C285, C285)>1, \"\", C285))","v":""},{"$f":"IF(E285=\"\",\"\",CONCATENATE(DIGITADOR!$M$1,E285,F285))","v":""},"",null,{"$f":"IF(G285=\"\",\"\",VLOOKUP(G285,referentes!S284:W331,4,FALSE))","v":""},null,null,null,null,null,null,null,null,null,null,{"$f":"IF(P285=\"\",\"\",'Otras referencias'!B$10)","v":""},null,{"$f":"IF(R285=\"\",\"\",'Otras referencias'!B$9)","v":""},null,{"$f":"IF(T285=\"\",\"\",CONCATENATE('Otras referencias'!B$7,\"/Estación\"))","v":""}]
[null,{"$f":"IF(C286=\"\",\"\",IF(COUNTIF($C$3:C286, C286)>1, \"\", C286))","v":""},{"$f":"IF(E286=\"\",\"\",CONCATENATE(DIGITADOR!$M$1,E286,F286))","v":""},"",null,{"$f":"IF(G286=\"\",\"\",VLOOKUP(G286,referentes!S285:W332,4,FALSE))","v":""},null,null,null,null,null,null,null,null,null,null,{"$f":"IF(P286=\"\",\"\",'Otras referencias'!B$10)","v":""},null,{"$f":"IF(R286=\"\",\"\",'Otras referencias'!B$9)","v":""},null,{"$f":"IF(T286=\"\",\"\",CONCATENATE('Otras referencias'!B$7,\"/Estación\"))","v":""}]
[null,{"$f":"IF(C287=\"\",\"\",IF(COUNTIF($C$3:C287, C287)>1, \"\", C287))","v":""},{"$f":"IF(E287=\"\",\"\",CONCATENATE(DIGITADOR!$M$1,E287,F287))","v":""},"",null,{"$f":"IF(G287=\"\",\"\",VLOOKUP(G287,referentes!S286:W333,4,FALSE))","v":""},null,null,null,null,null,null,null,null,null,null,{"$f":"IF(P287=\"\",\"\",'Otras referencias'!B$10)","v":""},null,{"$f":"IF(R287=\"\",\"\",'Otras referencias'!B$9)","v":""},null,{"$f":"IF(T287=\"\",\"\",CONCATENATE('Otras referencias'!B$7,\"/Estación\"))","v":""}]
[null,{"$f":"IF(C288=\"\",\"\",IF(COUNTIF($C$3:C288, C288)>1, \"\", C288))","v":""},{"$f":"IF(E288=\"\",\"\",CONCATENATE(DIGITADOR!$M$1,E288,F288))","v":""},"",null,{"$f":"IF(G288=\"\",\"\",VLOOKUP(G288,referentes!S287:W334,4,FALSE))","v":""},null,null,null,null,null,null,null,null,null,null,{"$f":"IF(P288=\"\",\"\",'Otras referencias'!B$10)","v":""},null,{"$f":"IF(R288=\"\",\"\",'Otras referencias'!B$9)","v":""},null,{"$f":"IF(T288=\"\",\"\",CONCATENATE('Otras referencias'!B$7,\"/Estación\"))","v":""}]
[null,{"$f":"IF(C289=\"\",\"\",IF(COUNTIF($C$3:C289, C289)>1, \"\", C289))","v":""},{"$f":"IF(E289=\"\",\"\",CONCATENATE(DIGITADOR!$M$1,E289,F289))","v":""},"",null,{"$f":"IF(G289=\"\",\"\",VLOOKUP(G289,referentes!S288:W335,4,FALSE))","v":""},null,null,null,null,null,null,null,null,null,null,{"$f":"IF(P289=\"\",\"\",'Otras referencias'!B$10)","v":""},null,{"$f":"IF(R289=\"\",\"\",'Otras referencias'!B$9)","v":""},null,{"$f":"IF(T289=\"\",\"\",CONCATENATE('Otras referencias'!B$7,\"/Estación\"))","v":""}]
[null,{"$f":"IF(C290=\"\",\"\",IF(COUNTIF($C$3:C290, C290)>1, \"\", C290))","v":""},{"$f":"IF(E290=\"\",\"\",CONCATENATE(DIGITADOR!$M$1,E290,F290))","v":""},"",null,{"$f":"IF(G290=\"\",\"\",VLOOKUP(G290,referentes!S289:W336,4,FALSE))","v":""},null,null,null,null,null,null,null,null,null,null,{"$f":"IF(P290=\"\",\"\",'Otras referencias'!B$10)","v":""},null,{"$f":"IF(R290=\"\",\"\",'Otras referencias'!B$9)","v":""},null,{"$f":"IF(T290=\"\",\"\",CONCATENATE('Otras referencias'!B$7,\"/Estación\"))","v":""}]
[null,{"$f":"IF(C291=\"\",\"\",IF(COUNTIF($C$3:C291, C291)>1, \"\", C291))","v":""},{"$f":"IF(E291=\"\",\"\",CONCATENATE(DIGITADOR!$M$1,E291,F291))","v":""},"",null,{"$f":"IF(G291=\"\",\"\",VLOOKUP(G291,referentes!S290:W337,4,FALSE))","v":""},null,null,null,null,null,null,null,null,null,null,{"$f":"IF(P291=\"\",\"\",'Otras referencias'!B$10)","v":""},null,{"$f":"IF(R291=\"\",\"\",'Otras referencias'!B$9)","v":""},null,{"$f":"IF(T291=\"\",\"\",CONCATENATE('Otras referencias'!B$7,\"/Estación\"))","v":""}]
[null,{"$f":"IF(C292=\"\",\"\",IF(COUNTIF($C$3:C292, C292)>1, \"\", C292))","v":""},{"$f":"IF(E292=\"\",\"\",CONCATENATE(DIGITADOR!$M$1,E292,F292))","v":""},"",null,{"$f":"IF(G292=\"\",\"\",VLOOKUP(G292,referentes!S291:W338,4,FALSE))","v":""},null,null,null,null,null,null,null,null,null,null,{"$f":"IF(P292=\"\",\"\",'Otras referencias'!B$10)","v":""},null,{"$f":"IF(R292=\"\",\"\",'Otras referencias'!B$9)","v":""},null,{"$f":"IF(T292=\"\",\"\",CONCATENATE('Otras referencias'!B$7,\"/Estación\"))","v":""}]
[null,{"$f":"IF(C293=\"\",\"\",IF(COUNTIF($C$3:C293, C293)>1, \"\", C293))","v":""},{"$f":"IF(E293=\"\",\"\",CONCATENATE(DIGITADOR!$M$1,E293,F293))","v":""},"",null,{"$f":"IF(G293=\"\",\"\",VLOOKUP(G293,referentes!S292:W339,4,FALSE))","v":""},null,null,null,null,null,null,null,null,null,null,{"$f":"IF(P293=\"\",\"\",'Otras referencias'!B$10)","v":""},null,{"$f":"IF(R293=\"\",\"\",'Otras referencias'!B$9)","v":""},null,{"$f":"IF(T293=\"\",\"\",CONCATENATE('Otras referencias'!B$7,\"/Estación\"))","v":""}]
[null,{"$f":"IF(C294=\"\",\"\",IF(COUNTIF($C$3:C294, C294)>1, \"\", C294))","v":""},{"$f":"IF(E294=\"\",\"\",CONCATENATE(DIGITADOR!$M$1,E294,F294))","v":""},"",null,{"$f":"IF(G294=\"\",\"\",VLOOKUP(G294,referentes!S293:W340,4,FALSE))","v":""},null,null,null,null,null,null,null,null,null,null,{"$f":"IF(P294=\"\",\"\",'Otras referencias'!B$10)","v":""},null,{"$f":"IF(R294=\"\",\"\",'Otras referencias'!B$9)","v":""},null,{"$f":"IF(T294=\"\",\"\",CONCATENATE('Otras referencias'!B$7,\"/Estación\"))","v":""}]
[null,{"$f":"IF(C295=\"\",\"\",IF(COUNTIF($C$3:C295, C295)>1, \"\", C295))","v":""},{"$f":"IF(E295=\"\",\"\",CONCATENATE(DIGITADOR!$M$1,E295,F295))","v":""},"",null,{"$f":"IF(G295=\"\",\"\",VLOOKUP(G295,referentes!S294:W341,4,FALSE))","v":""},null,null,null,null,null,null,null,null,null,null,{"$f":"IF(P295=\"\",\"\",'Otras referencias'!B$10)","v":""},null,{"$f":"IF(R295=\"\",\"\",'Otras referencias'!B$9)","v":""},null,{"$f":"IF(T295=\"\",\"\",CONCATENATE('Otras referencias'!B$7,\"/Estación\"))","v":""}]
[null,{"$f":"IF(C296=\"\",\"\",IF(COUNTIF($C$3:C296, C296)>1, \"\", C296))","v":""},{"$f":"IF(E296=\"\",\"\",CONCATENATE(DIGITADOR!$M$1,E296,F296))","v":""},"",null,{"$f":"IF(G296=\"\",\"\",VLOOKUP(G296,referentes!S295:W342,4,FALSE))","v":""},null,null,null,null,null,null,null,null,null,null,{"$f":"IF(P296=\"\",\"\",'Otras referencias'!B$10)","v":""},null,{"$f":"IF(R296=\"\",\"\",'Otras referencias'!B$9)","v":""},null,{"$f":"IF(T296=\"\",\"\",CONCATENATE('Otras referencias'!B$7,\"/Estación\"))","v":""}]
[null,{"$f":"IF(C297=\"\",\"\",IF(COUNTIF($C$3:C297, C297)>1, \"\", C297))","v":""},{"$f":"IF(E297=\"\",\"\",CONCATENATE(DIGITADOR!$M$1,E297,F297))","v":""},"",null,{"$f":"IF(G297=\"\",\"\",VLOOKUP(G297,referentes!S296:W343,4,FALSE))","v":""},null,null,null,null,null,null,null,null,null,null,{"$f":"IF(P297=\"\",\"\",'Otras referencias'!B$10)","v":""},null,{"$f":"IF(R297=\"\",\"\",'Otras referencias'!B$9)","v":""},null,{"$f":"IF(T297=\"\",\"\",CONCATENATE('Otras referencias'!B$7,\"/Estación\"))","v":""}]
[null,{"$f":"IF(C298=\"\",\"\",IF(COUNTIF($C$3:C298, C298)>1, \"\", C298))","v":""},{"$f":"IF(E298=\"\",\"\",CONCATENATE(DIGITADOR!$M$1,E298,F298))","v":""},"",null,{"$f":"IF(G298=\"\",\"\",VLOOKUP(G298,referentes!S297:W344,4,FALSE))","v":""},null,null,null,null,null,null,null,null,null,null,{"$f":"IF(P298=\"\",\"\",'Otras referencias'!B$10)","v":""},null,{"$f":"IF(R298=\"\",\"\",'Otras referencias'!B$9)","v":""},null,{"$f":"IF(T298=\"\",\"\",CONCATENATE('Otras referencias'!B$7,\"/Estación\"))","v":""}]
[null,{"$f":"IF(C299=\"\",\"\",IF(COUNTIF($C$3:C299, C299)>1, \"\", C299))","v":""},{"$f":"IF(E299=\"\",\"\",CONCATENATE(DIGITADOR!$M$1,E299,F299))","v":""},"",null,{"$f":"IF(G299=\"\",\"\",VLOOKUP(G299,referentes!S298:W345,4,FALSE))","v":""},null,null,null,null,null,null,null,null,null,null,{"$f":"IF(P299=\"\",\"\",'Otras referencias'!B$10)","v":""},null,{"$f":"IF(R299=\"\",\"\",'Otras referencias'!B$9)","v":""},null,{"$f":"IF(T299=\"\",\"\",CONCATENATE('Otras referencias'!B$7,\"/Estación\"))","v":""}]
[null,{"$f":"IF(C300=\"\",\"\",IF(COUNTIF($C$3:C300, C300)>1, \"\", C300))","v":""},{"$f":"IF(E300=\"\",\"\",CONCATENATE(DIGITADOR!$M$1,E300,F300))","v":""},"",null,{"$f":"IF(G300=\"\",\"\",VLOOKUP(G300,referentes!S299:W346,4,FALSE))","v":""},null,null,null,null,null,null,null,null,null,null,{"$f":"IF(P300=\"\",\"\",'Otras referencias'!B$10)","v":""},null,{"$f":"IF(R300=\"\",\"\",'Otras referencias'!B$9)","v":""},null,{"$f":"IF(T300=\"\",\"\",CONCATENATE('Otras referencias'!B$7,\"/Estación\"))","v":""}]
[null,{"$f":"IF(C301=\"\",\"\",IF(COUNTIF($C$3:C301, C301)>1, \"\", C301))","v":""},{"$f":"IF(E301=\"\",\"\",CONCATENATE(DIGITADOR!$M$1,E301,F301))","v":""},"",null,{"$f":"IF(G301=\"\",\"\",VLOOKUP(G301,referentes!S300:W347,4,FALSE))","v":""},null,null,null,null,null,null,null,null,null,null,{"$f":"IF(P301=\"\",\"\",'Otras referencias'!B$10)","v":""},null,{"$f":"IF(R301=\"\",\"\",'Otras referencias'!B$9)","v":""},null,{"$f":"IF(T301=\"\",\"\",CONCATENATE('Otras referencias'!B$7,\"/Estación\"))","v":""}]
[null,{"$f":"IF(C302=\"\",\"\",IF(COUNTIF($C$3:C302, C302)>1, \"\", C302))","v":""},{"$f":"IF(E302=\"\",\"\",CONCATENATE(DIGITADOR!$M$1,E302,F302))","v":""},"",null,{"$f":"IF(G302=\"\",\"\",VLOOKUP(G302,referentes!S301:W348,4,FALSE))","v":""},null,null,null,null,null,null,null,null,null,null,{"$f":"IF(P302=\"\",\"\",'Otras referencias'!B$10)","v":""},null,{"$f":"IF(R302=\"\",\"\",'Otras referencias'!B$9)","v":""},null,{"$f":"IF(T302=\"\",\"\",CONCATENATE('Otras referencias'!B$7,\"/Estación\"))","v":""}]
[null,{"$f":"IF(C303=\"\",\"\",IF(COUNTIF($C$3:C303, C303)>1, \"\", C303))","v":""},{"$f":"IF(E303=\"\",\"\",CONCATENATE(DIGITADOR!$M$1,E303,F303))","v":""},"",null,{"$f":"IF(G303=\"\",\"\",VLOOKUP(G303,referentes!S302:W349,4,FALSE))","v":""},null,null,null,null,null,null,null,null,null,null,{"$f":"IF(P303=\"\",\"\",'Otras referencias'!B$10)","v":""},null,{"$f":"IF(R303=\"\",\"\",'Otras referencias'!B$9)","v":""},null,{"$f":"IF(T303=\"\",\"\",CONCATENATE('Otras referencias'!B$7,\"/Estación\"))","v":""}]

{"sheet":"referentes","index":4,"n_rows":140,"n_cols":32,"rows_kept":140,"cut":false,"hidden":false,"merged":[]}
["AG_LOV",3064,null,"AG_LOV",2007,null,"AG_LOV",3002,null,"AG_LOV",1071,null,"AG_LOV",1072,null,"cod_letras","descripcion",null,"lugar","prefijo_cdg_est_loc","codigo_estacion_loc","secuencia_loc","descripcion_estacion_loc"]
[4519,"Lluvia",null,"LTA","Litoral arenoso",null,"Macrofauna","Macrofauna",null,4522,"Nucleador/Corazonador",null,4523,"Toma directa con corazonador hasta 0.3 m2",null,null,null,"clave_sibm","CNG-01","4718921PFAU1P",1,56831,null,null,3546,"Administrador SIGMA",null,null,null,null,3546,"Administrador SIGMA"]
[4520,"Seca",null,1,"Area coralina",null,"Megafauna","Megafauna",null,1,"Draga van Veen ",null,4524,"4 parcelas por estación y subcuadrantes de 9 m2",null,null,null,null,"CNG-02","4718921PFAU1P",2,56832,null,null,3444,"Alexandra Rodríguez",null,null,null,"Administración Desarrollo Complejo Portuario  Limón Moin Costa Rica"]
[4521,"Transición",null,2,"Columna de agua",null,"Meiofauna","Meiofauna",null,2,"Box Corer",null,1,"Lance Box corer 0,250 m2",null,null,null,null,"CNG-03","4718921PFAU1P",3,56833,null,null,8258,"Daniel Fernando Jiménez Rincón",null,null,null,"Anadarko Colombia Company"]
[null,null,null,3,"Fondos blandos plataforma",null,"Microfauna","Microfauna",null,3,"Red de arrastre demersal tipo semi-balón",null,2,"Lance Box corer 0,0625 m2",null,null,null,null,"CNG-PFISP1","4718921PFISP",1,56731,null,null,8378,"David Alejandro Navarrete Rodríguez",null,null,null,"Aquabiosfera SAS"]
[null,null,null,4,"Fondos duros plataforma",null,null,null,null,null,null,null,3,"Lance Draga van Veen 0,075 m2",null,null,null,null,"CNG-PFISP2","4718921PFISP",2,56732,null,null,4918,"Edgar Fernando Dorado Roncancio",null,null,null,"Asociación Calidris"]
[null,null,null,5,"Litoral rocoso",null,null,null,null,null,null,null,4,"Lance Draga van Veen 0,4 m2",null,null,null,null,"CNG-PFISP3","4718921PFISP",3,56733,null,null,3403,"Eliana Marcela Barrios Vasquez",null,null,null,"Asociación de Corporaciones Autónomas Regionales"]
[null,null,null,6,"Manglar",null,null,null,null,null,null,null,5,"Arrastre bentonico 10 min / 2,5 nudos",null,null,null,null,"CR-01","2357431PFAU1P",1,56840,null,null,7840,"Fair Fernando Dager Osorio",null,null,null,"Autoridad Nacional de Licencias Ambientales"]
[null,null,null,7,"Playas",null,null,null,null,null,null,null,null,null,null,null,null,null,"CR-02","2357431PFAU1P",2,56841,null,null,5685,"Henry Fabian Bustos Ordoñez",null,null,null,"Autoridad de Recursos Acuáticos de Panamá"]
[null,null,null,8,"Praderas de pastos",null,null,null,null,null,null,null,null,null,null,null,null,null,"CR-03","2357431PFAU1P",3,56842,null,null,7841,"Jean David Varilla Gonzalez",null,null,null,"Caribbean-Wide Orca Project"]
[null,null,null,9,"Sustrato artificial",null,null,null,null,null,null,null,null,null,null,null,null,null,"CTRY-PFISP1","2357431PFISP",1,56740,null,null,8277,"Jeffry Bolaños",null,null,null,"Centro de Estudios Ambientales de Cienfuegos"]
[null,null,null,10,"Fondos blandos del talud",null,null,null,null,null,null,null,null,null,null,null,null,null,"CTRY-PFISP2","2357431PFISP",2,56741,null,null,8263,"Johan Casadiego Estévez",null,null,null,"Centro de Estudios en Ciencias del Mar - Universidad Nacional"]
[null,null,null,11,"Oceánico costa afuera",null,null,null,null,null,null,null,null,null,null,null,null,null,"CTRY-PFISP3","2357431PFISP",3,56742,null,null,7141,"Juan Camilo Rodríguez Atara",null,null,null,"Centro de Investigaciones Energéticas, Medioambientales y Tecnológicas"]
[null,null,null,12,"Comunidad Planctónica",null,null,null,null,null,null,null,null,null,null,null,null,null,"LEN-01","4400113PFAU1P",1,56828,null,null,8264,"Juan Fernando Cortina Munera",null,null,null,"Centro de Investigaciones Oceanográficas e Hidrográficas"]
[null,null,null,14,"Ciénaga",null,null,null,null,null,null,null,null,null,null,null,null,null,"LEN-02","4400113PFAU1P",2,56829,null,null,8217,"Juan Lazarus",null,null,null,"Centro de Investigaciones Oceanográficas e Hidrográficas del Pacífico"]
[null,null,null,15,"Desembarco de pesca artesanal",null,null,null,null,null,null,null,null,null,null,null,null,null,"LEN-03","4400113PFAU1P",3,56830,null,null,8265,"Kevin Samuel Moreno",null,null,null,"Centro de Investigación Educación y Recreación Islas del Rosario"]
[null,null,null,null,null,null,null,null,null,null,null,null,null,null,null,null,null,null,"LMT-01","0583739PFAU1P",1,56846,null,null,8377,"Lady Liliana Espinosa Leal",null,null,null,"Centro de Investigación de los Recursos Acuáticos de Nicaragua (CIRA)"]
[null,null,null,null,null,null,null,null,null,null,null,null,null,null,null,null,null,null,"LMT-02","0583739PFAU1P",2,56847,null,null,7757,"Laura  Martínez Lacharme",null,null,null,"Centro de Investigación en Contaminación Ambiental"]
[null,null,null,null,null,null,null,null,null,null,null,null,null,null,null,null,null,null,"LMT-03","0583739PFAU1P",3,56848,null,null,4227,"Laura Sanchez Valencia",null,null,null,"Colección de Referencia Biología Marina Universidad del Valle"]
[null,null,null,null,null,null,null,null,null,null,null,null,null,null,null,null,null,null,"LNA-PFISP1","4400113PFISP",1,56728,null,null,3281,"Leonardo José Arias Alemán (2022)",null,null,null,"Colección personal"]
[null,null,null,null,null,null,null,null,null,null,null,null,null,null,null,null,null,null,"LNA-PFISP2","4400113PFISP",2,56729,null,null,8099,"Marco Elias Gonzalez Arteaga",null,null,null,"Comisión Permanente del Pacífico Sur"]
[null,null,null,null,null,null,null,null,null,null,null,null,null,null,null,null,null,null,"LNA-PFISP3","4400113PFISP",3,56730,null,null,7197,"Miller Jose Florian Sanchez",null,null,null,"Conservación Internacional Colombia "]
[null,null,null,null,null,null,null,null,null,null,null,null,null,null,null,null,null,null,"MRT-PFISP1","0583739PFISP",1,56746,null,null,8262,"Paula Andrea López Muñoz",null,null,null,"Consultor independiente "]
[null,null,null,null,null,null,null,null,null,null,null,null,null,null,null,null,null,null,"MRT-PFISP2","0583739PFISP",2,56747,null,null,8297,"SARAH DANIELA VELASCO MARULANDA",null,null,null,"Consultoria y Monitoreo Ambiental"]
[null,null,null,null,null,null,null,null,null,null,null,null,null,null,null,null,null,null,"MRT-PFISP3","0583739PFISP",3,56748,null,null,5745,"Sara Eilyn Guzman Henao",null,null,null,"Corporacion  Autonoma Regional del Valle del Cauca"]
[null,null,null,null,null,null,null,null,null,null,null,null,null,null,null,null,null,null,"PBL-PFISP1","2367246PFISP",1,56737,null,null,8266,"Zulay Saudith González Herrera",null,null,null,"Corporacion Autonoma Regional de Nariño"]
[null,null,null,null,null,null,null,null,null,null,null,null,null,null,null,null,null,null,"PBL-PFISP2","2367246PFISP",2,56738,null,null,null,null,null,null,null,"Corporacion Autonoma Regional de Sucre"]
[null,null,null,null,null,null,null,null,null,null,null,null,null,null,null,null,null,null,"PBL-PFISP3","2367246PFISP",3,56739,null,null,null,null,null,null,null,"Corporacion Autonoma Regional del Atlàntico"]
[null,null,null,null,null,null,null,null,null,null,null,null,null,null,null,null,null,null,"PLB-01","2367246PFAU1P",1,56837,null,null,null,null,null,null,null,"Corporacion Autonoma Regional del Canal del Dique"]
[null,null,null,null,null,null,null,null,null,null,null,null,null,null,null,null,null,null,"PLB-02","2367246PFAU1P",2,56838,null,null,null,null,null,null,null,"Corporacion Autonoma Regional del Cauca"]
[null,null,null,null,null,null,null,null,null,null,null,null,null,null,null,null,null,null,"PLB-03","2367246PFAU1P",3,56839,null,null,null,null,null,null,null,"Corporacion para el Desarrollo Sostenible del Choco"]
[null,null,null,null,null,null,null,null,null,null,null,null,null,null,null,null,null,null,"PV-01","4757022PFAU1P",1,56834,null,null,null,null,null,null,null,"Corporación Autónoma Regional de la Guajira"]
[null,null,null,null,null,null,null,null,null,null,null,null,null,null,null,null,null,null,"PV-02","4757022PFAU1P",2,56835,null,null,null,null,null,null,null,"Corporación Autónoma Regional de las Islas de San Andrés, Providencia y Santa Catalina"]
[null,null,null,null,null,null,null,null,null,null,null,null,null,null,null,null,null,null,"PV-03","4757022PFAU1P",3,56836,null,null,null,null,null,null,null,"Corporación Autónoma Regional del Magdalena"]
[null,null,null,null,null,null,null,null,null,null,null,null,null,null,null,null,null,null,"PVJ-PFISP1","4757022PFISP",1,56734,null,null,null,null,null,null,null,"Corporación Autónoma Regional del Uraba"]
[null,null,null,null,null,null,null,null,null,null,null,null,null,null,null,null,null,null,"PVJ-PFISP2","4757022PFISP",2,56735,null,null,null,null,null,null,null,"Corporación Autónoma Regional del Valle del Cauca-Universidad del Pacifico"]
[null,null,null,null,null,null,null,null,null,null,null,null,null,null,null,null,null,null,"PVJ-PFISP3","4757022PFISP",3,56736,null,null,null,null,null,null,null,"Corporación Coralina - Fundación Omacha"]
[null,null,null,null,null,null,null,null,null,null,null,null,null,null,null,null,null,null,"RH-01","4400112PFAU1P",1,56825,null,null,null,null,null,null,null,"Corporación Corpouraba - Fundación Omacha"]
[null,null,null,null,null,null,null,null,null,null,null,null,null,null,null,null,null,null,"RH-02","4400112PFAU1P",2,56826,null,null,null,null,null,null,null,"Corporación Regional de Valle del Sinu y San Jorge"]
[null,null,null,null,null,null,null,null,null,null,null,null,null,null,null,null,null,null,"RH-03","4400112PFAU1P",3,56827,null,null,null,null,null,null,null,"DEPARTAMENT0 ADMiNISTRATIVO DISTRITAL DE SOSTENIBILIDAD AMBIENTAL"]
[null,null,null,null,null,null,null,null,null,null,null,null,null,null,null,null,null,null,"RH-PFISP1","4400112PFISP",1,56725,null,null,null,null,null,null,null,"Departamento Administrativo del Medio Ambiente de Cartagena -  EPA Cartagena"]
[null,null,null,null,null,null,null,null,null,null,null,null,null,null,null,null,null,null,"RH-PFISP2","4400112PFISP",2,56726,null,null,null,null,null,null,null,"Departamento Técnico Administrativo del Medio Ambiente Barranquilla"]
[null,null,null,null,null,null,null,null,null,null,null,null,null,null,null,null,null,null,"RH-PFISP3","4400112PFISP",3,56727,null,null,null,null,null,null,null,"Dirección General Maritima"]
[null,null,null,null,null,null,null,null,null,null,null,null,null,null,null,null,null,null,"UV-DM-01","0565934PFAU1P",1,56843,null,null,null,null,null,null,null,"ECOREEF Colombia LTDA"]
[null,null,null,null,null,null,null,null,null,null,null,null,null,null,null,null,null,null,"UV-DM-02","0565934PFAU1P",2,56844,null,null,null,null,null,null,null,"EIDGENÖSSISCHE TECHNISCHE HOCHSCHULE ZÜRICH (Politécnico)\r\r\nEIDGENÖSSISCHE TECHNISCHE HOCHSCHULE ZÜRICH"]
[null,null,null,null,null,null,null,null,null,null,null,null,null,null,null,null,null,null,"UV-DM-03","0565934PFAU1P",3,56845,null,null,null,null,null,null,null,"Ecomar Consultoría  Ambiental S.A.S."]
[null,null,null,null,null,null,null,null,null,null,null,null,null,null,null,null,null,null,"UVD-PFISP1","0565934PFISP",1,56743,null,null,null,null,null,null,null,"Establecimiento Publico Ambiental Barranquilla"]
[null,null,null,null,null,null,null,null,null,null,null,null,null,null,null,null,null,null,"UVD-PFISP2","0565934PFISP",2,56744,null,null,null,null,null,null,null,"Establecimiento Publico Ambiental Buenaventura"]
[null,null,null,null,null,null,null,null,null,null,null,null,null,null,null,null,null,null,"UVD-PFISP3","0565934PFISP",3,56745,null,null,null,null,null,null,null,"Establecimiento Publico Ambiental Cartagena"]
[null,null,null,null,null,null,null,null,null,null,null,null,null,null,null,null,null,null,null,null,null,null,null,null,null,null,null,null,null,"FUNDACIÓN ZOOLÓGICA DE CALI"]
[null,null,null,null,null,null,null,null,null,null,null,null,null,null,null,null,null,null,null,null,null,null,null,null,null,null,null,null,null,"Fundacion Para El Desarrollo De La Biologia Aplicada"]
[null,null,null,null,null,null,null,null,null,null,null,null,null,null,null,null,null,null,null,null,null,null,null,null,null,null,null,null,null,"Fundación Bucea Colombia"]
[null,null,null,null,null,null,null,null,null,null,null,null,null,null,null,null,null,null,null,null,null,null,null,null,null,null,null,null,null,"Fundación Corales de Paz"]
[null,null,null,null,null,null,null,null,null,null,null,null,null,null,null,null,null,null,null,null,null,null,null,null,null,null,null,null,null,"Fundación Malpelo / Marviva"]
[null,null,null,null,null,null,null,null,null,null,null,null,null,null,null,null,null,null,null,null,null,null,null,null,null,null,null,null,null,"Fundación Omacha"]
[null,null,null,null,null,null,null,null,null,null,null,null,null,null,null,null,null,null,null,null,null,null,null,null,null,null,null,null,null,"Fundación Omacha - Observadores Fauna Marina"]
[null,null,null,null,null,null,null,null,null,null,null,null,null,null,null,null,null,null,null,null,null,null,null,null,null,null,null,null,null,"Fundación Omacha - Observadores Fauna Marina - Aquabiosfera"]
[null,null,null,null,null,null,null,null,null,null,null,null,null,null,null,null,null,null,null,null,null,null,null,null,null,null,null,null,null,"Fundación Sila Kangama"]
[null,null,null,null,null,null,null,null,null,null,null,null,null,null,null,null,null,null,null,null,null,null,null,null,null,null,null,null,null,"Fundación Universidad Jorge Tadeo Lozano - Centro de Investigaciones y Asesorías Agroindustriales,"]
[null,null,null,null,null,null,null,null,null,null,null,null,null,null,null,null,null,null,null,null,null,null,null,null,null,null,null,null,null,"Fundación Universidad de Bogotá Jorge Tadeo Lozano"]
[null,null,null,null,null,null,null,null,null,null,null,null,null,null,null,null,null,null,null,null,null,null,null,null,null,null,null,null,null,"Geochemical & Environmental Research Group"]
[null,null,null,null,null,null,null,null,null,null,null,null,null,null,null,null,null,null,null,null,null,null,null,null,null,null,null,null,null,"INSTITUCIÓN EDUCATIVA DEPARTAMENTAL SAN JOSÉ"]
[null,null,null,null,null,null,null,null,null,null,null,null,null,null,null,null,null,null,null,null,null,null,null,null,null,null,null,null,null,"Institut de Recherche pour le Developpement"]
[null,null,null,null,null,null,null,null,null,null,null,null,null,null,null,null,null,null,null,null,null,null,null,null,null,null,null,null,null,"Instituto Colombiano para el Desarrollo de la Ciencia y la Tecnología"]
[null,null,null,null,null,null,null,null,null,null,null,null,null,null,null,null,null,null,null,null,null,null,null,null,null,null,null,null,null,"Instituto Colombo Alemán de Investigaciones Científicas de Punta de Betín"]
[null,null,null,null,null,null,null,null,null,null,null,null,null,null,null,null,null,null,null,null,null,null,null,null,null,null,null,null,null,"Instituto INVEMAR - Fundación Omacha"]
[null,null,null,null,null,null,null,null,null,null,null,null,null,null,null,null,null,null,null,null,null,null,null,null,null,null,null,null,null,"Instituto Nacional de los Recursos Naturales Renovables y del Ambiente"]
[null,null,null,null,null,null,null,null,null,null,null,null,null,null,null,null,null,null,null,null,null,null,null,null,null,null,null,null,null,"Instituto de Ciencias del Mar y Limnología (ICML)"]
[null,null,null,null,null,null,null,null,null,null,null,null,null,null,null,null,null,null,null,null,null,null,null,null,null,null,null,null,null,"Instituto de Investigaciones Ambientales del Pacifico"]
[null,null,null,null,null,null,null,null,null,null,null,null,null,null,null,null,null,null,null,null,null,null,null,null,null,null,null,null,null,"Instituto de Investigaciones Marinas y Costeras"]
[null,null,null,null,null,null,null,null,null,null,null,null,null,null,null,null,null,null,null,null,null,null,null,null,null,null,null,null,null,"Instituto de Investigaciones Marinas y Costeras - AGR"]
[null,null,null,null,null,null,null,null,null,null,null,null,null,null,null,null,null,null,null,null,null,null,null,null,null,null,null,null,null,"Instituto de Investigaciones Marinas y Costeras - BVT"]
[null,null,null,null,null,null,null,null,null,null,null,null,null,null,null,null,null,null,null,null,null,null,null,null,null,null,null,null,null,"Instituto de Investigaciones Marinas y Costeras - CPT"]
[null,null,null,null,null,null,null,null,null,null,null,null,null,null,null,null,null,null,null,null,null,null,null,null,null,null,null,null,null,"Instituto de Investigación Recursos Biológicos Alexander von Humboldt"]
[null,null,null,null,null,null,null,null,null,null,null,null,null,null,null,null,null,null,null,null,null,null,null,null,null,null,null,null,null,"Instituto de Oceanologia Cuba"]
[null,null,null,null,null,null,null,null,null,null,null,null,null,null,null,null,null,null,null,null,null,null,null,null,null,null,null,null,null,"Inter-American Tropical Tuna Commission"]
[null,null,null,null,null,null,null,null,null,null,null,null,null,null,null,null,null,null,null,null,null,null,null,null,null,null,null,null,null,"Laboratorio Microbiológico Ortiz Martinez "]
[null,null,null,null,null,null,null,null,null,null,null,null,null,null,null,null,null,null,null,null,null,null,null,null,null,null,null,null,null,"Literature report"]
[null,null,null,null,null,null,null,null,null,null,null,null,null,null,null,null,null,null,null,null,null,null,null,null,null,null,null,null,null,"MCS Consultoría y Monitoreo ambiental S.A.S"]
[null,null,null,null,null,null,null,null,null,null,null,null,null,null,null,null,null,null,null,null,null,null,null,null,null,null,null,null,null,"Makarela S.A.S"]
[null,null,null,null,null,null,null,null,null,null,null,null,null,null,null,null,null,null,null,null,null,null,null,null,null,null,null,null,null,"Makuriwa - Museo de Historia Natural Marina de Colombia"]
[null,null,null,null,null,null,null,null,null,null,null,null,null,null,null,null,null,null,null,null,null,null,null,null,null,null,null,null,null,"Manchester Metropolitan University"]
[null,null,null,null,null,null,null,null,null,null,null,null,null,null,null,null,null,null,null,null,null,null,null,null,null,null,null,null,null,"Marine & Port Consultants"]
[null,null,null,null,null,null,null,null,null,null,null,null,null,null,null,null,null,null,null,null,null,null,null,null,null,null,null,null,null,"Marine Environment Laboratories"]
[null,null,null,null,null,null,null,null,null,null,null,null,null,null,null,null,null,null,null,null,null,null,null,null,null,null,null,null,null,"Ministerio de Ciencia, Tecnología e Innovación"]
[null,null,null,null,null,null,null,null,null,null,null,null,null,null,null,null,null,null,null,null,null,null,null,null,null,null,null,null,null,"Ministerio del Ambiente Haiti"]
[null,null,null,null,null,null,null,null,null,null,null,null,null,null,null,null,null,null,null,null,null,null,null,null,null,null,null,null,null,"Ministerio del Ambiente y Desarrollo Sostenible"]
[null,null,null,null,null,null,null,null,null,null,null,null,null,null,null,null,null,null,null,null,null,null,null,null,null,null,null,null,null,"Ministerio del Ambiente y Desarrollo Sostenible"]
[null,null,null,null,null,null,null,null,null,null,null,null,null,null,null,null,null,null,null,null,null,null,null,null,null,null,null,null,null,"Museo Historia Natural Universidad del Cauca"]
[null,null,null,null,null,null,null,null,null,null,null,null,null,null,null,null,null,null,null,null,null,null,null,null,null,null,null,null,null,"Museu de Zoologia da Universidade de São Paulo"]
[null,null,null,null,null,null,null,null,null,null,null,null,null,null,null,null,null,null,null,null,null,null,null,null,null,null,null,null,null,"NOAA Southwest Fisheries Science Center"]
[null,null,null,null,null,null,null,null,null,null,null,null,null,null,null,null,null,null,null,null,null,null,null,null,null,null,null,null,null,"National Environment and Planning Agency"]
[null,null,null,null,null,null,null,null,null,null,null,null,null,null,null,null,null,null,null,null,null,null,null,null,null,null,null,null,null,"National Oceanic and Atmospheric Administration"]
[null,null,null,null,null,null,null,null,null,null,null,null,null,null,null,null,null,null,null,null,null,null,null,null,null,null,null,null,null,"OBIMAR. Empresa Portuaria Quetzal"]
[null,null,null,null,null,null,null,null,null,null,null,null,null,null,null,null,null,null,null,null,null,null,null,null,null,null,null,null,null,"OBIS-SEAMAP"]
[null,null,null,null,null,null,null,null,null,null,null,null,null,null,null,null,null,null,null,null,null,null,null,null,null,null,null,null,null,"Ocean Biogeographic Information System"]
[null,null,null,null,null,null,null,null,null,null,null,null,null,null,null,null,null,null,null,null,null,null,null,null,null,null,null,null,null,"Oceanario de las Islas del Rosario - CEINER"]
[null,null,null,null,null,null,null,null,null,null,null,null,null,null,null,null,null,null,null,null,null,null,null,null,null,null,null,null,null,"Orgánismo Internacional de Energía Atómica"]
[null,null,null,null,null,null,null,null,null,null,null,null,null,null,null,null,null,null,null,null,null,null,null,null,null,null,null,null,null,"Parque Nacional Natural Gorgona"]
[null,null,null,null,null,null,null,null,null,null,null,null,null,null,null,null,null,null,null,null,null,null,null,null,null,null,null,null,null,"Parques Nacionales Naturales de Colombia"]
[null,null,null,null,null,null,null,null,null,null,null,null,null,null,null,null,null,null,null,null,null,null,null,null,null,null,null,null,null,"Parques Nacionales Naturales de Colombia "]
[null,null,null,null,null,null,null,null,null,null,null,null,null,null,null,null,null,null,null,null,null,null,null,null,null,null,null,null,null,"Particular"]
[null,null,null,null,null,null,null,null,null,null,null,null,null,null,null,null,null,null,null,null,null,null,null,null,null,null,null,null,null,"Pontificia Universidad Javeriana"]
[null,null,null,null,null,null,null,null,null,null,null,null,null,null,null,null,null,null,null,null,null,null,null,null,null,null,null,null,null,"RAC-CIMAB"]
[null,null,null,null,null,null,null,null,null,null,null,null,null,null,null,null,null,null,null,null,null,null,null,null,null,null,null,null,null,"Repsol Exploración Colombia S.A."]
[null,null,null,null,null,null,null,null,null,null,null,null,null,null,null,null,null,null,null,null,null,null,null,null,null,null,null,null,null,"Secretaría de Recursos Naturales y Ambiente (SERNA)/Centro de Estudios y Control de Contaminantes (CESCCO)"]
[null,null,null,null,null,null,null,null,null,null,null,null,null,null,null,null,null,null,null,null,null,null,null,null,null,null,null,null,null,"Servicios de Ingeniería Ambiental"]
[null,null,null,null,null,null,null,null,null,null,null,null,null,null,null,null,null,null,null,null,null,null,null,null,null,null,null,null,null,"Shell Exploration & Production Colombia GMBH"]
[null,null,null,null,null,null,null,null,null,null,null,null,null,null,null,null,null,null,null,null,null,null,null,null,null,null,null,null,null,"Smithsonian Institution"]
[null,null,null,null,null,null,null,null,null,null,null,null,null,null,null,null,null,null,null,null,null,null,null,null,null,null,null,null,null,"Sociedad Portuaria Rio Cordoba - Colombian Natural Resources S.A.S."]
[null,null,null,null,null,null,null,null,null,null,null,null,null,null,null,null,null,null,null,null,null,null,null,null,null,null,null,null,null,"Sociedad Portuaria de Santa Marta"]
[null,null,null,null,null,null,null,null,null,null,null,null,null,null,null,null,null,null,null,null,null,null,null,null,null,null,null,null,null,"UNIVERSIDAD DE PUERTO RICO EN HUMACAO"]
[null,null,null,null,null,null,null,null,null,null,null,null,null,null,null,null,null,null,null,null,null,null,null,null,null,null,null,null,null,"UR Camelia, IRD"]
[null,null,null,null,null,null,null,null,null,null,null,null,null,null,null,null,null,null,null,null,null,null,null,null,null,null,null,null,null,"United Nations Environment Programme - Caribbean Regional Coordinating Unit"]
[null,null,null,null,null,null,null,null,null,null,null,null,null,null,null,null,null,null,null,null,null,null,null,null,null,null,null,null,null,"Universidad Autónoma de Santo Domingo"]
[null,null,null,null,null,null,null,null,null,null,null,null,null,null,null,null,null,null,null,null,null,null,null,null,null,null,null,null,null,"Universidad Federal de Bahía"]
[null,null,null,null,null,null,null,null,null,null,null,null,null,null,null,null,null,null,null,null,null,null,null,null,null,null,null,null,null,"Universidad Jorje Tadeo Lozano-Museo del Mar"]
[null,null,null,null,null,null,null,null,null,null,null,null,null,null,null,null,null,null,null,null,null,null,null,null,null,null,null,null,null,"Universidad Nacional Mayor de San Marcos"]
[null,null,null,null,null,null,null,null,null,null,null,null,null,null,null,null,null,null,null,null,null,null,null,null,null,null,null,null,null,"Universidad Nacional de Colombia"]
[null,null,null,null,null,null,null,null,null,null,null,null,null,null,null,null,null,null,null,null,null,null,null,null,null,null,null,null,null,"Universidad Simón Bolivar"]
[null,null,null,null,null,null,null,null,null,null,null,null,null,null,null,null,null,null,null,null,null,null,null,null,null,null,null,null,null,"Universidad de Antioquia"]
[null,null,null,null,null,null,null,null,null,null,null,null,null,null,null,null,null,null,null,null,null,null,null,null,null,null,null,null,null,"Universidad de Bogotá Jorge Tadeo Lozano, Fac. de Ciencias Naturales e Ingenieria"]
[null,null,null,null,null,null,null,null,null,null,null,null,null,null,null,null,null,null,null,null,null,null,null,null,null,null,null,null,null,"Universidad de Cartagena"]
[null,null,null,null,null,null,null,null,null,null,null,null,null,null,null,null,null,null,null,null,null,null,null,null,null,null,null,null,null,"Universidad de Córdoba"]
[null,null,null,null,null,null,null,null,null,null,null,null,null,null,null,null,null,null,null,null,null,null,null,null,null,null,null,null,null,"Universidad de Florida"]
[null,null,null,null,null,null,null,null,null,null,null,null,null,null,null,null,null,null,null,null,null,null,null,null,null,null,null,null,null,"Universidad de Giessen"]
[null,null,null,null,null,null,null,null,null,null,null,null,null,null,null,null,null,null,null,null,null,null,null,null,null,null,null,null,null,"Universidad de Ibague"]
[null,null,null,null,null,null,null,null,null,null,null,null,null,null,null,null,null,null,null,null,null,null,null,null,null,null,null,null,null,"Universidad de La Sabana"]
[null,null,null,null,null,null,null,null,null,null,null,null,null,null,null,null,null,null,null,null,null,null,null,null,null,null,null,null,null,"Universidad de Oriente - Núcleo de Sucre"]
[null,null,null,null,null,null,null,null,null,null,null,null,null,null,null,null,null,null,null,null,null,null,null,null,null,null,null,null,null,"Universidad de la Guajira"]
[null,null,null,null,null,null,null,null,null,null,null,null,null,null,null,null,null,null,null,null,null,null,null,null,null,null,null,null,null,"Universidad del Magdalena"]
[null,null,null,null,null,null,null,null,null,null,null,null,null,null,null,null,null,null,null,null,null,null,null,null,null,null,null,null,null,"Universidad del Norte"]
[null,null,null,null,null,null,null,null,null,null,null,null,null,null,null,null,null,null,null,null,null,null,null,null,null,null,null,null,null,"Universidad del Pacífico"]
[null,null,null,null,null,null,null,null,null,null,null,null,null,null,null,null,null,null,null,null,null,null,null,null,null,null,null,null,null,"Universidad del Tolima"]
[null,null,null,null,null,null,null,null,null,null,null,null,null,null,null,null,null,null,null,null,null,null,null,null,null,null,null,null,null,"Universidad del Valle"]
[null,null,null,null,null,null,null,null,null,null,null,null,null,null,null,null,null,null,null,null,null,null,null,null,null,null,null,null,null,"Universidae do Cerá, Estaçao de Biologia Marinha"]
[null,null,null,null,null,null,null,null,null,null,null,null,null,null,null,null,null,null,null,null,null,null,null,null,null,null,null,null,null,"University of New Hampshire"]
[null,null,null,null,null,null,null,null,null,null,null,null,null,null,null,null,null,null,null,null,null,null,null,null,null,null,null,null,null,"Université de Montpellier"]
[null,null,null,null,null,null,null,null,null,null,null,null,null,null,null,null,null,null,null,null,null,null,null,null,null,null,null,null,null,"Virginia Institute of Marine Science / Smithsonian Institution"]
[null,null,null,null,null,null,null,null,null,null,null,null,null,null,null,null,null,null,null,null,null,null,null,null,null,null,null,null,null,"Wildlife Conservation Society"]

{"sheet":"Otras referencias","index":5,"n_rows":33,"n_cols":16,"rows_kept":33,"cut":false,"hidden":false,"merged":[[20,3,20,5],[4,13,4,15],[4,3,4,5],[4,7,4,8],[0,0,2,6],[4,0,4,1],[4,10,4,11]]}
["Estas son listas para variables con valores que no se encuentran codificados, pero que deben manejarse de manera estandarizada. \nSi se requiere agregar un valor nuevo hagalo debajo de la lista correspondiente"]
[]
[]
[]
["UNIDADES DE MEDIDA",null,null,"PROYECTO",null,null,null,"ROLES",null,null,"METODOLOGIAS",null,null,"TEMATICAS"]
["CODIGO","DESCRIPCION",null,"COD","PROYECTO","PROYECTO DESC",null,4,"Captura en campo",null,"CODIGO","DESCRIPCION",null,"COD METODOLOGIA","COD TEMATICA","DESCRIPCION"]
[10,"cm",null,3572,"KFW","KFW",null,6,"Revisar datos",null,871,"Playas - MEGAFAUNA",null,870,268,"PLAYAS MACROFAUNA"]
[11,"m",null,null,null,null,null,3497,"Coordinador actividad de campo",null,870,"Playas - MACROFAUNA",null,871,269,"PLAYAS MEGAFAUNA"]
[69,"g",null,null,null,null,null,4526,"Procesamiento en laboratorio"]
[142,"Ind/Estación"]
[]
[]
[]
[]
[]
[]
[]
[]
[]
[]
[null,null,null,"CODIGOS LOV"]
[null,null,null,"DESCRIPCIÓN","CÓDIGO","GRUPO"]
[null,null,null,"Departamento",10,2]
[null,null,null,"Sector",20,2]
[null,null,null,"Punto",30,2]
[null,null,null,"Parcela",35,2]
[null,null,null,"Estaciones",40,2]
[null,null,null,"Region",50,2]
[null,null,null,"Unidad_de_Manejo",60,2]
[null,null,null,"Unidad_Ambiental_Costera",70,2]
[null,null,null,"Localidad",80,2]
[null,null,null,"Bloque_Exploracion",85,2]
[null,null,null,"Area",90,2]

{"sheet":"AGD_MUESTREOS","index":6,"n_rows":0,"n_cols":0,"rows_kept":0,"cut":false,"hidden":true,"merged":[]}

{"sheet":"AGD_PARAMETRO","index":7,"n_rows":0,"n_cols":0,"rows_kept":0,"cut":false,"hidden":true,"merged":[]}

{"sheet":"AGD_MUESTRAS","index":8,"n_rows":0,"n_cols":0,"rows_kept":0,"cut":false,"hidden":true,"merged":[]}

{"sheet":"AGD_MUESTRAS_VARIABLES","index":9,"n_rows":0,"n_cols":0,"rows_kept":0,"cut":false,"hidden":true,"merged":[]}

{"sheet":"AGD_AUTORIAS","index":10,"n_rows":0,"n_cols":0,"rows_kept":0,"cut":false,"hidden":true,"merged":[]}